Organisation name,Organisation Code,Directorate,Service Category label,Service Category code,Supplier name,Payment date,Transaction number,Net Amount,Purpose of spend,Procurement category name
Southend-on-Sea Borough Council,http://www.opendatacommunities.org/id/unitary-authority/southend,ED Neighbourhoods & Environment,Environmental And Regulatory Services,4505,(G) GENERATOR INSTALLATIONS (UK) LTD,01/03/2023,12073029,595.00,Repairs And Maintenance Contracts,"Repairs, alterations and maintenance of buildings"
Southend-on-Sea Borough Council,http://www.opendatacommunities.org/id/unitary-authority/southend,ED Finance & Resources,Central Services,7111,(G) H2O NATIONWIDE LIMITED,01/03/2023,12073029,"75,770.42",Repairs And Maintenance Health And Safety,"Repairs, alterations and maintenance of buildings"
Southend-on-Sea Borough Council,http://www.opendatacommunities.org/id/unitary-authority/southend,Adults & Communities,Central Services,9010,(G) MILLANE CONTRACT SERVICES LTD,01/03/2023,12073029,"3,239.96",Main Contractor,Main Contractor
Southend-on-Sea Borough Council,http://www.opendatacommunities.org/id/unitary-authority/southend,Adults & Communities,Central Services,9010,(G) MILLANE CONTRACT SERVICES LTD,01/03/2023,12073029,"9,343.84",Main Contractor,Main Contractor
Southend-on-Sea Borough Council,http://www.opendatacommunities.org/id/unitary-authority/southend,ED Neighbourhoods & Environment,Environmental And Regulatory Services,4570,(G) SOCOTEC UK LIMITED,01/03/2023,12073029,"1,794.00",Scientific And Analytical Services,Services
Southend-on-Sea Borough Council,http://www.opendatacommunities.org/id/unitary-authority/southend,ED Adults & Communities,Adult Social Care,1170,(G) TUNSTALL HEALTHCARE (UK) LTD,01/03/2023,12073029,"1,628.00",Tools And Equipment Purchase,Equipment Furniture And Materials
Southend-on-Sea Borough Council,http://www.opendatacommunities.org/id/unitary-authority/southend,Growth & Housing,Central Services,9007,(N) SCRIBBLE STONE LIMITED,01/03/2023,12073029,"16,236.60",Contractors General,Contractors General
Southend-on-Sea Borough Council,http://www.opendatacommunities.org/id/unitary-authority/southend,ED Children & Public Health,Children And Education Services,3492,A H INDEPENDENT CONSULTANT LIMITED,01/03/2023,12073029,"6,107.80",Professional Fees,Services
Southend-on-Sea Borough Council,http://www.opendatacommunities.org/id/unitary-authority/southend,ED Finance & Resources,Central Services,7096,ACCESS INDEPENDENT,01/03/2023,12073029,"2,081.00",Medical And Health Services,Services
Southend-on-Sea Borough Council,http://www.opendatacommunities.org/id/unitary-authority/southend,ED Growth & Housing,Planning Services,5637,ACE FILTRATION LTD,01/03/2023,12073029,"2,732.72",Grants,Grants And Subscriptions
Southend-on-Sea Borough Council,http://www.opendatacommunities.org/id/unitary-authority/southend,ED Finance & Resources,Central Services,7096,ALLIED PUBLICITY SERVICES (MANCHESTER) LIMITED T/A APS GROUP,01/03/2023,12073029,911.5,Printing,Printing Stationery And General Office Expenses
Southend-on-Sea Borough Council,http://www.opendatacommunities.org/id/unitary-authority/southend,ED Adults & Communities,Adult Social Care,1105,ALPHA HEALTH AND CARE SERVICES LTD,01/03/2023,12073029,"26,688.67",Private Contractors,Other Agencies
Southend-on-Sea Borough Council,http://www.opendatacommunities.org/id/unitary-authority/southend,ED Adults & Communities,Adult Social Care,1108,ALPHA HEALTH AND CARE SERVICES LTD,01/03/2023,12073029,"1,472.50",Private Contractors,Other Agencies
Southend-on-Sea Borough Council,http://www.opendatacommunities.org/id/unitary-authority/southend,ED Adults & Communities,Adult Social Care,1205,ALPHA HEALTH AND CARE SERVICES LTD,01/03/2023,12073029,"6,583.50",Private Contractors,Other Agencies
Southend-on-Sea Borough Council,http://www.opendatacommunities.org/id/unitary-authority/southend,ED Adults & Communities,Adult Social Care,1400,ALPHA HEALTH AND CARE SERVICES LTD,01/03/2023,12073029,598.5,Private Contractors,Other Agencies
Southend-on-Sea Borough Council,http://www.opendatacommunities.org/id/unitary-authority/southend,ED Neighbourhoods & Environment,Environmental And Regulatory Services,4505,ANGLIA SIGN CASTING LIMITED,01/03/2023,12073029,504.5,Crematoria And Cemetery Services,Services
Southend-on-Sea Borough Council,http://www.opendatacommunities.org/id/unitary-authority/southend,ED Neighbourhoods & Environment,Highways And Transport Services,5226,APCOA PARKING UK LTD,01/03/2023,12073029,"20,978.04",Private Contractors,Other Agencies
Southend-on-Sea Borough Council,http://www.opendatacommunities.org/id/unitary-authority/southend,ED Neighbourhoods & Environment,Highways And Transport Services,5226,APCOA PARKING UK LTD,01/03/2023,12073029,"87,477.97",Private Contractors,Other Agencies
Southend-on-Sea Borough Council,http://www.opendatacommunities.org/id/unitary-authority/southend,ED Neighbourhoods & Environment,Highways And Transport Services,5226,APCOA PARKING UK LTD,01/03/2023,12073029,"1,457.89",Private Contractors,Other Agencies
Southend-on-Sea Borough Council,http://www.opendatacommunities.org/id/unitary-authority/southend,ED Neighbourhoods & Environment,Highways And Transport Services,5226,APCOA PARKING UK LTD,01/03/2023,12073029,"31,916.90",Services,Services
Southend-on-Sea Borough Council,http://www.opendatacommunities.org/id/unitary-authority/southend,ED Adults & Communities,Cultural And Related Services,4261,ASKEWS AND HOLTS LIBRARY SERVICES LTD,01/03/2023,12073029,686.66,Books & education equipment,Printing Stationery And General Office Expenses
Southend-on-Sea Borough Council,http://www.opendatacommunities.org/id/unitary-authority/southend,ED Children & Public Health,Children And Education Services,3150,ASPRIS CHILDREN'S SERVICES LTD T/A CAMHS,01/03/2023,12073029,"2,343.75",Private Contractors,Other Agencies
Southend-on-Sea Borough Council,http://www.opendatacommunities.org/id/unitary-authority/southend,ED Children & Public Health,Children And Education Services,3290,BEACON PLACEMENTS LTD,01/03/2023,12073029,"4,207.14",Accomodation Payment,Services
Southend-on-Sea Borough Council,http://www.opendatacommunities.org/id/unitary-authority/southend,ED Children & Public Health,Children And Education Services,3290,BEACON PLACEMENTS LTD,01/03/2023,12073029,"4,583.57",Accomodation Payment,Services
Southend-on-Sea Borough Council,http://www.opendatacommunities.org/id/unitary-authority/southend,ED Children & Public Health,Children And Education Services,3290,BEACON PLACEMENTS LTD,01/03/2023,12073029,"4,207.14",Accomodation Payment,Services
Southend-on-Sea Borough Council,http://www.opendatacommunities.org/id/unitary-authority/southend,ED Adults & Communities,Cultural And Related Services,4285,BIFFA WASTE SERVICES LTD,01/03/2023,12073029,638.43,Window Cleaning,Cleaning And Domestic Supplies
Southend-on-Sea Borough Council,http://www.opendatacommunities.org/id/unitary-authority/southend,ED Adults & Communities,Cultural And Related Services,4262,BOLINDA UK LTD,01/03/2023,12073029,"1,040.20",Books & education equipment,Printing Stationery And General Office Expenses
Southend-on-Sea Borough Council,http://www.opendatacommunities.org/id/unitary-authority/southend,ED Adults & Communities,Cultural And Related Services,4262,BOLINDA UK LTD,01/03/2023,12073029,956.05,Books & education equipment,Printing Stationery And General Office Expenses
Southend-on-Sea Borough Council,http://www.opendatacommunities.org/id/unitary-authority/southend,ED Adults & Communities,Cultural And Related Services,4262,BOLINDA UK LTD,01/03/2023,12073029,"1,646.02",Books & education equipment,Printing Stationery And General Office Expenses
Southend-on-Sea Borough Council,http://www.opendatacommunities.org/id/unitary-authority/southend,ED Neighbourhoods & Environment,Environmental And Regulatory Services,4505,BROOKS WASTE LTD,01/03/2023,12073029,"1,320.00",Waste Management,Cleaning And Domestic Supplies
Southend-on-Sea Borough Council,http://www.opendatacommunities.org/id/unitary-authority/southend,ED Neighbourhoods & Environment,Cultural And Related Services,7540,CAR HIRE DAY OF SWANSEA LTD T/A DAY'S RENTAL,01/03/2023,12073029,701.22,Contract Hire Of Vehicles Not Taxis Plant Or Buses,Contract Hire And Operating Leases
Southend-on-Sea Borough Council,http://www.opendatacommunities.org/id/unitary-authority/southend,ED Neighbourhoods & Environment,Cultural And Related Services,7540,CAR HIRE DAY OF SWANSEA LTD T/A DAY'S RENTAL,01/03/2023,12073029,607.91,Contract Hire Of Vehicles Not Taxis Plant Or Buses,Contract Hire And Operating Leases
Southend-on-Sea Borough Council,http://www.opendatacommunities.org/id/unitary-authority/southend,ED Neighbourhoods & Environment,Cultural And Related Services,7540,CAR HIRE DAY OF SWANSEA LTD T/A DAY'S RENTAL,01/03/2023,12073029,913.88,Contract Hire Of Vehicles Not Taxis Plant Or Buses,Contract Hire And Operating Leases
Southend-on-Sea Borough Council,http://www.opendatacommunities.org/id/unitary-authority/southend,ED Neighbourhoods & Environment,Cultural And Related Services,7540,CAR HIRE DAY OF SWANSEA LTD T/A DAY'S RENTAL,01/03/2023,12073029,607.91,Contract Hire Of Vehicles Not Taxis Plant Or Buses,Contract Hire And Operating Leases
Southend-on-Sea Borough Council,http://www.opendatacommunities.org/id/unitary-authority/southend,ED Neighbourhoods & Environment,Cultural And Related Services,7540,CAR HIRE DAY OF SWANSEA LTD T/A DAY'S RENTAL,01/03/2023,12073029,607.91,Contract Hire Of Vehicles Not Taxis Plant Or Buses,Contract Hire And Operating Leases
Southend-on-Sea Borough Council,http://www.opendatacommunities.org/id/unitary-authority/southend,ED Neighbourhoods & Environment,Cultural And Related Services,7540,CAR HIRE DAY OF SWANSEA LTD T/A DAY'S RENTAL,01/03/2023,12073029,607.91,Contract Hire Of Vehicles Not Taxis Plant Or Buses,Contract Hire And Operating Leases
Southend-on-Sea Borough Council,http://www.opendatacommunities.org/id/unitary-authority/southend,ED Adults & Communities,Adult Social Care,1209,CARETECH UK LTD,01/03/2023,12073029,850,Tools And Equipment Purchase,Equipment Furniture And Materials
Southend-on-Sea Borough Council,http://www.opendatacommunities.org/id/unitary-authority/southend,ED Adults & Communities,Adult Social Care,1204,CARETECH UK LTD,01/03/2023,12073029,710.56,Tools And Equipment Purchase,Equipment Furniture And Materials
Southend-on-Sea Borough Council,http://www.opendatacommunities.org/id/unitary-authority/southend,ED Adults & Communities,Adult Social Care,1204,CARETECH UK LTD,01/03/2023,12073029,604,Tools And Equipment Purchase,Equipment Furniture And Materials
Southend-on-Sea Borough Council,http://www.opendatacommunities.org/id/unitary-authority/southend,ED Adults & Communities,Adult Social Care,1209,CARETECH UK LTD,01/03/2023,12073029,"1,463.92",Tools And Equipment Purchase,Equipment Furniture And Materials
Southend-on-Sea Borough Council,http://www.opendatacommunities.org/id/unitary-authority/southend,ED Adults & Communities,Adult Social Care,1209,CARETECH UK LTD,01/03/2023,12073029,"4,302.08",Tools And Equipment Purchase,Equipment Furniture And Materials
Southend-on-Sea Borough Council,http://www.opendatacommunities.org/id/unitary-authority/southend,ED Growth & Housing,Housing Services,6130,CHARTERED INSTITUTE OF HOUSING NO 2 ACCOUNT,01/03/2023,12073029,"2,750.00",3rd Party training,Services
Southend-on-Sea Borough Council,http://www.opendatacommunities.org/id/unitary-authority/southend,ED Adults & Communities,Cultural And Related Services,4256,CIVICA UK LTD,01/03/2023,12073029,"1,075.00",Consultancy Services,Services
Southend-on-Sea Borough Council,http://www.opendatacommunities.org/id/unitary-authority/southend,"ED Strategy, Change & Governance",Central Services,7139,COEUS CONSULTING LTD,01/03/2023,12073029,"15,200.00",IT Contracts,Communications And Computing
Southend-on-Sea Borough Council,http://www.opendatacommunities.org/id/unitary-authority/southend,ED Children & Public Health,Children And Education Services,3290,COMPASS SOCIAL CARE LIMITED,01/03/2023,12073029,"4,928.57",Accomodation Payment,Services
Southend-on-Sea Borough Council,http://www.opendatacommunities.org/id/unitary-authority/southend,ED Children & Public Health,Children And Education Services,3290,COMPASS SOCIAL CARE LIMITED,01/03/2023,12073029,"5,092.86",Accomodation Payment,Services
Southend-on-Sea Borough Council,http://www.opendatacommunities.org/id/unitary-authority/southend,ED Children & Public Health,Children And Education Services,3250,COMPASS SOCIAL CARE LIMITED,01/03/2023,12073029,"5,828.57",Private Contractors,Other Agencies
Southend-on-Sea Borough Council,http://www.opendatacommunities.org/id/unitary-authority/southend,ED Children & Public Health,Children And Education Services,3290,COMPASS SOCIAL CARE LIMITED,01/03/2023,12073029,"5,092.86",Accomodation Payment,Services
Southend-on-Sea Borough Council,http://www.opendatacommunities.org/id/unitary-authority/southend,Neighbourhoods & Environment,Central Services,9008,CONCEPT ENGINEERING CONSULTANTS LTD T/A CON SITE INVESTIGATION,01/03/2023,12073029,"6,413.45",Main Contractor,Main Contractor
Southend-on-Sea Borough Council,http://www.opendatacommunities.org/id/unitary-authority/southend,"ED Strategy, Change & Governance",Adult Social Care,3201,CORAM ACADEMY LTD T/A CORAMBAAF,01/03/2023,12073029,800,Commissioned Training,Services
Southend-on-Sea Borough Council,http://www.opendatacommunities.org/id/unitary-authority/southend,ED Adults & Communities,Cultural And Related Services,4120,CORROSION PREVENTION LIMITED,01/03/2023,12073029,"1,160.00",Repairs And Maintenance Contracts,"Repairs, alterations and maintenance of buildings"
Southend-on-Sea Borough Council,http://www.opendatacommunities.org/id/unitary-authority/southend,ED Children & Public Health,Children And Education Services,3492,DR GRANGE AND ASSOCIATES LTD,01/03/2023,12073029,695.03,Court Costs And Legal Fees,Services
Southend-on-Sea Borough Council,http://www.opendatacommunities.org/id/unitary-authority/southend,ED Children & Public Health,Children And Education Services,3592,E4LAW LIMITED T/A LEXTOX,01/03/2023,12073029,"3,099.00",Professional Fees,Services
Southend-on-Sea Borough Council,http://www.opendatacommunities.org/id/unitary-authority/southend,"ED Strategy, Change & Governance",Central Services,7105,EAST ANGLIAN CHAMBERS T/A MS SARAH DUXBURY,01/03/2023,12073029,850,Barristers fees,Services
Southend-on-Sea Borough Council,http://www.opendatacommunities.org/id/unitary-authority/southend,ED Neighbourhoods & Environment,Cultural And Related Services,7540,ERNEST DOE AND SONS LTD,01/03/2023,12073029,990,Tools And Equipment Repair And Maintenance,Equipment Furniture And Materials
Southend-on-Sea Borough Council,http://www.opendatacommunities.org/id/unitary-authority/southend,ED Adults & Communities,Cultural And Related Services,4255,ESSEX COUNTY COUNCIL,01/03/2023,12073029,"62,898.00",Private Contractors,Other Agencies
Southend-on-Sea Borough Council,http://www.opendatacommunities.org/id/unitary-authority/southend,"ED Strategy, Change & Governance",Central Services,7105,ESSEX COUNTY COUNCIL,01/03/2023,12073029,"3,827.67",Court Costs And Legal Fees,Services
Southend-on-Sea Borough Council,http://www.opendatacommunities.org/id/unitary-authority/southend,"ED Strategy, Change & Governance",Central Services,7105,ESSEX COUNTY COUNCIL,01/03/2023,12073029,"8,099.02",Court Costs And Legal Fees,Services
Southend-on-Sea Borough Council,http://www.opendatacommunities.org/id/unitary-authority/southend,"ED Strategy, Change & Governance",Central Services,7105,ESSEX COUNTY COUNCIL,01/03/2023,12073029,"6,290.32",Court Costs And Legal Fees,Services
Southend-on-Sea Borough Council,http://www.opendatacommunities.org/id/unitary-authority/southend,"ED Strategy, Change & Governance",Central Services,7105,ESSEX COUNTY COUNCIL,01/03/2023,12073029,"5,087.45",Court Costs And Legal Fees,Services
Southend-on-Sea Borough Council,http://www.opendatacommunities.org/id/unitary-authority/southend,ED Adults & Communities,Adult Social Care,1310,ESSEX NURSING SERVICES,01/03/2023,12073029,513,Private Contractors,Other Agencies
Southend-on-Sea Borough Council,http://www.opendatacommunities.org/id/unitary-authority/southend,ED Adults & Communities,Cultural And Related Services,4055,ESTUARY SIGNS,01/03/2023,12073029,"2,062.00",Materials,Equipment Furniture And Materials
Southend-on-Sea Borough Council,http://www.opendatacommunities.org/id/unitary-authority/southend,ED Neighbourhoods & Environment,Highways And Transport Services,5245,EUCLID LIMITED,01/03/2023,12073029,"1,134.58",Consultancy Services,Services
Southend-on-Sea Borough Council,http://www.opendatacommunities.org/id/unitary-authority/southend,ED Children & Public Health,Children And Education Services,3456,FAMILY AFFECT LTD,01/03/2023,12073029,612,Private Contractors,Other Agencies
Southend-on-Sea Borough Council,http://www.opendatacommunities.org/id/unitary-authority/southend,ED Children & Public Health,Children And Education Services,3456,FAMILY AFFECT LTD,01/03/2023,12073029,532,Private Contractors,Other Agencies
Southend-on-Sea Borough Council,http://www.opendatacommunities.org/id/unitary-authority/southend,ED Finance & Resources,Central Services,7140,FAST KEY SERVICES LTD,01/03/2023,12073029,842.5,Materials,Equipment Furniture And Materials
Southend-on-Sea Borough Council,http://www.opendatacommunities.org/id/unitary-authority/southend,ED Neighbourhoods & Environment,Environmental And Regulatory Services,4506,FUELOILS,01/03/2023,12073029,"2,484.00",Petrol Diesel Or Liquid Petroleum Gas,Direct Transport Costs
Southend-on-Sea Borough Council,http://www.opendatacommunities.org/id/unitary-authority/southend,ED Finance & Resources,Central Services,7071,G4S CASH SERVICES UK LTD,01/03/2023,12073029,964.96,Financial Services,Services
Southend-on-Sea Borough Council,http://www.opendatacommunities.org/id/unitary-authority/southend,ED Adults & Communities,Adult Social Care,1674,HALES GROUP LTD,01/03/2023,12073029,615.92,Private Contractors,Other Agencies
Southend-on-Sea Borough Council,http://www.opendatacommunities.org/id/unitary-authority/southend,ED Adults & Communities,Adult Social Care,1105,HALES GROUP LTD,01/03/2023,12073029,555.75,Private Contractors,Other Agencies
Southend-on-Sea Borough Council,http://www.opendatacommunities.org/id/unitary-authority/southend,ED Adults & Communities,Adult Social Care,1105,HALES GROUP LTD,01/03/2023,12073029,622.25,Private Contractors,Other Agencies
Southend-on-Sea Borough Council,http://www.opendatacommunities.org/id/unitary-authority/southend,ED Adults & Communities,Adult Social Care,1105,HALES GROUP LTD,01/03/2023,12073029,551,Private Contractors,Other Agencies
Southend-on-Sea Borough Council,http://www.opendatacommunities.org/id/unitary-authority/southend,ED Adults & Communities,Adult Social Care,1105,HALES GROUP LTD,01/03/2023,12073029,641.25,Private Contractors,Other Agencies
Southend-on-Sea Borough Council,http://www.opendatacommunities.org/id/unitary-authority/southend,ED Growth & Housing,Housing Services,6011,HARP,01/03/2023,12073029,"1,260.00",Other Agencies,Other Agencies
Southend-on-Sea Borough Council,http://www.opendatacommunities.org/id/unitary-authority/southend,ED Children & Public Health,Children And Education Services,3435,HMPPS,01/03/2023,12073029,"21,990.00",Other Agencies,Other Agencies
Southend-on-Sea Borough Council,http://www.opendatacommunities.org/id/unitary-authority/southend,ED Adults & Communities,Adult Social Care,1105,HOMECARE PROFESSIONALS (ESSEX) LTD,01/03/2023,12073029,"1,064.00",Private Contractors,Other Agencies
Southend-on-Sea Borough Council,http://www.opendatacommunities.org/id/unitary-authority/southend,"ED Strategy, Change & Governance",Central Services,8650,INNER CIRCLE CONSULTING LTD,01/03/2023,12073029,"12,000.00",Consultancy Services,Services
Southend-on-Sea Borough Council,http://www.opendatacommunities.org/id/unitary-authority/southend,"ED Strategy, Change & Governance",Central Services,8650,INNER CIRCLE CONSULTING LTD,01/03/2023,12073029,"25,000.00",Consultancy Services,Services
Southend-on-Sea Borough Council,http://www.opendatacommunities.org/id/unitary-authority/southend,"ED Strategy, Change & Governance",Central Services,8650,INNER CIRCLE CONSULTING LTD,01/03/2023,12073029,"35,000.00",Consultancy Services,Services
Southend-on-Sea Borough Council,http://www.opendatacommunities.org/id/unitary-authority/southend,ED Children & Public Health, Public Health,7665,Intermedical UK Ltd,01/03/2023,12073029,"2,052.00",Materials,Equipment Furniture And Materials
Southend-on-Sea Borough Council,http://www.opendatacommunities.org/id/unitary-authority/southend,ED Neighbourhoods & Environment,Highways And Transport Services,5225,INTERNATIONAL PARKING SYSTEMS (UK) LIMITED,01/03/2023,12073029,"1,292.73",Services,Services
Southend-on-Sea Borough Council,http://www.opendatacommunities.org/id/unitary-authority/southend,ED Children & Public Health,Children And Education Services,3221,IN-TRAC TRAINING AND CONSULTANCY LIMITED,01/03/2023,12073029,900,Training Expenses,Indirect Employee Expenses
Southend-on-Sea Borough Council,http://www.opendatacommunities.org/id/unitary-authority/southend,"ED Strategy, Change & Governance",Central Services,8602,INTUITY COMMUNICATIONS LIMITED,01/03/2023,12073029,"5,101.29",Communications Telephone Call Charges,Communications And Computing
Southend-on-Sea Borough Council,http://www.opendatacommunities.org/id/unitary-authority/southend,"ED Strategy, Change & Governance",Central Services,7130,INTUITY COMMUNICATIONS LIMITED,01/03/2023,12073029,"11,949.62",Telecoms Airwave Operating Licenses,Communications And Computing
Southend-on-Sea Borough Council,http://www.opendatacommunities.org/id/unitary-authority/southend,ED Children & Public Health,Children And Education Services,3455,IRON MOUNTAIN (UK) PLC,01/03/2023,12073029,526.77,Document Archive,Services
Southend-on-Sea Borough Council,http://www.opendatacommunities.org/id/unitary-authority/southend,ED Children & Public Health,Children And Education Services,3265,JIGSAW PSYCHOLOGY LIMITED,01/03/2023,12073029,625,Professional Fees,Services
Southend-on-Sea Borough Council,http://www.opendatacommunities.org/id/unitary-authority/southend,ED Neighbourhoods & Environment,Environmental And Regulatory Services,4506,KSS HIRE SERVICES LTD,01/03/2023,12073029,616,Private Contractors,Other Agencies
Southend-on-Sea Borough Council,http://www.opendatacommunities.org/id/unitary-authority/southend,ED Children & Public Health,Children And Education Services,3310,LEARN SOLUTIONS LTD T/A TLC LIVE,01/03/2023,12073029,968,Education Services,Services
Southend-on-Sea Borough Council,http://www.opendatacommunities.org/id/unitary-authority/southend,ED Growth & Housing,Planning Services,5637,LEE REFRIGERATION LTD,01/03/2023,12073029,540,Grants,Grants And Subscriptions
Southend-on-Sea Borough Council,http://www.opendatacommunities.org/id/unitary-authority/southend,ED Growth & Housing,Housing Services,9005,MARSTAN BDB LLP,01/03/2023,12073029,"1,427.15",Main Contractor,Main Contractor
Southend-on-Sea Borough Council,http://www.opendatacommunities.org/id/unitary-authority/southend,ED Growth & Housing,Housing Services,6010,MR & MRS G CETNIK T/A PAVILION HOTEL,01/03/2023,12073029,"1,158.00",Accommodation Costs,Expenses
Southend-on-Sea Borough Council,http://www.opendatacommunities.org/id/unitary-authority/southend,ED Growth & Housing,Housing Services,6011,MR & MRS G CETNIK T/A PAVILION HOTEL,01/03/2023,12073029,"4,179.00",Accommodation Costs,Expenses
Southend-on-Sea Borough Council,http://www.opendatacommunities.org/id/unitary-authority/southend,ED Children & Public Health,Children And Education Services,3592,REDACTED PERSONAL DATA,01/03/2023,12073029,"4,715.91",Additional Allowances (non employee),Services
Southend-on-Sea Borough Council,http://www.opendatacommunities.org/id/unitary-authority/southend,"ED Strategy, Change & Governance",Central Services,7105,MS AKTA CHIPALKATTY,01/03/2023,12073029,800,Barristers fees,Services
Southend-on-Sea Borough Council,http://www.opendatacommunities.org/id/unitary-authority/southend,"ED Strategy, Change & Governance",Central Services,7130,NOMINET UK,01/03/2023,12073029,"1,009.61",IT Contracts,Communications And Computing
Southend-on-Sea Borough Council,http://www.opendatacommunities.org/id/unitary-authority/southend,ED Neighbourhoods & Environment,Highways And Transport Services,5226,PATROL,01/03/2023,12073029,"5,328.30",Private Contractors,Other Agencies
Southend-on-Sea Borough Council,http://www.opendatacommunities.org/id/unitary-authority/southend,"ED Strategy, Change & Governance",Central Services,8650,PINSENT MASONS LLP,01/03/2023,12073029,"12,274.92",Barristers fees,Services
Southend-on-Sea Borough Council,http://www.opendatacommunities.org/id/unitary-authority/southend,ED Children & Public Health,Children And Education Services,3030,PORTICO ACADEMY TRUST,01/03/2023,12073029,642.13,Energy Cost Gas,Energy Costs
Southend-on-Sea Borough Council,http://www.opendatacommunities.org/id/unitary-authority/southend,ED Children & Public Health,Children And Education Services,3030,PORTICO ACADEMY TRUST,01/03/2023,12073029,631.33,Materials,Equipment Furniture And Materials
Southend-on-Sea Borough Council,http://www.opendatacommunities.org/id/unitary-authority/southend,ED Children & Public Health,Children And Education Services,3092,PRIOR'S COURT SERVICES LIMITED,01/03/2023,12073029,"4,465.81",Private Contractors,Other Agencies
Southend-on-Sea Borough Council,http://www.opendatacommunities.org/id/unitary-authority/southend,ED Children & Public Health,Children And Education Services,3092,PRIOR'S COURT SERVICES LIMITED,01/03/2023,12073029,"4,465.81",Private Contractors,Other Agencies
Southend-on-Sea Borough Council,http://www.opendatacommunities.org/id/unitary-authority/southend,ED Children & Public Health,Children And Education Services,3092,PRIOR'S COURT SERVICES LIMITED,01/03/2023,12073029,"4,465.81",Private Contractors,Other Agencies
Southend-on-Sea Borough Council,http://www.opendatacommunities.org/id/unitary-authority/southend,ED Children & Public Health,Children And Education Services,3092,PRIOR'S COURT SERVICES LIMITED,01/03/2023,12073029,"17,863.24",Private Contractors,Other Agencies
Southend-on-Sea Borough Council,http://www.opendatacommunities.org/id/unitary-authority/southend,ED Finance & Resources,Housing Services,6165,REDACTED PERSONAL DATA,01/03/2023,12073029,"300,000.00",Catering Food And Beverages,Catering
Southend-on-Sea Borough Council,http://www.opendatacommunities.org/id/unitary-authority/southend,ED Growth & Housing,Planning Services,5635,RADIO ESSEX LTD,01/03/2023,12073029,"2,495.00",Non Staff Advertising,Services
Southend-on-Sea Borough Council,http://www.opendatacommunities.org/id/unitary-authority/southend,"ED Strategy, Change & Governance",Central Services,8650,REGIONAL NETWORK SOLUTIONS LTD,01/03/2023,12073029,"4,900.00",Consultancy Services,Services
Southend-on-Sea Borough Council,http://www.opendatacommunities.org/id/unitary-authority/southend,ED Children & Public Health,Children And Education Services,3200,RWB CONSULTANCY LIMITED,01/03/2023,12073029,"3,330.00",Education Services,Services
Southend-on-Sea Borough Council,http://www.opendatacommunities.org/id/unitary-authority/southend,ED Neighbourhoods & Environment,Highways And Transport Services,5226,SAGOSS LIMITED,01/03/2023,12073029,"2,000.00",Private Contractors,Other Agencies
Southend-on-Sea Borough Council,http://www.opendatacommunities.org/id/unitary-authority/southend,ED Adults & Communities,Adult Social Care,1209,SCAN MOBILITY LTD,01/03/2023,12073029,"1,964.88",Tools And Equipment Repair And Maintenance,Equipment Furniture And Materials
Southend-on-Sea Borough Council,http://www.opendatacommunities.org/id/unitary-authority/southend,ED Adults & Communities,Cultural And Related Services,4255,SECURE PAYMENT TRANSACTIONS LTD,01/03/2023,12073029,753.42,Corporate IT Applications,Communications And Computing
Southend-on-Sea Borough Council,http://www.opendatacommunities.org/id/unitary-authority/southend,ED Children & Public Health,Children And Education Services,3070,SERJCO LTD (FEES) T/A MR DAVID LAWSON,01/03/2023,12073029,"2,500.00",Court Costs And Legal Fees,Services
Southend-on-Sea Borough Council,http://www.opendatacommunities.org/id/unitary-authority/southend,ED Adults & Communities,Adult Social Care,1105,SEVEN DAY CARE (ESSEX) LTD T/A SURECARE SOUTHEND,01/03/2023,12073029,"9,116.83",Private Contractors,Other Agencies
Southend-on-Sea Borough Council,http://www.opendatacommunities.org/id/unitary-authority/southend,ED Children & Public Health,Children And Education Services,3250,SHALAMAR CHILDREN LIMITED,01/03/2023,12073029,"20,929.42",Private Contractors,Other Agencies
Southend-on-Sea Borough Council,http://www.opendatacommunities.org/id/unitary-authority/southend,"ED Strategy, Change & Governance",Central Services,7105,SHARPE PRITCHARD,01/03/2023,12073029,"1,029.00",Court Costs And Legal Fees,Services
Southend-on-Sea Borough Council,http://www.opendatacommunities.org/id/unitary-authority/southend,"ED Strategy, Change & Governance",Central Services,7105,SHARPE PRITCHARD,01/03/2023,12073029,"1,155.00",Court Costs And Legal Fees,Services
Southend-on-Sea Borough Council,http://www.opendatacommunities.org/id/unitary-authority/southend,"ED Strategy, Change & Governance",Central Services,7105,SHARPE PRITCHARD,01/03/2023,12073029,"1,040.00",Court Costs And Legal Fees,Services
Southend-on-Sea Borough Council,http://www.opendatacommunities.org/id/unitary-authority/southend,"ED Strategy, Change & Governance",Central Services,7105,SHARPE PRITCHARD,01/03/2023,12073029,"2,015.00",Court Costs And Legal Fees,Services
Southend-on-Sea Borough Council,http://www.opendatacommunities.org/id/unitary-authority/southend,"ED Strategy, Change & Governance",Central Services,7105,SHARPE PRITCHARD,01/03/2023,12073029,656,Court Costs And Legal Fees,Services
Southend-on-Sea Borough Council,http://www.opendatacommunities.org/id/unitary-authority/southend,ED Children & Public Health,Children And Education Services,3010,SHONETTE BASON LTD,01/03/2023,12073029,500,3rd Party training,Services
Southend-on-Sea Borough Council,http://www.opendatacommunities.org/id/unitary-authority/southend,ED Neighbourhoods & Environment,Cultural And Related Services,7540,SOUTH ESSEX PROPERTY SERVICES,01/03/2023,12073029,830.53,Private Contractors,Other Agencies
Southend-on-Sea Borough Council,http://www.opendatacommunities.org/id/unitary-authority/southend,ED Adults & Communities,Adult Social Care,1320,SOUTHEND CARE LTD,01/03/2023,12073029,"270,596.25",Private Contractors,Other Agencies
Southend-on-Sea Borough Council,http://www.opendatacommunities.org/id/unitary-authority/southend,ED Adults & Communities,Adult Social Care,1320,SOUTHEND CARE LTD,01/03/2023,12073029,"322,125.60",Private Contractors,Other Agencies
Southend-on-Sea Borough Council,http://www.opendatacommunities.org/id/unitary-authority/southend,ED Neighbourhoods & Environment,Cultural And Related Services,4200,SOUTHERN GREEN LTD,01/03/2023,12073029,500,Consultancy Services,Services
Southend-on-Sea Borough Council,http://www.opendatacommunities.org/id/unitary-authority/southend,ED Finance & Resources,Central Services,7140,ST ANN'S MANUFACTURING CO LTD,01/03/2023,12073029,721.7,Materials,Equipment Furniture And Materials
Southend-on-Sea Borough Council,http://www.opendatacommunities.org/id/unitary-authority/southend,ED Neighbourhoods & Environment,Highways And Transport Services,5010,STEER DAVIES & GLEAVE LTD T/A STEER,01/03/2023,12073029,"7,787.00",Consultancy Services,Services
Southend-on-Sea Borough Council,http://www.opendatacommunities.org/id/unitary-authority/southend,ED Children & Public Health,Children And Education Services,3092,THE CONGREGATION OF THE DAUGHTERS OF THE CROSS OF LIEGE T/A ST ELIZABETH'S CENTRE,01/03/2023,12073029,"57,490.03",Services On Behalf Of Pupils,Services
Southend-on-Sea Borough Council,http://www.opendatacommunities.org/id/unitary-authority/southend,ED Adults & Communities,Cultural And Related Services,4015,THE GOOD BOX CO LABS LTD T/A GOODBOX,01/03/2023,12073029,600,Subscriptions,Grants And Subscriptions
Southend-on-Sea Borough Council,http://www.opendatacommunities.org/id/unitary-authority/southend,ED Children & Public Health,Children And Education Services,3250,THE NATIONAL FOSTERING AGENCY LTD,01/03/2023,12073029,"5,376.00",Private Contractors,Other Agencies
Southend-on-Sea Borough Council,http://www.opendatacommunities.org/id/unitary-authority/southend,ED Children & Public Health,Children And Education Services,3250,THE NATIONAL FOSTERING AGENCY LTD,01/03/2023,12073029,"4,800.00",Private Contractors,Other Agencies
Southend-on-Sea Borough Council,http://www.opendatacommunities.org/id/unitary-authority/southend,Growth & Housing,Central Services,9007,THE WOODLEY COLES LLP,01/03/2023,12073029,"12,087.50",Main Contractor,Main Contractor
Southend-on-Sea Borough Council,http://www.opendatacommunities.org/id/unitary-authority/southend,ED Children & Public Health,Children And Education Services,3250,THE XCEL2000 FOSTERCARE SERVICES LTD,01/03/2023,12073029,"4,536.74",Private Contractors,Other Agencies
Southend-on-Sea Borough Council,http://www.opendatacommunities.org/id/unitary-authority/southend,ED Children & Public Health,Children And Education Services,3250,THE XCEL2000 FOSTERCARE SERVICES LTD,01/03/2023,12073029,"4,885.72",Private Contractors,Other Agencies
Southend-on-Sea Borough Council,http://www.opendatacommunities.org/id/unitary-authority/southend,ED Children & Public Health,Children And Education Services,3250,THE XCEL2000 FOSTERCARE SERVICES LTD,01/03/2023,12073029,"4,885.72",Private Contractors,Other Agencies
Southend-on-Sea Borough Council,http://www.opendatacommunities.org/id/unitary-authority/southend,ED Children & Public Health,Children And Education Services,3250,THE XCEL2000 FOSTERCARE SERVICES LTD,01/03/2023,12073029,"4,536.74",Private Contractors,Other Agencies
Southend-on-Sea Borough Council,http://www.opendatacommunities.org/id/unitary-authority/southend,ED Children & Public Health,Children And Education Services,3250,THE XCEL2000 FOSTERCARE SERVICES LTD,01/03/2023,12073029,"4,885.72",Private Contractors,Other Agencies
Southend-on-Sea Borough Council,http://www.opendatacommunities.org/id/unitary-authority/southend,ED Children & Public Health,Children And Education Services,3250,THE XCEL2000 FOSTERCARE SERVICES LTD,01/03/2023,12073029,"1,221.43",Private Contractors,Other Agencies
Southend-on-Sea Borough Council,http://www.opendatacommunities.org/id/unitary-authority/southend,ED Children & Public Health,Children And Education Services,3250,THE XCEL2000 FOSTERCARE SERVICES LTD,01/03/2023,12073029,"3,315.31",Private Contractors,Other Agencies
Southend-on-Sea Borough Council,http://www.opendatacommunities.org/id/unitary-authority/southend,ED Children & Public Health,Children And Education Services,3250,THE XCEL2000 FOSTERCARE SERVICES LTD,01/03/2023,12073029,"4,885.72",Private Contractors,Other Agencies
Southend-on-Sea Borough Council,http://www.opendatacommunities.org/id/unitary-authority/southend,ED Children & Public Health,Children And Education Services,3250,THE XCEL2000 FOSTERCARE SERVICES LTD,01/03/2023,12073029,"4,536.74",Private Contractors,Other Agencies
Southend-on-Sea Borough Council,http://www.opendatacommunities.org/id/unitary-authority/southend,ED Children & Public Health,Children And Education Services,3105,TRAFALGAR UK THEATRES LIMITED T/A SOUTHEND CLIFFS PAVILION,01/03/2023,12073029,"2,662.50",Room Hire,Rents
Southend-on-Sea Borough Council,http://www.opendatacommunities.org/id/unitary-authority/southend,ED Adults & Communities,Cultural And Related Services,4262,ULVERSCROFT LARGE PRINT BOOKS LTD,01/03/2023,12073029,563.56,Books & education equipment,Printing Stationery And General Office Expenses
Southend-on-Sea Borough Council,http://www.opendatacommunities.org/id/unitary-authority/southend,ED Children & Public Health,Children And Education Services,3186,UNITY TRAVEL,01/03/2023,12073029,"1,040.00",Private Contractors,Other Agencies
Southend-on-Sea Borough Council,http://www.opendatacommunities.org/id/unitary-authority/southend,ED Growth & Housing,Housing Services,9005,VARSITY CONSULTING LTD,01/03/2023,12073029,795,Main Contractor,Main Contractor
Southend-on-Sea Borough Council,http://www.opendatacommunities.org/id/unitary-authority/southend,ED Adults & Communities,Adult Social Care,1209,VEOLIA ENVIRONMENTAL SERVICES,01/03/2023,12073029,571.08,Refuse Collection,Cleaning And Domestic Supplies
Southend-on-Sea Borough Council,http://www.opendatacommunities.org/id/unitary-authority/southend,ED Neighbourhoods & Environment,Environmental And Regulatory Services,4660,VEOLIA ENVIRONMENTAL SERVICES,01/03/2023,12073029,"8,673.12",Waste Management,Cleaning And Domestic Supplies
Southend-on-Sea Borough Council,http://www.opendatacommunities.org/id/unitary-authority/southend,ED Neighbourhoods & Environment,Environmental And Regulatory Services,4661,VEOLIA ENVIRONMENTAL SERVICES,01/03/2023,12073029,"22,504.46",Waste Management,Cleaning And Domestic Supplies
Southend-on-Sea Borough Council,http://www.opendatacommunities.org/id/unitary-authority/southend,ED Neighbourhoods & Environment,Environmental And Regulatory Services,4505,VIVEDIA LIMITED,01/03/2023,12073029,"2,453.00",Crematoria And Cemetery Services,Services
Southend-on-Sea Borough Council,http://www.opendatacommunities.org/id/unitary-authority/southend,ED Finance & Resources,Central Services,8615,YOUNGS FLOORING,01/03/2023,12073029,"6,641.37",Private Contractors,Other Agencies
Southend-on-Sea Borough Council,http://www.opendatacommunities.org/id/unitary-authority/southend,ED Adults & Communities,Adult Social Care,1180,YOUR WORLD RECRUITMENT LTD,01/03/2023,12073029,"1,480.00",Agency Staff,Direct Employee Expenses
Southend-on-Sea Borough Council,http://www.opendatacommunities.org/id/unitary-authority/southend,ED Growth & Housing,Housing Services,9005,(G) ADVANCED BUILDING & MAINTENANCE SERVICES LTD,03/03/2023,12073066,"7,605.00",Contractors General,Contractors General
Southend-on-Sea Borough Council,http://www.opendatacommunities.org/id/unitary-authority/southend,Children & Public Health,Central Services,9009,(G) DAVID STAGG & ASSOCIATES LTD T/A DSA ELECTRICAL,03/03/2023,12073066,"1,715.60",Main Contractor,Main Contractor
Southend-on-Sea Borough Council,http://www.opendatacommunities.org/id/unitary-authority/southend,Finance & Resources,Central Services,9011,(G) EDMUNDS DESIGN & CONSTRUCTION LTD,03/03/2023,12073066,"9,083.28",Main Contractor,Main Contractor
Southend-on-Sea Borough Council,http://www.opendatacommunities.org/id/unitary-authority/southend,Growth & Housing,Central Services,9007,(G) EUROVIA INFRASTRUCTURE LIMITED,03/03/2023,12073066,"76,224.77",Main Contractor,Main Contractor
Southend-on-Sea Borough Council,http://www.opendatacommunities.org/id/unitary-authority/southend,ED Neighbourhoods & Environment,Environmental And Regulatory Services,4506,(G) KIERAN LUCAS CONTRACTORS LTD,03/03/2023,12073066,500,Repairs And Maintenance Contracts,"Repairs, alterations and maintenance of buildings"
Southend-on-Sea Borough Council,http://www.opendatacommunities.org/id/unitary-authority/southend,ED Neighbourhoods & Environment,Environmental And Regulatory Services,4506,(G) KIERAN LUCAS CONTRACTORS LTD,03/03/2023,12073066,758.46,Repairs And Maintenance Contracts,"Repairs, alterations and maintenance of buildings"
Southend-on-Sea Borough Council,http://www.opendatacommunities.org/id/unitary-authority/southend,Neighbourhoods & Environment,Central Services,9008,(G) MARLBOROUGH SURFACING LIMITED,03/03/2023,12073066,"14,389.07",Contractors General,Contractors General
Southend-on-Sea Borough Council,http://www.opendatacommunities.org/id/unitary-authority/southend,Adults & Communities,Central Services,9010,(G) MILLANE CONTRACT SERVICES LTD,03/03/2023,12073066,"33,483.02",Main Contractor,Main Contractor
Southend-on-Sea Borough Council,http://www.opendatacommunities.org/id/unitary-authority/southend,ED Neighbourhoods & Environment,Cultural And Related Services,4201,(G) PROLUDIC LTD,03/03/2023,12073066,"8,351.75",Materials,Equipment Furniture And Materials
Southend-on-Sea Borough Council,http://www.opendatacommunities.org/id/unitary-authority/southend,ED Adults & Communities,Cultural And Related Services,4115,(G) SIEMENS PLC,03/03/2023,12073066,606,Energy Cost Electricity,Energy Costs
Southend-on-Sea Borough Council,http://www.opendatacommunities.org/id/unitary-authority/southend,ED Adults & Communities,Adult Social Care,1170,(G) TUNSTALL HEALTHCARE (UK) LTD,03/03/2023,12073066,848.6,Tools And Equipment Purchase,Equipment Furniture And Materials
Southend-on-Sea Borough Council,http://www.opendatacommunities.org/id/unitary-authority/southend,ED Adults & Communities,Cultural And Related Services,4025,(N) LB BUILDING ESSEX LTD,03/03/2023,12073066,"3,420.00",Repairs And Maintenance Contracts,"Repairs, alterations and maintenance of buildings"
Southend-on-Sea Borough Council,http://www.opendatacommunities.org/id/unitary-authority/southend,ED Adults & Communities,Adult Social Care,1391,A K SUPPORT HOUSING LIMITED,03/03/2023,12073066,"2,310.00",Private Contractors,Other Agencies
Southend-on-Sea Borough Council,http://www.opendatacommunities.org/id/unitary-authority/southend,ED Adults & Communities,Adult Social Care,1070,AARANDALE LODGE LTD,03/03/2023,12073066,"6,917.40",Private Contractors,Other Agencies
Southend-on-Sea Borough Council,http://www.opendatacommunities.org/id/unitary-authority/southend,ED Adults & Communities,Adult Social Care,1076,AARANDALE LODGE LTD,03/03/2023,12073066,"1,482.30",Private Contractors,Other Agencies
Southend-on-Sea Borough Council,http://www.opendatacommunities.org/id/unitary-authority/southend,ED Adults & Communities,Adult Social Care,1079,AARANDALE LODGE LTD,03/03/2023,12073066,"2,305.80",Private Contractors,Other Agencies
Southend-on-Sea Borough Council,http://www.opendatacommunities.org/id/unitary-authority/southend,ED Adults & Communities,Adult Social Care,1083,AARANDALE LODGE LTD,03/03/2023,12073066,"17,991.90",Private Contractors,Other Agencies
Southend-on-Sea Borough Council,http://www.opendatacommunities.org/id/unitary-authority/southend,ED Adults & Communities,Adult Social Care,1671,AARANDALE LODGE LTD,03/03/2023,12073066,"2,305.80",Private Contractors,Other Agencies
Southend-on-Sea Borough Council,http://www.opendatacommunities.org/id/unitary-authority/southend,ED Adults & Communities,Adult Social Care,1260,ABBEY CARE SAXON LTD T/A SAXON COURT,03/03/2023,12073066,"2,998.64",Private Contractors,Other Agencies
Southend-on-Sea Borough Council,http://www.opendatacommunities.org/id/unitary-authority/southend,ED Adults & Communities,Adult Social Care,1070,ABBEYFIELD SOCIETY LTD,03/03/2023,12073066,"5,040.00",Private Contractors,Other Agencies
Southend-on-Sea Borough Council,http://www.opendatacommunities.org/id/unitary-authority/southend,ED Adults & Communities,Adult Social Care,1076,ABBEYFIELD SOCIETY LTD,03/03/2023,12073066,"2,520.00",Private Contractors,Other Agencies
Southend-on-Sea Borough Council,http://www.opendatacommunities.org/id/unitary-authority/southend,ED Adults & Communities,Adult Social Care,1209,ACCORA LTD,03/03/2023,12073066,"1,383.00",Tools And Equipment Purchase,Equipment Furniture And Materials
Southend-on-Sea Borough Council,http://www.opendatacommunities.org/id/unitary-authority/southend,ED Adults & Communities,Adult Social Care,1260,ACHIEVE TOGETHER LIMITED,03/03/2023,12073066,"26,315.68",Private Contractors,Other Agencies
Southend-on-Sea Borough Council,http://www.opendatacommunities.org/id/unitary-authority/southend,ED Adults & Communities,Adult Social Care,1260,ACORN VILLAGES LTD,03/03/2023,12073066,"6,147.96",Private Contractors,Other Agencies
Southend-on-Sea Borough Council,http://www.opendatacommunities.org/id/unitary-authority/southend,ED Adults & Communities,Adult Social Care,1070,ADALAH RESIDENTIAL REST HOME LTD,03/03/2023,12073066,"10,449.68",Private Contractors,Other Agencies
Southend-on-Sea Borough Council,http://www.opendatacommunities.org/id/unitary-authority/southend,ED Adults & Communities,Adult Social Care,1079,ADALAH RESIDENTIAL REST HOME LTD,03/03/2023,12073066,"6,463.48",Private Contractors,Other Agencies
Southend-on-Sea Borough Council,http://www.opendatacommunities.org/id/unitary-authority/southend,ED Adults & Communities,Adult Social Care,1260,ADDINGTON HOUSE LIMITED,03/03/2023,12073066,"7,067.48",Private Contractors,Other Agencies
Southend-on-Sea Borough Council,http://www.opendatacommunities.org/id/unitary-authority/southend,ED Adults & Communities,Adult Social Care,1391,ADJUVO CARE & SUPPORT LTD,03/03/2023,12073066,"14,875.68",Private Contractors,Other Agencies
Southend-on-Sea Borough Council,http://www.opendatacommunities.org/id/unitary-authority/southend,ED Adults & Communities,Adult Social Care,1294,ADVANCE HOUSING AND SUPPORT LTD T/A ADVANCE,03/03/2023,12073066,"18,287.64",Private Contractors,Other Agencies
Southend-on-Sea Borough Council,http://www.opendatacommunities.org/id/unitary-authority/southend,"ED Strategy, Change & Governance",Central Services,7130,AGILISYS LTD,03/03/2023,12073066,"9,050.00",Consultancy Services,Services
Southend-on-Sea Borough Council,http://www.opendatacommunities.org/id/unitary-authority/southend,ED Adults & Communities,Adult Social Care,1209,AIDAPT BATHROOMS LTD,03/03/2023,12073066,905,Tools And Equipment Purchase,Equipment Furniture And Materials
Southend-on-Sea Borough Council,http://www.opendatacommunities.org/id/unitary-authority/southend,ED Adults & Communities,Adult Social Care,1391,AKABA SOCIAL UK LTD,03/03/2023,12073066,"6,043.00",Private Contractors,Other Agencies
Southend-on-Sea Borough Council,http://www.opendatacommunities.org/id/unitary-authority/southend,ED Adults & Communities,Adult Social Care,1466,"AKHTAR LATIF, NCS SOLUTION T/A KIMBERLEY GRACE CARE HOME",03/03/2023,12073066,"1,500.00",COVID-19 Response,Other Agencies
Southend-on-Sea Borough Council,http://www.opendatacommunities.org/id/unitary-authority/southend,ED Adults & Communities,Adult Social Care,1070,"AKHTAR LATIF, NCS SOLUTION T/A KIMBERLEY GRACE CARE HOME",03/03/2023,12073066,"18,446.40",Private Contractors,Other Agencies
Southend-on-Sea Borough Council,http://www.opendatacommunities.org/id/unitary-authority/southend,ED Adults & Communities,Adult Social Care,1083,"AKHTAR LATIF, NCS SOLUTION T/A KIMBERLEY GRACE CARE HOME",03/03/2023,12073066,"3,046.95",Private Contractors,Other Agencies
Southend-on-Sea Borough Council,http://www.opendatacommunities.org/id/unitary-authority/southend,ED Adults & Communities,Adult Social Care,1192,"AKHTAR LATIF, NCS SOLUTION T/A KIMBERLEY GRACE CARE HOME",03/03/2023,12073066,"2,305.80",Private Contractors,Other Agencies
Southend-on-Sea Borough Council,http://www.opendatacommunities.org/id/unitary-authority/southend,ED Adults & Communities,Adult Social Care,1260,ALBANY HOUSE,03/03/2023,12073066,"3,200.00",Private Contractors,Other Agencies
Southend-on-Sea Borough Council,http://www.opendatacommunities.org/id/unitary-authority/southend,ED Adults & Communities,Adult Social Care,1070,AMA GENERIC LTD,03/03/2023,12073066,"11,435.48",Private Contractors,Other Agencies
Southend-on-Sea Borough Council,http://www.opendatacommunities.org/id/unitary-authority/southend,ED Adults & Communities,Adult Social Care,1079,AMA GENERIC LTD,03/03/2023,12073066,"2,305.80",Private Contractors,Other Agencies
Southend-on-Sea Borough Council,http://www.opendatacommunities.org/id/unitary-authority/southend,ED Adults & Communities,Adult Social Care,1083,AMA GENERIC LTD,03/03/2023,12073066,"16,799.40",Private Contractors,Other Agencies
Southend-on-Sea Borough Council,http://www.opendatacommunities.org/id/unitary-authority/southend,ED Adults & Communities,Adult Social Care,1192,AMA GENERIC LTD,03/03/2023,12073066,"2,305.80",Private Contractors,Other Agencies
Southend-on-Sea Borough Council,http://www.opendatacommunities.org/id/unitary-authority/southend,ED Adults & Communities,Adult Social Care,1260,AMA GENERIC LTD,03/03/2023,12073066,"2,305.80",Private Contractors,Other Agencies
Southend-on-Sea Borough Council,http://www.opendatacommunities.org/id/unitary-authority/southend,ED Adults & Communities,Adult Social Care,1386,AMA GENERIC LTD,03/03/2023,12073066,"2,305.80",Private Contractors,Other Agencies
Southend-on-Sea Borough Council,http://www.opendatacommunities.org/id/unitary-authority/southend,ED Adults & Communities,Adult Social Care,1266,REDACTED PERSONAL DATA,03/03/2023,12073066,"1,327.48",Private Contractors,Other Agencies
Southend-on-Sea Borough Council,http://www.opendatacommunities.org/id/unitary-authority/southend,ED Adults & Communities,Adult Social Care,1266,REDACTED PERSONAL DATA,03/03/2023,12073066,506.42,Private Contractors,Other Agencies
Southend-on-Sea Borough Council,http://www.opendatacommunities.org/id/unitary-authority/southend,ED Adults & Communities,Adult Social Care,1391,ARAN HOMES LTD,03/03/2023,12073066,"12,570.32",Private Contractors,Other Agencies
Southend-on-Sea Borough Council,http://www.opendatacommunities.org/id/unitary-authority/southend,ED Adults & Communities,Adult Social Care,1644,ARAN HOMES LTD,03/03/2023,12073066,"1,915.76",Private Contractors,Other Agencies
Southend-on-Sea Borough Council,http://www.opendatacommunities.org/id/unitary-authority/southend,ED Adults & Communities, Public Health,1512,ASPIRATIONS DAY PROGRAM,03/03/2023,12073066,"16,800.00",Other Agencies,Other Agencies
Southend-on-Sea Borough Council,http://www.opendatacommunities.org/id/unitary-authority/southend,ED Adults & Communities,Adult Social Care,1070,ASTRAL LODGE LTD,03/03/2023,12073066,"18,189.54",Private Contractors,Other Agencies
Southend-on-Sea Borough Council,http://www.opendatacommunities.org/id/unitary-authority/southend,ED Adults & Communities,Adult Social Care,1083,ASTRAL LODGE LTD,03/03/2023,12073066,"2,305.80",Private Contractors,Other Agencies
Southend-on-Sea Borough Council,http://www.opendatacommunities.org/id/unitary-authority/southend,ED Adults & Communities,Adult Social Care,1641,AVONDALE CARE HOME LTD,03/03/2023,12073066,"6,279.00",Private Contractors,Other Agencies
Southend-on-Sea Borough Council,http://www.opendatacommunities.org/id/unitary-authority/southend,ED Adults & Communities,Adult Social Care,1266,REDACTED PERSONAL DATA,03/03/2023,12073066,"1,646.40",Private Contractors,Other Agencies
Southend-on-Sea Borough Council,http://www.opendatacommunities.org/id/unitary-authority/southend,ED Adults & Communities,Adult Social Care,1266,REDACTED PERSONAL DATA,03/03/2023,12073066,"2,973.88",Private Contractors,Other Agencies
Southend-on-Sea Borough Council,http://www.opendatacommunities.org/id/unitary-authority/southend,ED Adults & Communities,Adult Social Care,1079,BENSLOW MANAGEMENT COMPANY LIMITED,03/03/2023,12073066,"2,877.64",Private Contractors,Other Agencies
Southend-on-Sea Borough Council,http://www.opendatacommunities.org/id/unitary-authority/southend,ED Children & Public Health,Children And Education Services,3010,BEST FOR TRAINING LTD,03/03/2023,12073066,750,3rd Party training,Services
Southend-on-Sea Borough Council,http://www.opendatacommunities.org/id/unitary-authority/southend,ED Adults & Communities,Adult Social Care,1466,BIFFINS RESIDENTIAL HOME,03/03/2023,12073066,"3,000.00",COVID-19 Response,Other Agencies
Southend-on-Sea Borough Council,http://www.opendatacommunities.org/id/unitary-authority/southend,ED Adults & Communities,Adult Social Care,1070,BIFFINS RESIDENTIAL HOME,03/03/2023,12073066,"11,529.00",Private Contractors,Other Agencies
Southend-on-Sea Borough Council,http://www.opendatacommunities.org/id/unitary-authority/southend,ED Adults & Communities,Adult Social Care,1079,BIFFINS RESIDENTIAL HOME,03/03/2023,12073066,"2,561.44",Private Contractors,Other Agencies
Southend-on-Sea Borough Council,http://www.opendatacommunities.org/id/unitary-authority/southend,ED Adults & Communities,Adult Social Care,1115,BIFFINS RESIDENTIAL HOME,03/03/2023,12073066,"4,720.09",Contractor - Programmed Works,Other Agencies
Southend-on-Sea Borough Council,http://www.opendatacommunities.org/id/unitary-authority/southend,ED Adults & Communities,Adult Social Care,1611,BLACK SWAN INTERNATIONAL LTD,03/03/2023,12073066,"3,800.00",Private Contractors,Other Agencies
Southend-on-Sea Borough Council,http://www.opendatacommunities.org/id/unitary-authority/southend,ED Adults & Communities,Adult Social Care,1065,BOSCOMBE LODGE NURSING HOME,03/03/2023,12073066,"7,468.24",Private Contractors,Other Agencies
Southend-on-Sea Borough Council,http://www.opendatacommunities.org/id/unitary-authority/southend,ED Adults & Communities,Adult Social Care,1068,BOSCOMBE LODGE NURSING HOME,03/03/2023,12073066,"2,488.08",Private Contractors,Other Agencies
Southend-on-Sea Borough Council,http://www.opendatacommunities.org/id/unitary-authority/southend,ED Adults & Communities,Adult Social Care,1083,BOSCOMBE LODGE NURSING HOME,03/03/2023,12073066,"16,294.88",Private Contractors,Other Agencies
Southend-on-Sea Borough Council,http://www.opendatacommunities.org/id/unitary-authority/southend,ED Adults & Communities,Adult Social Care,1070,BOULEVARD LODGE RESIDENTIAL CARE HOME,03/03/2023,12073066,"26,046.43",Private Contractors,Other Agencies
Southend-on-Sea Borough Council,http://www.opendatacommunities.org/id/unitary-authority/southend,ED Adults & Communities,Adult Social Care,1070,BRAEMAR LODGE,03/03/2023,12073066,"9,603.72",Private Contractors,Other Agencies
Southend-on-Sea Borough Council,http://www.opendatacommunities.org/id/unitary-authority/southend,ED Adults & Communities,Adult Social Care,1070,BRAMBLES CARE HOME LIMITED,03/03/2023,12073066,"3,600.00",Private Contractors,Other Agencies
Southend-on-Sea Borough Council,http://www.opendatacommunities.org/id/unitary-authority/southend,ED Adults & Communities,Adult Social Care,1083,BRAMBLES CARE HOME LIMITED,03/03/2023,12073066,"3,000.00",Private Contractors,Other Agencies
Southend-on-Sea Borough Council,http://www.opendatacommunities.org/id/unitary-authority/southend,ED Adults & Communities,Adult Social Care,1065,BRITANNIA LODGE NURSING HOME,03/03/2023,12073066,"4,292.96",Private Contractors,Other Agencies
Southend-on-Sea Borough Council,http://www.opendatacommunities.org/id/unitary-authority/southend,ED Adults & Communities,Adult Social Care,1380,BRITANNIA LODGE NURSING HOME,03/03/2023,12073066,"2,548.00",Private Contractors,Other Agencies
Southend-on-Sea Borough Council,http://www.opendatacommunities.org/id/unitary-authority/southend,ED Adults & Communities,Adult Social Care,1070,BROOKLANDS CARE HOME LTD,03/03/2023,12073066,"10,279.08",Private Contractors,Other Agencies
Southend-on-Sea Borough Council,http://www.opendatacommunities.org/id/unitary-authority/southend,ED Adults & Communities,Adult Social Care,1079,BROOKLANDS CARE HOME LTD,03/03/2023,12073066,"2,305.80",Private Contractors,Other Agencies
Southend-on-Sea Borough Council,http://www.opendatacommunities.org/id/unitary-authority/southend,ED Adults & Communities,Adult Social Care,1083,BROOKLANDS CARE HOME LTD,03/03/2023,12073066,"1,787.14",Private Contractors,Other Agencies
Southend-on-Sea Borough Council,http://www.opendatacommunities.org/id/unitary-authority/southend,ED Adults & Communities,Adult Social Care,1105,BROOKS CARE & NURSING SERVICES LTD,03/03/2023,12073066,"4,305.09",Private Contractors,Other Agencies
Southend-on-Sea Borough Council,http://www.opendatacommunities.org/id/unitary-authority/southend,ED Adults & Communities,Adult Social Care,1260,BROOKVALE,03/03/2023,12073066,"2,700.88",Private Contractors,Other Agencies
Southend-on-Sea Borough Council,http://www.opendatacommunities.org/id/unitary-authority/southend,"ED Strategy, Change & Governance",Central Services,7105,BROWNE JACOBSON LLP OFFICE ACCOUNT,03/03/2023,12073066,"13,245.00",Court Costs And Legal Fees,Services
Southend-on-Sea Borough Council,http://www.opendatacommunities.org/id/unitary-authority/southend,ED Children & Public Health,Children And Education Services,3250,CANARY HOUSE CARE LIMITED,03/03/2023,12073066,"12,621.42",Private Contractors,Other Agencies
Southend-on-Sea Borough Council,http://www.opendatacommunities.org/id/unitary-authority/southend,ED Adults & Communities,Adult Social Care,1070,CANARYFORD LTD T/A PARKLANDS NURSING HOME,03/03/2023,12073066,"2,356.44",Private Contractors,Other Agencies
Southend-on-Sea Borough Council,http://www.opendatacommunities.org/id/unitary-authority/southend,ED Adults & Communities,Adult Social Care,1070,CARE CONCERN (FRINTON) LTD T/A BEAUMONT MANOR CARE HOME,03/03/2023,12073066,"2,400.00",Private Contractors,Other Agencies
Southend-on-Sea Borough Council,http://www.opendatacommunities.org/id/unitary-authority/southend,ED Adults & Communities,Adult Social Care,1260,CARE IN STYLE T/AS LIGHTHOUSE,03/03/2023,12073066,"32,061.68",Private Contractors,Other Agencies
Southend-on-Sea Borough Council,http://www.opendatacommunities.org/id/unitary-authority/southend,ED Adults & Communities,Adult Social Care,1105,CARING CARERS LTD,03/03/2023,12073066,"9,257.75",Private Contractors,Other Agencies
Southend-on-Sea Borough Council,http://www.opendatacommunities.org/id/unitary-authority/southend,ED Adults & Communities,Adult Social Care,1205,CARING CARERS LTD,03/03/2023,12073066,"1,773.65",Private Contractors,Other Agencies
Southend-on-Sea Borough Council,http://www.opendatacommunities.org/id/unitary-authority/southend,ED Adults & Communities,Adult Social Care,1070,CATHERINE MILLER HOUSE LTD,03/03/2023,12073066,"6,319.60",Private Contractors,Other Agencies
Southend-on-Sea Borough Council,http://www.opendatacommunities.org/id/unitary-authority/southend,ED Adults & Communities,Adult Social Care,1079,CATHERINE MILLER HOUSE LTD,03/03/2023,12073066,"3,780.00",Private Contractors,Other Agencies
Southend-on-Sea Borough Council,http://www.opendatacommunities.org/id/unitary-authority/southend,ED Adults & Communities,Adult Social Care,1083,CATHERINE MILLER HOUSE LTD,03/03/2023,12073066,"6,171.43",Private Contractors,Other Agencies
Southend-on-Sea Borough Council,http://www.opendatacommunities.org/id/unitary-authority/southend,ED Children & Public Health,Children And Education Services,3250,CHANNELS AND CHOICES KENT LLP,03/03/2023,12073066,"42,759.40",Private Contractors,Other Agencies
Southend-on-Sea Borough Council,http://www.opendatacommunities.org/id/unitary-authority/southend,ED Children & Public Health,Children And Education Services,3250,CHANNELS AND CHOICES KENT LLP,03/03/2023,12073066,"21,384.60",Private Contractors,Other Agencies
Southend-on-Sea Borough Council,http://www.opendatacommunities.org/id/unitary-authority/southend,ED Finance & Resources,Central Services,2156,CHELMSFORD CITY COUNCIL,03/03/2023,12073066,"19,233.72",Corporate IT Applications,Communications And Computing
Southend-on-Sea Borough Council,http://www.opendatacommunities.org/id/unitary-authority/southend,ED Adults & Communities,Adult Social Care,1391,CHOICE SUPPORT,03/03/2023,12073066,"8,210.72",Private Contractors,Other Agencies
Southend-on-Sea Borough Council,http://www.opendatacommunities.org/id/unitary-authority/southend,ED Adults & Communities,Adult Social Care,1644,CHOICE SUPPORT,03/03/2023,12073066,"1,876.84",Private Contractors,Other Agencies
Southend-on-Sea Borough Council,http://www.opendatacommunities.org/id/unitary-authority/southend,ED Adults & Communities,Adult Social Care,1391,CHOICE SUPPORT,03/03/2023,12073066,"1,876.84",Private Contractors,Other Agencies
Southend-on-Sea Borough Council,http://www.opendatacommunities.org/id/unitary-authority/southend,ED Adults & Communities,Adult Social Care,1070,CHURCHGATE HEALTHCARE LTD T/AS CEDARS CARE CENTRE,03/03/2023,12073066,"20,510.16",Private Contractors,Other Agencies
Southend-on-Sea Borough Council,http://www.opendatacommunities.org/id/unitary-authority/southend,ED Adults & Communities,Adult Social Care,1641,CHURCHGATE HEALTHCARE LTD T/AS CEDARS CARE CENTRE,03/03/2023,12073066,"3,600.00",Private Contractors,Other Agencies
Southend-on-Sea Borough Council,http://www.opendatacommunities.org/id/unitary-authority/southend,ED Children & Public Health,Children And Education Services,3250,COMPASS COMMUNITY LTD T/A COMPASS FOSTERING LONDON LTD,03/03/2023,12073066,"1,197.80",Private Contractors,Other Agencies
Southend-on-Sea Borough Council,http://www.opendatacommunities.org/id/unitary-authority/southend,ED Children & Public Health,Children And Education Services,3250,COMPASS COMMUNITY LTD T/A COMPASS FOSTERING LONDON LTD,03/03/2023,12073066,"1,228.60",Private Contractors,Other Agencies
Southend-on-Sea Borough Council,http://www.opendatacommunities.org/id/unitary-authority/southend,Neighbourhoods & Environment,Central Services,9008,CONCEPT ENGINEERING CONSULTANTS LTD T/A CON SITE INVESTIGATION,03/03/2023,12073066,"22,952.84",Main Contractor,Main Contractor
Southend-on-Sea Borough Council,http://www.opendatacommunities.org/id/unitary-authority/southend,Neighbourhoods & Environment,Central Services,9008,CONCEPT ENGINEERING CONSULTANTS LTD T/A CON SITE INVESTIGATION,03/03/2023,12073066,"32,426.90",Main Contractor,Main Contractor
Southend-on-Sea Borough Council,http://www.opendatacommunities.org/id/unitary-authority/southend,ED Adults & Communities,Adult Social Care,1266,REDACTED PERSONAL DATA,03/03/2023,12073066,"2,132.76",Private Contractors,Other Agencies
Southend-on-Sea Borough Council,http://www.opendatacommunities.org/id/unitary-authority/southend,ED Adults & Communities,Adult Social Care,1070,CORVELL HEALTH CARE LTD,03/03/2023,12073066,"8,276.24",Private Contractors,Other Agencies
Southend-on-Sea Borough Council,http://www.opendatacommunities.org/id/unitary-authority/southend,ED Adults & Communities,Adult Social Care,1079,CORVELL HEALTH CARE LTD,03/03/2023,12073066,"2,305.80",Private Contractors,Other Agencies
Southend-on-Sea Borough Council,http://www.opendatacommunities.org/id/unitary-authority/southend,ED Adults & Communities,Adult Social Care,1070,COUNTRY COURT CARE HOMES 2 LIMITED,03/03/2023,12073066,"7,600.00",Private Contractors,Other Agencies
Southend-on-Sea Borough Council,http://www.opendatacommunities.org/id/unitary-authority/southend,ED Adults & Communities,Adult Social Care,1260,CRAEGMOOR FCL NEW DIRECTIONS,03/03/2023,12073066,"5,356.96",Private Contractors,Other Agencies
Southend-on-Sea Borough Council,http://www.opendatacommunities.org/id/unitary-authority/southend,ED Adults & Communities,Adult Social Care,1070,CROWSTONE MANOR LTD,03/03/2023,12073066,"2,305.80",Private Contractors,Other Agencies
Southend-on-Sea Borough Council,http://www.opendatacommunities.org/id/unitary-authority/southend,ED Adults & Communities,Adult Social Care,1192,CUMBERLAND LODGE,03/03/2023,12073066,"4,418.96",Private Contractors,Other Agencies
Southend-on-Sea Borough Council,http://www.opendatacommunities.org/id/unitary-authority/southend,ED Adults & Communities,Adult Social Care,1386,CUMBERLAND LODGE,03/03/2023,12073066,"20,779.92",Private Contractors,Other Agencies
Southend-on-Sea Borough Council,http://www.opendatacommunities.org/id/unitary-authority/southend,"ED Strategy, Change & Governance",Central Services,8602,DAISY CORPORATE SERVICES TRADING LIMITED,03/03/2023,12073066,"13,663.82",Communications Telephone Rental,Communications And Computing
Southend-on-Sea Borough Council,http://www.opendatacommunities.org/id/unitary-authority/southend,ED Adults & Communities,Adult Social Care,1266,REDACTED PERSONAL DATA,03/03/2023,12073066,"4,410.28",Private Contractors,Other Agencies
Southend-on-Sea Borough Council,http://www.opendatacommunities.org/id/unitary-authority/southend,ED Adults & Communities,Adult Social Care,1266,REDACTED PERSONAL DATA,03/03/2023,12073066,"1,646.40",Private Contractors,Other Agencies
Southend-on-Sea Borough Council,http://www.opendatacommunities.org/id/unitary-authority/southend,ED Adults & Communities,Adult Social Care,1294,DIMENSIONS UK LTD,03/03/2023,12073066,"10,306.80",Private Contractors,Other Agencies
Southend-on-Sea Borough Council,http://www.opendatacommunities.org/id/unitary-authority/southend,ED Children & Public Health,Children And Education Services,3030,DUBLCHECK CLEANING SERVICES LIMITED,03/03/2023,12073066,675.35,Contract Cleaning,Cleaning And Domestic Supplies
Southend-on-Sea Borough Council,http://www.opendatacommunities.org/id/unitary-authority/southend,ED Children & Public Health,Children And Education Services,3030,DUBLCHECK CLEANING SERVICES LIMITED,03/03/2023,12073066,675.35,Contract Cleaning,Cleaning And Domestic Supplies
Southend-on-Sea Borough Council,http://www.opendatacommunities.org/id/unitary-authority/southend,ED Adults & Communities,Adult Social Care,1070,E & F ENTERPRISES LTD T/A PALMERSTON CARE HOME,03/03/2023,12073066,"17,593.84",Private Contractors,Other Agencies
Southend-on-Sea Borough Council,http://www.opendatacommunities.org/id/unitary-authority/southend,ED Adults & Communities,Adult Social Care,1083,E & F ENTERPRISES LTD T/A PALMERSTON CARE HOME,03/03/2023,12073066,"6,535.71",Private Contractors,Other Agencies
Southend-on-Sea Borough Council,http://www.opendatacommunities.org/id/unitary-authority/southend,ED Adults & Communities,Adult Social Care,1115,E & F ENTERPRISES LTD T/A PALMERSTON CARE HOME,03/03/2023,12073066,"2,600.00",Contractor - Programmed Works,Other Agencies
Southend-on-Sea Borough Council,http://www.opendatacommunities.org/id/unitary-authority/southend,ED Adults & Communities,Adult Social Care,1266,REDACTED PERSONAL DATA,03/03/2023,12073066,"1,327.48",Private Contractors,Other Agencies
Southend-on-Sea Borough Council,http://www.opendatacommunities.org/id/unitary-authority/southend,ED Adults & Communities,Adult Social Care,1260,ECO WINGS AND NIGHTS LIMITED,03/03/2023,12073066,"2,865.80",Private Contractors,Other Agencies
Southend-on-Sea Borough Council,http://www.opendatacommunities.org/id/unitary-authority/southend,ED Adults & Communities,Adult Social Care,1260,ELDERCROFT CARE HOME LTD,03/03/2023,12073066,"6,793.92",Private Contractors,Other Agencies
Southend-on-Sea Borough Council,http://www.opendatacommunities.org/id/unitary-authority/southend,ED Adults & Communities,Adult Social Care,1671,ELDERCROFT CARE HOME LTD,03/03/2023,12073066,"2,611.56",Private Contractors,Other Agencies
Southend-on-Sea Borough Council,http://www.opendatacommunities.org/id/unitary-authority/southend,ED Adults & Communities,Adult Social Care,1266,REDACTED PERSONAL DATA,03/03/2023,12073066,"1,884.96",Private Contractors,Other Agencies
Southend-on-Sea Borough Council,http://www.opendatacommunities.org/id/unitary-authority/southend,ED Adults & Communities,Adult Social Care,1466,ELGINCARE,03/03/2023,12073066,"1,500.00",COVID-19 Response,Other Agencies
Southend-on-Sea Borough Council,http://www.opendatacommunities.org/id/unitary-authority/southend,ED Adults & Communities,Adult Social Care,1070,ELGINCARE,03/03/2023,12073066,"13,505.40",Private Contractors,Other Agencies
Southend-on-Sea Borough Council,http://www.opendatacommunities.org/id/unitary-authority/southend,ED Adults & Communities,Adult Social Care,1079,ELGINCARE,03/03/2023,12073066,"2,305.80",Private Contractors,Other Agencies
Southend-on-Sea Borough Council,http://www.opendatacommunities.org/id/unitary-authority/southend,ED Adults & Communities,Adult Social Care,1083,ELGINCARE,03/03/2023,12073066,"6,835.05",Private Contractors,Other Agencies
Southend-on-Sea Borough Council,http://www.opendatacommunities.org/id/unitary-authority/southend,ED Adults & Communities,Adult Social Care,1115,ELGINCARE,03/03/2023,12073066,"2,305.80",Contractor - Programmed Works,Other Agencies
Southend-on-Sea Borough Council,http://www.opendatacommunities.org/id/unitary-authority/southend,ED Neighbourhoods & Environment,Environmental And Regulatory Services,4506,ERNEST DOE AND SONS LTD,03/03/2023,12073066,869.03,Tools And Equipment Repair And Maintenance,Equipment Furniture And Materials
Southend-on-Sea Borough Council,http://www.opendatacommunities.org/id/unitary-authority/southend,ED Adults & Communities,Adult Social Care,1260,ESSEX AUTISTIC SOCIETY,03/03/2023,12073066,"7,939.72",Private Contractors,Other Agencies
Southend-on-Sea Borough Council,http://www.opendatacommunities.org/id/unitary-authority/southend,ED Adults & Communities,Adult Social Care,1294,ESSEX AUTISTIC SOCIETY,03/03/2023,12073066,"7,147.40",Private Contractors,Other Agencies
Southend-on-Sea Borough Council,http://www.opendatacommunities.org/id/unitary-authority/southend,ED Adults & Communities,Adult Social Care,1260,ESSEX CARE CONSORTIUM LTD,03/03/2023,12073066,"10,498.84",Private Contractors,Other Agencies
Southend-on-Sea Borough Council,http://www.opendatacommunities.org/id/unitary-authority/southend,ED Adults & Communities,Adult Social Care,1391,ESSEX COUNTY COUNCIL,03/03/2023,12073066,614.4,Private Contractors,Other Agencies
Southend-on-Sea Borough Council,http://www.opendatacommunities.org/id/unitary-authority/southend,ED Neighbourhoods & Environment,Highways And Transport Services,5005,ESSEX COUNTY COUNCIL,03/03/2023,12073066,"1,535.20",Private Contractors,Other Agencies
Southend-on-Sea Borough Council,http://www.opendatacommunities.org/id/unitary-authority/southend,ED Adults & Communities,Adult Social Care,1386,EXCELLENCE CARE CO. LTD,03/03/2023,12073066,"5,600.00",Private Contractors,Other Agencies
Southend-on-Sea Borough Council,http://www.opendatacommunities.org/id/unitary-authority/southend,ED Adults & Communities,Adult Social Care,1391,EXCELLENCE CARE LTD,03/03/2023,12073066,"15,324.68",Private Contractors,Other Agencies
Southend-on-Sea Borough Council,http://www.opendatacommunities.org/id/unitary-authority/southend,ED Adults & Communities,Adult Social Care,1065,FERNBROOK CARE HOMES LTD,03/03/2023,12073066,"2,800.00",Private Contractors,Other Agencies
Southend-on-Sea Borough Council,http://www.opendatacommunities.org/id/unitary-authority/southend,ED Adults & Communities,Adult Social Care,1070,FERNBROOK CARE HOMES LTD,03/03/2023,12073066,"4,869.76",Private Contractors,Other Agencies
Southend-on-Sea Borough Council,http://www.opendatacommunities.org/id/unitary-authority/southend,ED Adults & Communities,Adult Social Care,1105,FIRST POINT 24 LTD,03/03/2023,12073066,"2,308.50",Private Contractors,Other Agencies
Southend-on-Sea Borough Council,http://www.opendatacommunities.org/id/unitary-authority/southend,ED Adults & Communities,Adult Social Care,1105,FIRST POINT 24 LTD,03/03/2023,12073066,"1,064.00",Private Contractors,Other Agencies
Southend-on-Sea Borough Council,http://www.opendatacommunities.org/id/unitary-authority/southend,ED Adults & Communities,Adult Social Care,1205,FIRST POINT 24 LTD,03/03/2023,12073066,"3,192.00",Private Contractors,Other Agencies
Southend-on-Sea Borough Council,http://www.opendatacommunities.org/id/unitary-authority/southend,ED Adults & Communities,Adult Social Care,1070,FITZROY,03/03/2023,12073066,"7,264.80",Private Contractors,Other Agencies
Southend-on-Sea Borough Council,http://www.opendatacommunities.org/id/unitary-authority/southend,ED Adults & Communities,Adult Social Care,1260,FITZROY,03/03/2023,12073066,"15,523.20",Private Contractors,Other Agencies
Southend-on-Sea Borough Council,http://www.opendatacommunities.org/id/unitary-authority/southend,ED Children & Public Health,Children And Education Services,3250,FLOURISH FOSTERING LIMITED,03/03/2023,12073066,"4,588.00",Private Contractors,Other Agencies
Southend-on-Sea Borough Council,http://www.opendatacommunities.org/id/unitary-authority/southend,ED Children & Public Health,Children And Education Services,3250,FLOURISH FOSTERING LIMITED,03/03/2023,12073066,"4,588.00",Private Contractors,Other Agencies
Southend-on-Sea Borough Council,http://www.opendatacommunities.org/id/unitary-authority/southend,ED Children & Public Health,Children And Education Services,3265,FOCUS MEDIA UK LTD,03/03/2023,12073066,"3,705.00",Non Staff Advertising,Services
Southend-on-Sea Borough Council,http://www.opendatacommunities.org/id/unitary-authority/southend,ED Adults & Communities,Adult Social Care,1185,GCH (MIDLANDS) LTD T/A BLETCHLEY HOUSE,03/03/2023,12073066,"2,800.28",Private Contractors,Other Agencies
Southend-on-Sea Borough Council,http://www.opendatacommunities.org/id/unitary-authority/southend,ED Adults & Communities,Adult Social Care,1070,GEMSTONE PROPERTIES LTD,03/03/2023,12073066,"5,274.64",Private Contractors,Other Agencies
Southend-on-Sea Borough Council,http://www.opendatacommunities.org/id/unitary-authority/southend,ED Adults & Communities,Adult Social Care,1386,GEMSTONE PROPERTIES LTD,03/03/2023,12073066,"5,471.76",Private Contractors,Other Agencies
Southend-on-Sea Borough Council,http://www.opendatacommunities.org/id/unitary-authority/southend,ED Adults & Communities,Adult Social Care,1641,GEMSTONE PROPERTIES LTD,03/03/2023,12073066,"13,428.80",Private Contractors,Other Agencies
Southend-on-Sea Borough Council,http://www.opendatacommunities.org/id/unitary-authority/southend,"ED Strategy, Change & Governance",Central Services,7125,GOODSHAPE UK LIMITED,03/03/2023,12073066,"8,242.00",Medical And Health Services,Services
Southend-on-Sea Borough Council,http://www.opendatacommunities.org/id/unitary-authority/southend,ED Finance & Resources,Central Services,8605,GRAHAM HIGH GROUP LIMITED,03/03/2023,12073066,555.88,Professional Fees,Services
Southend-on-Sea Borough Council,http://www.opendatacommunities.org/id/unitary-authority/southend,ED Finance & Resources,Central Services,8605,GRAHAM HIGH GROUP LIMITED,03/03/2023,12073066,575.02,Professional Fees,Services
Southend-on-Sea Borough Council,http://www.opendatacommunities.org/id/unitary-authority/southend,ED Finance & Resources,Central Services,8605,GRAHAM HIGH GROUP LIMITED,03/03/2023,12073066,594.19,Professional Fees,Services
Southend-on-Sea Borough Council,http://www.opendatacommunities.org/id/unitary-authority/southend,ED Adults & Communities,Adult Social Care,1070,GRANDVILLE LODGE LIMITED,03/03/2023,12073066,"24,574.81",Private Contractors,Other Agencies
Southend-on-Sea Borough Council,http://www.opendatacommunities.org/id/unitary-authority/southend,ED Adults & Communities,Adult Social Care,1079,GRANDVILLE LODGE LIMITED,03/03/2023,12073066,"2,900.52",Private Contractors,Other Agencies
Southend-on-Sea Borough Council,http://www.opendatacommunities.org/id/unitary-authority/southend,ED Adults & Communities,Adult Social Care,1065,GREAT WHEATLEY LTD,03/03/2023,12073066,"3,089.60",Private Contractors,Other Agencies
Southend-on-Sea Borough Council,http://www.opendatacommunities.org/id/unitary-authority/southend,ED Adults & Communities,Adult Social Care,1083,GREAT WHEATLEY LTD,03/03/2023,12073066,"1,189.50",Private Contractors,Other Agencies
Southend-on-Sea Borough Council,http://www.opendatacommunities.org/id/unitary-authority/southend,ED Adults & Communities,Adult Social Care,1070,HALLMARK CARE HOMES LTD,03/03/2023,12073066,"30,388.71",Private Contractors,Other Agencies
Southend-on-Sea Borough Council,http://www.opendatacommunities.org/id/unitary-authority/southend,ED Adults & Communities,Adult Social Care,1209,HARVEST HEALTHCARE LIMITED,03/03/2023,12073066,-980,Tools And Equipment Purchase,Equipment Furniture And Materials
Southend-on-Sea Borough Council,http://www.opendatacommunities.org/id/unitary-authority/southend,ED Adults & Communities,Adult Social Care,1209,HARVEST HEALTHCARE LIMITED,03/03/2023,12073066,"1,184.46",Tools And Equipment Purchase,Equipment Furniture And Materials
Southend-on-Sea Borough Council,http://www.opendatacommunities.org/id/unitary-authority/southend,ED Adults & Communities,Adult Social Care,1070,HAVENGORE HOUSE RESIDENTIAL CARE HOME T/A MISTIS LTD,03/03/2023,12073066,"30,931.65",Private Contractors,Other Agencies
Southend-on-Sea Borough Council,http://www.opendatacommunities.org/id/unitary-authority/southend,ED Adults & Communities,Adult Social Care,1079,HAVENGORE HOUSE RESIDENTIAL CARE HOME T/A MISTIS LTD,03/03/2023,12073066,"7,307.67",Private Contractors,Other Agencies
Southend-on-Sea Borough Council,http://www.opendatacommunities.org/id/unitary-authority/southend,ED Adults & Communities,Adult Social Care,1351,HAYS SPECIALIST RECRUITMENT LTD RECEIPTS RECRUITMENT FILE ONLY,03/03/2023,12073066,"1,336.44",Agency Staff,Direct Employee Expenses
Southend-on-Sea Borough Council,http://www.opendatacommunities.org/id/unitary-authority/southend,ED Adults & Communities,Adult Social Care,1365,HAYS SPECIALIST RECRUITMENT LTD RECEIPTS RECRUITMENT FILE ONLY,03/03/2023,12073066,"1,561.40",Agency Staff,Direct Employee Expenses
Southend-on-Sea Borough Council,http://www.opendatacommunities.org/id/unitary-authority/southend,ED Adults & Communities,Adult Social Care,1365,HAYS SPECIALIST RECRUITMENT LTD RECEIPTS RECRUITMENT FILE ONLY,03/03/2023,12073066,"1,348.36",Agency Staff,Direct Employee Expenses
Southend-on-Sea Borough Council,http://www.opendatacommunities.org/id/unitary-authority/southend,ED Adults & Communities,Adult Social Care,1365,HAYS SPECIALIST RECRUITMENT LTD RECEIPTS RECRUITMENT FILE ONLY,03/03/2023,12073066,"1,108.25",Agency Staff,Direct Employee Expenses
Southend-on-Sea Borough Council,http://www.opendatacommunities.org/id/unitary-authority/southend,ED Adults & Communities,Adult Social Care,1490,HAYS SPECIALIST RECRUITMENT LTD RECEIPTS RECRUITMENT FILE ONLY,03/03/2023,12073066,"1,743.90",Agency Staff,Direct Employee Expenses
Southend-on-Sea Borough Council,http://www.opendatacommunities.org/id/unitary-authority/southend,ED Adults & Communities,Adult Social Care,1490,HAYS SPECIALIST RECRUITMENT LTD RECEIPTS RECRUITMENT FILE ONLY,03/03/2023,12073066,871.95,Agency Staff,Direct Employee Expenses
Southend-on-Sea Borough Council,http://www.opendatacommunities.org/id/unitary-authority/southend,ED Adults & Communities,Adult Social Care,1180,HAYS SPECIALIST RECRUITMENT LTD RECEIPTS RECRUITMENT FILE ONLY,03/03/2023,12073066,695.34,Agency Staff,Direct Employee Expenses
Southend-on-Sea Borough Council,http://www.opendatacommunities.org/id/unitary-authority/southend,ED Adults & Communities,Adult Social Care,1490,HAYS SPECIALIST RECRUITMENT LTD RECEIPTS RECRUITMENT FILE ONLY,03/03/2023,12073066,735.62,Agency Staff,Direct Employee Expenses
Southend-on-Sea Borough Council,http://www.opendatacommunities.org/id/unitary-authority/southend,ED Adults & Communities,Adult Social Care,1365,HAYS SPECIALIST RECRUITMENT LTD RECEIPTS RECRUITMENT FILE ONLY,03/03/2023,12073066,"1,354.50",Agency Staff,Direct Employee Expenses
Southend-on-Sea Borough Council,http://www.opendatacommunities.org/id/unitary-authority/southend,ED Adults & Communities,Adult Social Care,1461,HAYS SPECIALIST RECRUITMENT LTD RECEIPTS RECRUITMENT FILE ONLY,03/03/2023,12073066,"2,605.20",Agency Staff,Direct Employee Expenses
Southend-on-Sea Borough Council,http://www.opendatacommunities.org/id/unitary-authority/southend,ED Adults & Communities,Adult Social Care,1025,HAYS SPECIALIST RECRUITMENT LTD RECEIPTS RECRUITMENT FILE ONLY,03/03/2023,12073066,"5,130.00",Agency Staff,Direct Employee Expenses
Southend-on-Sea Borough Council,http://www.opendatacommunities.org/id/unitary-authority/southend,ED Adults & Communities,Adult Social Care,1352,HAYS SPECIALIST RECRUITMENT LTD RECEIPTS RECRUITMENT FILE ONLY,03/03/2023,12073066,"1,336.44",Agency Staff,Direct Employee Expenses
Southend-on-Sea Borough Council,http://www.opendatacommunities.org/id/unitary-authority/southend,ED Adults & Communities,Adult Social Care,1060,HAYS SPECIALIST RECRUITMENT LTD RECEIPTS RECRUITMENT FILE ONLY,03/03/2023,12073066,"1,336.44",Agency Staff,Direct Employee Expenses
Southend-on-Sea Borough Council,http://www.opendatacommunities.org/id/unitary-authority/southend,ED Adults & Communities,Adult Social Care,1231,HAYS SPECIALIST RECRUITMENT LTD RECEIPTS RECRUITMENT FILE ONLY,03/03/2023,12073066,"1,071.60",Agency Staff,Direct Employee Expenses
Southend-on-Sea Borough Council,http://www.opendatacommunities.org/id/unitary-authority/southend,ED Adults & Communities,Adult Social Care,1350,HAYS SPECIALIST RECRUITMENT LTD RECEIPTS RECRUITMENT FILE ONLY,03/03/2023,12073066,"1,336.44",Agency Staff,Direct Employee Expenses
Southend-on-Sea Borough Council,http://www.opendatacommunities.org/id/unitary-authority/southend,ED Adults & Communities,Adult Social Care,1365,HAYS SPECIALIST RECRUITMENT LTD RECEIPTS RECRUITMENT FILE ONLY,03/03/2023,12073066,"1,561.40",Agency Staff,Direct Employee Expenses
Southend-on-Sea Borough Council,http://www.opendatacommunities.org/id/unitary-authority/southend,ED Adults & Communities,Adult Social Care,1351,HAYS SPECIALIST RECRUITMENT LTD RECEIPTS RECRUITMENT FILE ONLY,03/03/2023,12073066,"1,336.44",Agency Staff,Direct Employee Expenses
Southend-on-Sea Borough Council,http://www.opendatacommunities.org/id/unitary-authority/southend,ED Adults & Communities,Adult Social Care,1365,HAYS SPECIALIST RECRUITMENT LTD RECEIPTS RECRUITMENT FILE ONLY,03/03/2023,12073066,"1,336.44",Agency Staff,Direct Employee Expenses
Southend-on-Sea Borough Council,http://www.opendatacommunities.org/id/unitary-authority/southend,ED Adults & Communities,Adult Social Care,1051,HAYS SPECIALIST RECRUITMENT LTD RECEIPTS RECRUITMENT FILE ONLY,03/03/2023,12073066,"1,448.92",Agency Staff,Direct Employee Expenses
Southend-on-Sea Borough Council,http://www.opendatacommunities.org/id/unitary-authority/southend,ED Adults & Communities,Adult Social Care,1051,HAYS SPECIALIST RECRUITMENT LTD RECEIPTS RECRUITMENT FILE ONLY,03/03/2023,12073066,744.04,Agency Staff,Direct Employee Expenses
Southend-on-Sea Borough Council,http://www.opendatacommunities.org/id/unitary-authority/southend,ED Adults & Communities,Adult Social Care,1051,HAYS SPECIALIST RECRUITMENT LTD RECEIPTS RECRUITMENT FILE ONLY,03/03/2023,12073066,"1,336.44",Agency Staff,Direct Employee Expenses
Southend-on-Sea Borough Council,http://www.opendatacommunities.org/id/unitary-authority/southend,ED Adults & Communities,Adult Social Care,1180,HAYS SPECIALIST RECRUITMENT LTD RECEIPTS RECRUITMENT FILE ONLY,03/03/2023,12073066,"1,072.52",Agency Staff,Direct Employee Expenses
Southend-on-Sea Borough Council,http://www.opendatacommunities.org/id/unitary-authority/southend,ED Adults & Communities,Adult Social Care,1342,HAYS SPECIALIST RECRUITMENT LTD RECEIPTS RECRUITMENT FILE ONLY,03/03/2023,12073066,"3,192.00",Agency Staff,Direct Employee Expenses
Southend-on-Sea Borough Council,http://www.opendatacommunities.org/id/unitary-authority/southend,ED Adults & Communities,Adult Social Care,1342,HAYS SPECIALIST RECRUITMENT LTD RECEIPTS RECRUITMENT FILE ONLY,03/03/2023,12073066,"1,710.00",Agency Staff,Direct Employee Expenses
Southend-on-Sea Borough Council,http://www.opendatacommunities.org/id/unitary-authority/southend,ED Adults & Communities,Adult Social Care,1365,HAYS SPECIALIST RECRUITMENT LTD RECEIPTS RECRUITMENT FILE ONLY,03/03/2023,12073066,"1,321.64",Agency Staff,Direct Employee Expenses
Southend-on-Sea Borough Council,http://www.opendatacommunities.org/id/unitary-authority/southend,ED Adults & Communities,Cultural And Related Services,4120,HAYS SPECIALIST RECRUITMENT LTD RECEIPTS RECRUITMENT FILE ONLY,03/03/2023,12073066,693.4,Agency Staff,Direct Employee Expenses
Southend-on-Sea Borough Council,http://www.opendatacommunities.org/id/unitary-authority/southend,ED Adults & Communities,Cultural And Related Services,4120,HAYS SPECIALIST RECRUITMENT LTD RECEIPTS RECRUITMENT FILE ONLY,03/03/2023,12073066,693.4,Agency Staff,Direct Employee Expenses
Southend-on-Sea Borough Council,http://www.opendatacommunities.org/id/unitary-authority/southend,ED Adults & Communities,Cultural And Related Services,4120,HAYS SPECIALIST RECRUITMENT LTD RECEIPTS RECRUITMENT FILE ONLY,03/03/2023,12073066,763.58,Agency Staff,Direct Employee Expenses
Southend-on-Sea Borough Council,http://www.opendatacommunities.org/id/unitary-authority/southend,ED Adults & Communities,Cultural And Related Services,4120,HAYS SPECIALIST RECRUITMENT LTD RECEIPTS RECRUITMENT FILE ONLY,03/03/2023,12073066,710.29,Agency Staff,Direct Employee Expenses
Southend-on-Sea Borough Council,http://www.opendatacommunities.org/id/unitary-authority/southend,ED Adults & Communities,Cultural And Related Services,4120,HAYS SPECIALIST RECRUITMENT LTD RECEIPTS RECRUITMENT FILE ONLY,03/03/2023,12073066,720.02,Agency Staff,Direct Employee Expenses
Southend-on-Sea Borough Council,http://www.opendatacommunities.org/id/unitary-authority/southend,ED Adults & Communities,Cultural And Related Services,4120,HAYS SPECIALIST RECRUITMENT LTD RECEIPTS RECRUITMENT FILE ONLY,03/03/2023,12073066,617.25,Agency Staff,Direct Employee Expenses
Southend-on-Sea Borough Council,http://www.opendatacommunities.org/id/unitary-authority/southend,ED Adults & Communities,Cultural And Related Services,4120,HAYS SPECIALIST RECRUITMENT LTD RECEIPTS RECRUITMENT FILE ONLY,03/03/2023,12073066,628.74,Agency Staff,Direct Employee Expenses
Southend-on-Sea Borough Council,http://www.opendatacommunities.org/id/unitary-authority/southend,ED Adults & Communities,Cultural And Related Services,4522,HAYS SPECIALIST RECRUITMENT LTD RECEIPTS RECRUITMENT FILE ONLY,03/03/2023,12073066,"3,420.00",Agency Staff,Direct Employee Expenses
Southend-on-Sea Borough Council,http://www.opendatacommunities.org/id/unitary-authority/southend,ED Adults & Communities,Cultural And Related Services,4522,HAYS SPECIALIST RECRUITMENT LTD RECEIPTS RECRUITMENT FILE ONLY,03/03/2023,12073066,"3,420.00",Agency Staff,Direct Employee Expenses
Southend-on-Sea Borough Council,http://www.opendatacommunities.org/id/unitary-authority/southend,ED Adults & Communities,Housing Services,1011,HAYS SPECIALIST RECRUITMENT LTD RECEIPTS RECRUITMENT FILE ONLY,03/03/2023,12073066,"2,625.35",Agency Staff,Direct Employee Expenses
Southend-on-Sea Borough Council,http://www.opendatacommunities.org/id/unitary-authority/southend,ED Adults & Communities,Housing Services,1011,HAYS SPECIALIST RECRUITMENT LTD RECEIPTS RECRUITMENT FILE ONLY,03/03/2023,12073066,"1,308.66",Agency Staff,Direct Employee Expenses
Southend-on-Sea Borough Council,http://www.opendatacommunities.org/id/unitary-authority/southend,ED Children & Public Health,Adult Social Care,1035,HAYS SPECIALIST RECRUITMENT LTD RECEIPTS RECRUITMENT FILE ONLY,03/03/2023,12073066,"1,421.75",Agency Staff,Direct Employee Expenses
Southend-on-Sea Borough Council,http://www.opendatacommunities.org/id/unitary-authority/southend,ED Children & Public Health,Children And Education Services,3790,HAYS SPECIALIST RECRUITMENT LTD RECEIPTS RECRUITMENT FILE ONLY,03/03/2023,12073066,"1,564.50",Agency Staff,Direct Employee Expenses
Southend-on-Sea Borough Council,http://www.opendatacommunities.org/id/unitary-authority/southend,ED Children & Public Health,Children And Education Services,3790,HAYS SPECIALIST RECRUITMENT LTD RECEIPTS RECRUITMENT FILE ONLY,03/03/2023,12073066,"1,336.44",Agency Staff,Direct Employee Expenses
Southend-on-Sea Borough Council,http://www.opendatacommunities.org/id/unitary-authority/southend,ED Children & Public Health,Children And Education Services,3790,HAYS SPECIALIST RECRUITMENT LTD RECEIPTS RECRUITMENT FILE ONLY,03/03/2023,12073066,"1,387.52",Agency Staff,Direct Employee Expenses
Southend-on-Sea Borough Council,http://www.opendatacommunities.org/id/unitary-authority/southend,ED Children & Public Health,Children And Education Services,3183,HAYS SPECIALIST RECRUITMENT LTD RECEIPTS RECRUITMENT FILE ONLY,03/03/2023,12073066,"1,600.60",Agency Staff,Direct Employee Expenses
Southend-on-Sea Borough Council,http://www.opendatacommunities.org/id/unitary-authority/southend,ED Children & Public Health,Children And Education Services,3455,HAYS SPECIALIST RECRUITMENT LTD RECEIPTS RECRUITMENT FILE ONLY,03/03/2023,12073066,"1,649.67",Agency Staff,Direct Employee Expenses
Southend-on-Sea Borough Council,http://www.opendatacommunities.org/id/unitary-authority/southend,ED Children & Public Health,Children And Education Services,3455,HAYS SPECIALIST RECRUITMENT LTD RECEIPTS RECRUITMENT FILE ONLY,03/03/2023,12073066,"2,749.45",Agency Staff,Direct Employee Expenses
Southend-on-Sea Borough Council,http://www.opendatacommunities.org/id/unitary-authority/southend,ED Children & Public Health,Children And Education Services,3590,HAYS SPECIALIST RECRUITMENT LTD RECEIPTS RECRUITMENT FILE ONLY,03/03/2023,12073066,"2,304.61",Agency Staff,Direct Employee Expenses
Southend-on-Sea Borough Council,http://www.opendatacommunities.org/id/unitary-authority/southend,ED Children & Public Health,Children And Education Services,3590,HAYS SPECIALIST RECRUITMENT LTD RECEIPTS RECRUITMENT FILE ONLY,03/03/2023,12073066,"1,059.33",Agency Staff,Direct Employee Expenses
Southend-on-Sea Borough Council,http://www.opendatacommunities.org/id/unitary-authority/southend,ED Children & Public Health,Children And Education Services,3590,HAYS SPECIALIST RECRUITMENT LTD RECEIPTS RECRUITMENT FILE ONLY,03/03/2023,12073066,"1,561.40",Agency Staff,Direct Employee Expenses
Southend-on-Sea Borough Council,http://www.opendatacommunities.org/id/unitary-authority/southend,ED Children & Public Health,Children And Education Services,3455,HAYS SPECIALIST RECRUITMENT LTD RECEIPTS RECRUITMENT FILE ONLY,03/03/2023,12073066,693.8,Agency Staff,Direct Employee Expenses
Southend-on-Sea Borough Council,http://www.opendatacommunities.org/id/unitary-authority/southend,ED Children & Public Health,Children And Education Services,3455,HAYS SPECIALIST RECRUITMENT LTD RECEIPTS RECRUITMENT FILE ONLY,03/03/2023,12073066,693.8,Agency Staff,Direct Employee Expenses
Southend-on-Sea Borough Council,http://www.opendatacommunities.org/id/unitary-authority/southend,ED Children & Public Health,Children And Education Services,3265,HAYS SPECIALIST RECRUITMENT LTD RECEIPTS RECRUITMENT FILE ONLY,03/03/2023,12073066,"1,453.80",Agency Staff,Direct Employee Expenses
Southend-on-Sea Borough Council,http://www.opendatacommunities.org/id/unitary-authority/southend,ED Children & Public Health,Children And Education Services,3265,HAYS SPECIALIST RECRUITMENT LTD RECEIPTS RECRUITMENT FILE ONLY,03/03/2023,12073066,"1,561.40",Agency Staff,Direct Employee Expenses
Southend-on-Sea Borough Council,http://www.opendatacommunities.org/id/unitary-authority/southend,ED Children & Public Health,Children And Education Services,3590,HAYS SPECIALIST RECRUITMENT LTD RECEIPTS RECRUITMENT FILE ONLY,03/03/2023,12073066,"1,636.14",Agency Staff,Direct Employee Expenses
Southend-on-Sea Borough Council,http://www.opendatacommunities.org/id/unitary-authority/southend,ED Children & Public Health,Children And Education Services,3290,HAYS SPECIALIST RECRUITMENT LTD RECEIPTS RECRUITMENT FILE ONLY,03/03/2023,12073066,"1,543.64",Agency Staff,Direct Employee Expenses
Southend-on-Sea Borough Council,http://www.opendatacommunities.org/id/unitary-authority/southend,ED Children & Public Health,Children And Education Services,3183,HAYS SPECIALIST RECRUITMENT LTD RECEIPTS RECRUITMENT FILE ONLY,03/03/2023,12073066,"2,883.10",Agency Staff,Direct Employee Expenses
Southend-on-Sea Borough Council,http://www.opendatacommunities.org/id/unitary-authority/southend,ED Children & Public Health,Children And Education Services,3590,HAYS SPECIALIST RECRUITMENT LTD RECEIPTS RECRUITMENT FILE ONLY,03/03/2023,12073066,"1,714.50",Agency Staff,Direct Employee Expenses
Southend-on-Sea Borough Council,http://www.opendatacommunities.org/id/unitary-authority/southend,ED Children & Public Health,Children And Education Services,3231,HAYS SPECIALIST RECRUITMENT LTD RECEIPTS RECRUITMENT FILE ONLY,03/03/2023,12073066,"2,216.69",Agency Staff,Direct Employee Expenses
Southend-on-Sea Borough Council,http://www.opendatacommunities.org/id/unitary-authority/southend,ED Children & Public Health,Children And Education Services,3183,HAYS SPECIALIST RECRUITMENT LTD RECEIPTS RECRUITMENT FILE ONLY,03/03/2023,12073066,"1,260.36",Agency Staff,Direct Employee Expenses
Southend-on-Sea Borough Council,http://www.opendatacommunities.org/id/unitary-authority/southend,ED Children & Public Health,Children And Education Services,3790,HAYS SPECIALIST RECRUITMENT LTD RECEIPTS RECRUITMENT FILE ONLY,03/03/2023,12073066,"1,691.64",Agency Staff,Direct Employee Expenses
Southend-on-Sea Borough Council,http://www.opendatacommunities.org/id/unitary-authority/southend,ED Children & Public Health,Children And Education Services,3790,HAYS SPECIALIST RECRUITMENT LTD RECEIPTS RECRUITMENT FILE ONLY,03/03/2023,12073066,"1,711.27",Agency Staff,Direct Employee Expenses
Southend-on-Sea Borough Council,http://www.opendatacommunities.org/id/unitary-authority/southend,ED Children & Public Health,Children And Education Services,3480,HAYS SPECIALIST RECRUITMENT LTD RECEIPTS RECRUITMENT FILE ONLY,03/03/2023,12073066,"1,543.64",Agency Staff,Direct Employee Expenses
Southend-on-Sea Borough Council,http://www.opendatacommunities.org/id/unitary-authority/southend,ED Children & Public Health,Children And Education Services,3231,HAYS SPECIALIST RECRUITMENT LTD RECEIPTS RECRUITMENT FILE ONLY,03/03/2023,12073066,"3,458.10",Agency Staff,Direct Employee Expenses
Southend-on-Sea Borough Council,http://www.opendatacommunities.org/id/unitary-authority/southend,ED Children & Public Health,Children And Education Services,3455,HAYS SPECIALIST RECRUITMENT LTD RECEIPTS RECRUITMENT FILE ONLY,03/03/2023,12073066,"2,749.45",Agency Staff,Direct Employee Expenses
Southend-on-Sea Borough Council,http://www.opendatacommunities.org/id/unitary-authority/southend,ED Children & Public Health,Children And Education Services,3200,HAYS SPECIALIST RECRUITMENT LTD RECEIPTS RECRUITMENT FILE ONLY,03/03/2023,12073066,"2,812.65",Agency Staff,Direct Employee Expenses
Southend-on-Sea Borough Council,http://www.opendatacommunities.org/id/unitary-authority/southend,ED Children & Public Health,Children And Education Services,3200,HAYS SPECIALIST RECRUITMENT LTD RECEIPTS RECRUITMENT FILE ONLY,03/03/2023,12073066,"3,375.18",Agency Staff,Direct Employee Expenses
Southend-on-Sea Borough Council,http://www.opendatacommunities.org/id/unitary-authority/southend,ED Children & Public Health,Children And Education Services,3455,HAYS SPECIALIST RECRUITMENT LTD RECEIPTS RECRUITMENT FILE ONLY,03/03/2023,12073066,832.56,Agency Staff,Direct Employee Expenses
Southend-on-Sea Borough Council,http://www.opendatacommunities.org/id/unitary-authority/southend,ED Children & Public Health,Children And Education Services,3455,HAYS SPECIALIST RECRUITMENT LTD RECEIPTS RECRUITMENT FILE ONLY,03/03/2023,12073066,693.8,Agency Staff,Direct Employee Expenses
Southend-on-Sea Borough Council,http://www.opendatacommunities.org/id/unitary-authority/southend,ED Children & Public Health,Children And Education Services,3590,HAYS SPECIALIST RECRUITMENT LTD RECEIPTS RECRUITMENT FILE ONLY,03/03/2023,12073066,"1,059.33",Agency Staff,Direct Employee Expenses
Southend-on-Sea Borough Council,http://www.opendatacommunities.org/id/unitary-authority/southend,ED Children & Public Health,Children And Education Services,3790,HAYS SPECIALIST RECRUITMENT LTD RECEIPTS RECRUITMENT FILE ONLY,03/03/2023,12073066,625.8,Agency Staff,Direct Employee Expenses
Southend-on-Sea Borough Council,http://www.opendatacommunities.org/id/unitary-authority/southend,ED Children & Public Health,Children And Education Services,3790,HAYS SPECIALIST RECRUITMENT LTD RECEIPTS RECRUITMENT FILE ONLY,03/03/2023,12073066,"1,564.50",Agency Staff,Direct Employee Expenses
Southend-on-Sea Borough Council,http://www.opendatacommunities.org/id/unitary-authority/southend,ED Children & Public Health,Children And Education Services,3455,HAYS SPECIALIST RECRUITMENT LTD RECEIPTS RECRUITMENT FILE ONLY,03/03/2023,12073066,"1,110.08",Agency Staff,Direct Employee Expenses
Southend-on-Sea Borough Council,http://www.opendatacommunities.org/id/unitary-authority/southend,ED Children & Public Health,Children And Education Services,3455,HAYS SPECIALIST RECRUITMENT LTD RECEIPTS RECRUITMENT FILE ONLY,03/03/2023,12073066,693.8,Agency Staff,Direct Employee Expenses
Southend-on-Sea Borough Council,http://www.opendatacommunities.org/id/unitary-authority/southend,ED Children & Public Health,Children And Education Services,3790,HAYS SPECIALIST RECRUITMENT LTD RECEIPTS RECRUITMENT FILE ONLY,03/03/2023,12073066,"1,336.44",Agency Staff,Direct Employee Expenses
Southend-on-Sea Borough Council,http://www.opendatacommunities.org/id/unitary-authority/southend,ED Children & Public Health,Children And Education Services,3220,HAYS SPECIALIST RECRUITMENT LTD RECEIPTS RECRUITMENT FILE ONLY,03/03/2023,12073066,"1,034.88",Agency Staff,Direct Employee Expenses
Southend-on-Sea Borough Council,http://www.opendatacommunities.org/id/unitary-authority/southend,ED Children & Public Health,Children And Education Services,3220,HAYS SPECIALIST RECRUITMENT LTD RECEIPTS RECRUITMENT FILE ONLY,03/03/2023,12073066,"1,823.36",Agency Staff,Direct Employee Expenses
Southend-on-Sea Borough Council,http://www.opendatacommunities.org/id/unitary-authority/southend,ED Children & Public Health,Children And Education Services,3590,HAYS SPECIALIST RECRUITMENT LTD RECEIPTS RECRUITMENT FILE ONLY,03/03/2023,12073066,"1,561.40",Agency Staff,Direct Employee Expenses
Southend-on-Sea Borough Council,http://www.opendatacommunities.org/id/unitary-authority/southend,ED Children & Public Health, Public Health,8700,HAYS SPECIALIST RECRUITMENT LTD RECEIPTS RECRUITMENT FILE ONLY,03/03/2023,12073066,"1,720.00",Agency Staff,Direct Employee Expenses
Southend-on-Sea Borough Council,http://www.opendatacommunities.org/id/unitary-authority/southend,ED Finance & Resources,Central Services,7071,HAYS SPECIALIST RECRUITMENT LTD RECEIPTS RECRUITMENT FILE ONLY,03/03/2023,12073066,"2,137.60",Agency Staff,Direct Employee Expenses
Southend-on-Sea Borough Council,http://www.opendatacommunities.org/id/unitary-authority/southend,ED Finance & Resources,Central Services,7075,HAYS SPECIALIST RECRUITMENT LTD RECEIPTS RECRUITMENT FILE ONLY,03/03/2023,12073066,"2,310.28",Agency Staff,Direct Employee Expenses
Southend-on-Sea Borough Council,http://www.opendatacommunities.org/id/unitary-authority/southend,ED Finance & Resources,Central Services,7070,HAYS SPECIALIST RECRUITMENT LTD RECEIPTS RECRUITMENT FILE ONLY,03/03/2023,12073066,"4,137.60",Agency Staff,Direct Employee Expenses
Southend-on-Sea Borough Council,http://www.opendatacommunities.org/id/unitary-authority/southend,ED Finance & Resources,Central Services,7096,HAYS SPECIALIST RECRUITMENT LTD RECEIPTS RECRUITMENT FILE ONLY,03/03/2023,12073066,691.54,Agency Staff,Direct Employee Expenses
Southend-on-Sea Borough Council,http://www.opendatacommunities.org/id/unitary-authority/southend,ED Finance & Resources,Housing Services,7150,HAYS SPECIALIST RECRUITMENT LTD RECEIPTS RECRUITMENT FILE ONLY,03/03/2023,12073066,"2,491.80",Agency Staff,Direct Employee Expenses
Southend-on-Sea Borough Council,http://www.opendatacommunities.org/id/unitary-authority/southend,ED Finance & Resources,Housing Services,6165,HAYS SPECIALIST RECRUITMENT LTD RECEIPTS RECRUITMENT FILE ONLY,03/03/2023,12073066,633.15,Agency Staff,Direct Employee Expenses
Southend-on-Sea Borough Council,http://www.opendatacommunities.org/id/unitary-authority/southend,ED Finance & Resources,Housing Services,6165,HAYS SPECIALIST RECRUITMENT LTD RECEIPTS RECRUITMENT FILE ONLY,03/03/2023,12073066,633.15,Agency Staff,Direct Employee Expenses
Southend-on-Sea Borough Council,http://www.opendatacommunities.org/id/unitary-authority/southend,ED Finance & Resources,Housing Services,6165,HAYS SPECIALIST RECRUITMENT LTD RECEIPTS RECRUITMENT FILE ONLY,03/03/2023,12073066,633.15,Agency Staff,Direct Employee Expenses
Southend-on-Sea Borough Council,http://www.opendatacommunities.org/id/unitary-authority/southend,ED Finance & Resources,Housing Services,6165,HAYS SPECIALIST RECRUITMENT LTD RECEIPTS RECRUITMENT FILE ONLY,03/03/2023,12073066,633.15,Agency Staff,Direct Employee Expenses
Southend-on-Sea Borough Council,http://www.opendatacommunities.org/id/unitary-authority/southend,ED Growth & Housing,Cultural and Related Services,2139,HAYS SPECIALIST RECRUITMENT LTD RECEIPTS RECRUITMENT FILE ONLY,03/03/2023,12073066,"1,747.71",Agency Staff,Direct Employee Expenses
Southend-on-Sea Borough Council,http://www.opendatacommunities.org/id/unitary-authority/southend,ED Growth & Housing,Cultural and Related Services,2139,HAYS SPECIALIST RECRUITMENT LTD RECEIPTS RECRUITMENT FILE ONLY,03/03/2023,12073066,"1,000.58",Agency Staff,Direct Employee Expenses
Southend-on-Sea Borough Council,http://www.opendatacommunities.org/id/unitary-authority/southend,ED Growth & Housing,Housing Services,6501,HAYS SPECIALIST RECRUITMENT LTD RECEIPTS RECRUITMENT FILE ONLY,03/03/2023,12073066,"1,596.00",Agency Staff,Direct Employee Expenses
Southend-on-Sea Borough Council,http://www.opendatacommunities.org/id/unitary-authority/southend,ED Growth & Housing,Planning Services,5505,HAYS SPECIALIST RECRUITMENT LTD RECEIPTS RECRUITMENT FILE ONLY,03/03/2023,12073066,"2,012.60",Agency Staff,Direct Employee Expenses
Southend-on-Sea Borough Council,http://www.opendatacommunities.org/id/unitary-authority/southend,ED Growth & Housing,Planning Services,5505,HAYS SPECIALIST RECRUITMENT LTD RECEIPTS RECRUITMENT FILE ONLY,03/03/2023,12073066,"1,610.08",Agency Staff,Direct Employee Expenses
Southend-on-Sea Borough Council,http://www.opendatacommunities.org/id/unitary-authority/southend,ED Growth & Housing,Planning Services,5640,HAYS SPECIALIST RECRUITMENT LTD RECEIPTS RECRUITMENT FILE ONLY,03/03/2023,12073066,"3,420.00",Agency Staff,Direct Employee Expenses
Southend-on-Sea Borough Council,http://www.opendatacommunities.org/id/unitary-authority/southend,ED Growth & Housing,Planning Services,5530,HAYS SPECIALIST RECRUITMENT LTD RECEIPTS RECRUITMENT FILE ONLY,03/03/2023,12073066,"1,020.97",Agency Staff,Direct Employee Expenses
Southend-on-Sea Borough Council,http://www.opendatacommunities.org/id/unitary-authority/southend,ED Growth & Housing,Planning Services,5640,HAYS SPECIALIST RECRUITMENT LTD RECEIPTS RECRUITMENT FILE ONLY,03/03/2023,12073066,"3,420.00",Agency Staff,Direct Employee Expenses
Southend-on-Sea Borough Council,http://www.opendatacommunities.org/id/unitary-authority/southend,ED Neighbourhoods & Environment,Cultural and Related Services,7505,HAYS SPECIALIST RECRUITMENT LTD RECEIPTS RECRUITMENT FILE ONLY,03/03/2023,12073066,609.02,Agency Staff,Direct Employee Expenses
Southend-on-Sea Borough Council,http://www.opendatacommunities.org/id/unitary-authority/southend,ED Neighbourhoods & Environment,Cultural and Related Services,7505,HAYS SPECIALIST RECRUITMENT LTD RECEIPTS RECRUITMENT FILE ONLY,03/03/2023,12073066,609.02,Agency Staff,Direct Employee Expenses
Southend-on-Sea Borough Council,http://www.opendatacommunities.org/id/unitary-authority/southend,ED Neighbourhoods & Environment,Cultural and Related Services,7505,HAYS SPECIALIST RECRUITMENT LTD RECEIPTS RECRUITMENT FILE ONLY,03/03/2023,12073066,609.02,Agency Staff,Direct Employee Expenses
Southend-on-Sea Borough Council,http://www.opendatacommunities.org/id/unitary-authority/southend,ED Neighbourhoods & Environment,Cultural and Related Services,7505,HAYS SPECIALIST RECRUITMENT LTD RECEIPTS RECRUITMENT FILE ONLY,03/03/2023,12073066,609.02,Agency Staff,Direct Employee Expenses
Southend-on-Sea Borough Council,http://www.opendatacommunities.org/id/unitary-authority/southend,ED Neighbourhoods & Environment,Cultural and Related Services,7505,HAYS SPECIALIST RECRUITMENT LTD RECEIPTS RECRUITMENT FILE ONLY,03/03/2023,12073066,609.02,Agency Staff,Direct Employee Expenses
Southend-on-Sea Borough Council,http://www.opendatacommunities.org/id/unitary-authority/southend,ED Neighbourhoods & Environment,Cultural and Related Services,7505,HAYS SPECIALIST RECRUITMENT LTD RECEIPTS RECRUITMENT FILE ONLY,03/03/2023,12073066,609.02,Agency Staff,Direct Employee Expenses
Southend-on-Sea Borough Council,http://www.opendatacommunities.org/id/unitary-authority/southend,ED Neighbourhoods & Environment,Environmental And Regulatory Services,4526,HAYS SPECIALIST RECRUITMENT LTD RECEIPTS RECRUITMENT FILE ONLY,03/03/2023,12073066,"1,262.47",Agency Staff,Direct Employee Expenses
Southend-on-Sea Borough Council,http://www.opendatacommunities.org/id/unitary-authority/southend,ED Neighbourhoods & Environment,Environmental And Regulatory Services,4535,HAYS SPECIALIST RECRUITMENT LTD RECEIPTS RECRUITMENT FILE ONLY,03/03/2023,12073066,582.57,Agency Staff,Direct Employee Expenses
Southend-on-Sea Borough Council,http://www.opendatacommunities.org/id/unitary-authority/southend,ED Neighbourhoods & Environment,Cultural And Related Services,7540,HAYS SPECIALIST RECRUITMENT LTD RECEIPTS RECRUITMENT FILE ONLY,03/03/2023,12073066,938.22,Agency Staff,Direct Employee Expenses
Southend-on-Sea Borough Council,http://www.opendatacommunities.org/id/unitary-authority/southend,ED Neighbourhoods & Environment,Cultural And Related Services,7540,HAYS SPECIALIST RECRUITMENT LTD RECEIPTS RECRUITMENT FILE ONLY,03/03/2023,12073066,812.52,Agency Staff,Direct Employee Expenses
Southend-on-Sea Borough Council,http://www.opendatacommunities.org/id/unitary-authority/southend,ED Neighbourhoods & Environment,Cultural And Related Services,7540,HAYS SPECIALIST RECRUITMENT LTD RECEIPTS RECRUITMENT FILE ONLY,03/03/2023,12073066,813.6,Agency Staff,Direct Employee Expenses
Southend-on-Sea Borough Council,http://www.opendatacommunities.org/id/unitary-authority/southend,ED Neighbourhoods & Environment,Cultural And Related Services,7540,HAYS SPECIALIST RECRUITMENT LTD RECEIPTS RECRUITMENT FILE ONLY,03/03/2023,12073066,605.64,Agency Staff,Direct Employee Expenses
Southend-on-Sea Borough Council,http://www.opendatacommunities.org/id/unitary-authority/southend,ED Neighbourhoods & Environment,Highways And Transport Services,5235,HAYS SPECIALIST RECRUITMENT LTD RECEIPTS RECRUITMENT FILE ONLY,03/03/2023,12073066,"1,701.35",Agency Staff,Direct Employee Expenses
Southend-on-Sea Borough Council,http://www.opendatacommunities.org/id/unitary-authority/southend,ED Neighbourhoods & Environment,Highways And Transport Services,5235,HAYS SPECIALIST RECRUITMENT LTD RECEIPTS RECRUITMENT FILE ONLY,03/03/2023,12073066,"1,701.35",Agency Staff,Direct Employee Expenses
Southend-on-Sea Borough Council,http://www.opendatacommunities.org/id/unitary-authority/southend,ED Neighbourhoods & Environment,Highways And Transport Services,5235,HAYS SPECIALIST RECRUITMENT LTD RECEIPTS RECRUITMENT FILE ONLY,03/03/2023,12073066,"1,701.35",Agency Staff,Direct Employee Expenses
Southend-on-Sea Borough Council,http://www.opendatacommunities.org/id/unitary-authority/southend,ED Neighbourhoods & Environment,Highways And Transport Services,5005,HAYS SPECIALIST RECRUITMENT LTD RECEIPTS RECRUITMENT FILE ONLY,03/03/2023,12073066,"1,724.80",Agency Staff,Direct Employee Expenses
Southend-on-Sea Borough Council,http://www.opendatacommunities.org/id/unitary-authority/southend,ED Neighbourhoods & Environment,Highways And Transport Services,5021,HAYS SPECIALIST RECRUITMENT LTD RECEIPTS RECRUITMENT FILE ONLY,03/03/2023,12073066,"1,560.75",Agency Staff,Direct Employee Expenses
Southend-on-Sea Borough Council,http://www.opendatacommunities.org/id/unitary-authority/southend,ED Neighbourhoods & Environment,Highways And Transport Services,5235,HAYS SPECIALIST RECRUITMENT LTD RECEIPTS RECRUITMENT FILE ONLY,03/03/2023,12073066,"1,701.35",Agency Staff,Direct Employee Expenses
Southend-on-Sea Borough Council,http://www.opendatacommunities.org/id/unitary-authority/southend,ED Neighbourhoods & Environment,Highways And Transport Services,5235,HAYS SPECIALIST RECRUITMENT LTD RECEIPTS RECRUITMENT FILE ONLY,03/03/2023,12073066,"1,701.35",Agency Staff,Direct Employee Expenses
Southend-on-Sea Borough Council,http://www.opendatacommunities.org/id/unitary-authority/southend,ED Neighbourhoods & Environment,Highways And Transport Services,5235,HAYS SPECIALIST RECRUITMENT LTD RECEIPTS RECRUITMENT FILE ONLY,03/03/2023,12073066,"1,701.35",Agency Staff,Direct Employee Expenses
Southend-on-Sea Borough Council,http://www.opendatacommunities.org/id/unitary-authority/southend,ED Neighbourhoods & Environment,Highways And Transport Services,5055,HAYS SPECIALIST RECRUITMENT LTD RECEIPTS RECRUITMENT FILE ONLY,03/03/2023,12073066,"4,894.44",Agency Staff,Direct Employee Expenses
Southend-on-Sea Borough Council,http://www.opendatacommunities.org/id/unitary-authority/southend,ED Neighbourhoods & Environment,Highways And Transport Services,5015,HAYS SPECIALIST RECRUITMENT LTD RECEIPTS RECRUITMENT FILE ONLY,03/03/2023,12073066,"2,415.75",Agency Staff,Direct Employee Expenses
Southend-on-Sea Borough Council,http://www.opendatacommunities.org/id/unitary-authority/southend,ED Neighbourhoods & Environment,Housing Services,6047,HAYS SPECIALIST RECRUITMENT LTD RECEIPTS RECRUITMENT FILE ONLY,03/03/2023,12073066,675.75,Agency Staff,Direct Employee Expenses
Southend-on-Sea Borough Council,http://www.opendatacommunities.org/id/unitary-authority/southend,"ED Strategy, Change & Governance",Central Services,7105,HAYS SPECIALIST RECRUITMENT LTD RECEIPTS RECRUITMENT FILE ONLY,03/03/2023,12073066,"2,100.40",Agency Staff,Direct Employee Expenses
Southend-on-Sea Borough Council,http://www.opendatacommunities.org/id/unitary-authority/southend,"ED Strategy, Change & Governance",Central Services,7105,HAYS SPECIALIST RECRUITMENT LTD RECEIPTS RECRUITMENT FILE ONLY,03/03/2023,12073066,505.21,Agency Staff,Direct Employee Expenses
Southend-on-Sea Borough Council,http://www.opendatacommunities.org/id/unitary-authority/southend,"ED Strategy, Change & Governance",Central Services,7105,HAYS SPECIALIST RECRUITMENT LTD RECEIPTS RECRUITMENT FILE ONLY,03/03/2023,12073066,823.23,Agency Staff,Direct Employee Expenses
Southend-on-Sea Borough Council,http://www.opendatacommunities.org/id/unitary-authority/southend,"ED Strategy, Change & Governance",Central Services,7105,HAYS SPECIALIST RECRUITMENT LTD RECEIPTS RECRUITMENT FILE ONLY,03/03/2023,12073066,705.61,Agency Staff,Direct Employee Expenses
Southend-on-Sea Borough Council,http://www.opendatacommunities.org/id/unitary-authority/southend,"ED Strategy, Change & Governance",Central Services,7105,HAYS SPECIALIST RECRUITMENT LTD RECEIPTS RECRUITMENT FILE ONLY,03/03/2023,12073066,"2,394.00",Agency Staff,Direct Employee Expenses
Southend-on-Sea Borough Council,http://www.opendatacommunities.org/id/unitary-authority/southend,"ED Strategy, Change & Governance",Central Services,7105,HAYS SPECIALIST RECRUITMENT LTD RECEIPTS RECRUITMENT FILE ONLY,03/03/2023,12073066,"2,394.00",Agency Staff,Direct Employee Expenses
Southend-on-Sea Borough Council,http://www.opendatacommunities.org/id/unitary-authority/southend,"ED Strategy, Change & Governance",Central Services,7105,HAYS SPECIALIST RECRUITMENT LTD RECEIPTS RECRUITMENT FILE ONLY,03/03/2023,12073066,"3,192.00",Agency Staff,Direct Employee Expenses
Southend-on-Sea Borough Council,http://www.opendatacommunities.org/id/unitary-authority/southend,"ED Strategy, Change & Governance",Central Services,7105,HAYS SPECIALIST RECRUITMENT LTD RECEIPTS RECRUITMENT FILE ONLY,03/03/2023,12073066,"1,581.08",Agency Staff,Direct Employee Expenses
Southend-on-Sea Borough Council,http://www.opendatacommunities.org/id/unitary-authority/southend,"ED Strategy, Change & Governance",Central Services,7130,HAYS SPECIALIST RECRUITMENT LTD RECEIPTS RECRUITMENT FILE ONLY,03/03/2023,12073066,"1,435.47",Agency Staff,Direct Employee Expenses
Southend-on-Sea Borough Council,http://www.opendatacommunities.org/id/unitary-authority/southend,"ED Strategy, Change & Governance",Central Services,7105,HAYS SPECIALIST RECRUITMENT LTD RECEIPTS RECRUITMENT FILE ONLY,03/03/2023,12073066,634.59,Agency Staff,Direct Employee Expenses
Southend-on-Sea Borough Council,http://www.opendatacommunities.org/id/unitary-authority/southend,"ED Strategy, Change & Governance",Central Services,7129,HAYS SPECIALIST RECRUITMENT LTD RECEIPTS RECRUITMENT FILE ONLY,03/03/2023,12073066,840.14,Agency Staff,Direct Employee Expenses
Southend-on-Sea Borough Council,http://www.opendatacommunities.org/id/unitary-authority/southend,"ED Strategy, Change & Governance",Central Services,7137,HAYS SPECIALIST RECRUITMENT LTD RECEIPTS RECRUITMENT FILE ONLY,03/03/2023,12073066,"3,038.80",Agency Staff,Direct Employee Expenses
Southend-on-Sea Borough Council,http://www.opendatacommunities.org/id/unitary-authority/southend,"ED Strategy, Change & Governance",Central Services,7137,HAYS SPECIALIST RECRUITMENT LTD RECEIPTS RECRUITMENT FILE ONLY,03/03/2023,12073066,"3,038.80",Agency Staff,Direct Employee Expenses
Southend-on-Sea Borough Council,http://www.opendatacommunities.org/id/unitary-authority/southend,"ED Strategy, Change & Governance",Central Services,7139,HAYS SPECIALIST RECRUITMENT LTD RECEIPTS RECRUITMENT FILE ONLY,03/03/2023,12073066,"2,315.35",Agency Staff,Direct Employee Expenses
Southend-on-Sea Borough Council,http://www.opendatacommunities.org/id/unitary-authority/southend,"ED Strategy, Change & Governance",Central Services,7137,HAYS SPECIALIST RECRUITMENT LTD RECEIPTS RECRUITMENT FILE ONLY,03/03/2023,12073066,"2,100.35",Agency Staff,Direct Employee Expenses
Southend-on-Sea Borough Council,http://www.opendatacommunities.org/id/unitary-authority/southend,"ED Strategy, Change & Governance",Central Services,7137,HAYS SPECIALIST RECRUITMENT LTD RECEIPTS RECRUITMENT FILE ONLY,03/03/2023,12073066,998.52,Agency Staff,Direct Employee Expenses
Southend-on-Sea Borough Council,http://www.opendatacommunities.org/id/unitary-authority/southend,"ED Strategy, Change & Governance",Central Services,7137,HAYS SPECIALIST RECRUITMENT LTD RECEIPTS RECRUITMENT FILE ONLY,03/03/2023,12073066,"1,849.05",Agency Staff,Direct Employee Expenses
Southend-on-Sea Borough Council,http://www.opendatacommunities.org/id/unitary-authority/southend,"ED Strategy, Change & Governance",Central Services,7131,HAYS SPECIALIST RECRUITMENT LTD RECEIPTS RECRUITMENT FILE ONLY,03/03/2023,12073066,"2,113.15",Agency Staff,Direct Employee Expenses
Southend-on-Sea Borough Council,http://www.opendatacommunities.org/id/unitary-authority/southend,ED Finance & Resources,Housing Services,6167,HBINFO LTD,03/03/2023,12073066,891,3rd Party training,Services
Southend-on-Sea Borough Council,http://www.opendatacommunities.org/id/unitary-authority/southend,ED Adults & Communities,Adult Social Care,1070,HC-ONE OVAL LIMITED,03/03/2023,12073066,"2,061.92",Private Contractors,Other Agencies
Southend-on-Sea Borough Council,http://www.opendatacommunities.org/id/unitary-authority/southend,ED Adults & Communities,Adult Social Care,1070,HEALTHCARE HOMES GROUP LIMITED,03/03/2023,12073066,"2,324.60",Private Contractors,Other Agencies
Southend-on-Sea Borough Council,http://www.opendatacommunities.org/id/unitary-authority/southend,ED Children & Public Health,Children And Education Services,3030,HITACHI CAPITAL (UK) PLC RE FISK FIRE PROTECTION LTD,03/03/2023,12073066,"2,214.00",Repairs And Maintenance Contracts,"Repairs, alterations and maintenance of buildings"
Southend-on-Sea Borough Council,http://www.opendatacommunities.org/id/unitary-authority/southend,ED Adults & Communities,Adult Social Care,1105,HOMECARE PROFESSIONALS (ESSEX) LTD,03/03/2023,12073066,"1,197.00",Private Contractors,Other Agencies
Southend-on-Sea Borough Council,http://www.opendatacommunities.org/id/unitary-authority/southend,ED Adults & Communities,Adult Social Care,1105,HOMECARE PROFESSIONALS (ESSEX) LTD,03/03/2023,12073066,798,Private Contractors,Other Agencies
Southend-on-Sea Borough Council,http://www.opendatacommunities.org/id/unitary-authority/southend,ED Adults & Communities,Adult Social Care,1105,HOMECARE PROFESSIONALS (ESSEX) LTD,03/03/2023,12073066,"1,064.00",Private Contractors,Other Agencies
Southend-on-Sea Borough Council,http://www.opendatacommunities.org/id/unitary-authority/southend,ED Adults & Communities,Adult Social Care,1105,HOMECARE PROFESSIONALS (ESSEX) LTD,03/03/2023,12073066,"1,064.00",Private Contractors,Other Agencies
Southend-on-Sea Borough Council,http://www.opendatacommunities.org/id/unitary-authority/southend,ED Adults & Communities,Adult Social Care,1105,HOMECARE PROFESSIONALS (ESSEX) LTD,03/03/2023,12073066,"1,064.00",Private Contractors,Other Agencies
Southend-on-Sea Borough Council,http://www.opendatacommunities.org/id/unitary-authority/southend,ED Adults & Communities,Adult Social Care,1105,HOMECARE PROFESSIONALS (ESSEX) LTD,03/03/2023,12073066,"1,064.00",Private Contractors,Other Agencies
Southend-on-Sea Borough Council,http://www.opendatacommunities.org/id/unitary-authority/southend,ED Adults & Communities,Adult Social Care,1105,HOMECARE PROFESSIONALS (ESSEX) LTD,03/03/2023,12073066,"1,064.00",Private Contractors,Other Agencies
Southend-on-Sea Borough Council,http://www.opendatacommunities.org/id/unitary-authority/southend,ED Adults & Communities,Adult Social Care,1105,HOMECARE PROFESSIONALS (ESSEX) LTD,03/03/2023,12073066,"1,064.00",Private Contractors,Other Agencies
Southend-on-Sea Borough Council,http://www.opendatacommunities.org/id/unitary-authority/southend,ED Adults & Communities,Adult Social Care,1105,HOMECARE PROFESSIONALS (ESSEX) LTD,03/03/2023,12073066,"1,064.00",Private Contractors,Other Agencies
Southend-on-Sea Borough Council,http://www.opendatacommunities.org/id/unitary-authority/southend,ED Adults & Communities,Adult Social Care,1105,HOMECARE PROFESSIONALS (ESSEX) LTD,03/03/2023,12073066,"1,064.00",Private Contractors,Other Agencies
Southend-on-Sea Borough Council,http://www.opendatacommunities.org/id/unitary-authority/southend,ED Adults & Communities,Adult Social Care,1105,HOMECARE PROFESSIONALS (ESSEX) LTD,03/03/2023,12073066,"1,064.00",Private Contractors,Other Agencies
Southend-on-Sea Borough Council,http://www.opendatacommunities.org/id/unitary-authority/southend,ED Adults & Communities,Adult Social Care,1105,HOMECARE PROFESSIONALS (ESSEX) LTD,03/03/2023,12073066,"1,197.00",Private Contractors,Other Agencies
Southend-on-Sea Borough Council,http://www.opendatacommunities.org/id/unitary-authority/southend,ED Adults & Communities,Adult Social Care,1205,HOMECARE PROFESSIONALS (ESSEX) LTD,03/03/2023,12073066,532,Private Contractors,Other Agencies
Southend-on-Sea Borough Council,http://www.opendatacommunities.org/id/unitary-authority/southend,ED Adults & Communities,Adult Social Care,1205,HOMECARE PROFESSIONALS (ESSEX) LTD,03/03/2023,12073066,532,Private Contractors,Other Agencies
Southend-on-Sea Borough Council,http://www.opendatacommunities.org/id/unitary-authority/southend,ED Adults & Communities,Adult Social Care,1205,HOMECARE PROFESSIONALS (ESSEX) LTD,03/03/2023,12073066,532,Private Contractors,Other Agencies
Southend-on-Sea Borough Council,http://www.opendatacommunities.org/id/unitary-authority/southend,ED Adults & Communities,Adult Social Care,1105,HOMECARE PROFESSIONALS (ESSEX) LTD,03/03/2023,12073066,779,Private Contractors,Other Agencies
Southend-on-Sea Borough Council,http://www.opendatacommunities.org/id/unitary-authority/southend,ED Adults & Communities,Adult Social Care,1105,HOMECARE PROFESSIONALS (ESSEX) LTD,03/03/2023,12073066,"1,064.00",Private Contractors,Other Agencies
Southend-on-Sea Borough Council,http://www.opendatacommunities.org/id/unitary-authority/southend,ED Adults & Communities,Adult Social Care,1105,HOMECARE PROFESSIONALS (ESSEX) LTD,03/03/2023,12073066,883.5,Private Contractors,Other Agencies
Southend-on-Sea Borough Council,http://www.opendatacommunities.org/id/unitary-authority/southend,ED Adults & Communities,Adult Social Care,1105,HOMECARE PROFESSIONALS (ESSEX) LTD,03/03/2023,12073066,"1,197.00",Private Contractors,Other Agencies
Southend-on-Sea Borough Council,http://www.opendatacommunities.org/id/unitary-authority/southend,ED Adults & Communities,Adult Social Care,1105,HOMECARE PROFESSIONALS (ESSEX) LTD,03/03/2023,12073066,893,Private Contractors,Other Agencies
Southend-on-Sea Borough Council,http://www.opendatacommunities.org/id/unitary-authority/southend,ED Adults & Communities,Adult Social Care,1105,HOMECARE PROFESSIONALS (ESSEX) LTD,03/03/2023,12073066,950,Private Contractors,Other Agencies
Southend-on-Sea Borough Council,http://www.opendatacommunities.org/id/unitary-authority/southend,ED Adults & Communities,Adult Social Care,1380,HRH HEALTHCARE LIMITED T/AS HOLLYROSE HOUSE,03/03/2023,12073066,"3,086.60",Private Contractors,Other Agencies
Southend-on-Sea Borough Council,http://www.opendatacommunities.org/id/unitary-authority/southend,ED Adults & Communities,Cultural And Related Services,4120,INSTAKIL PEST CONTROL SERVICES,03/03/2023,12073066,510,Pest Control,Cleaning And Domestic Supplies
Southend-on-Sea Borough Council,http://www.opendatacommunities.org/id/unitary-authority/southend,ED Adults & Communities,Adult Social Care,1266,REDACTED PERSONAL DATA,03/03/2023,12073066,"2,973.88",Private Contractors,Other Agencies
Southend-on-Sea Borough Council,http://www.opendatacommunities.org/id/unitary-authority/southend,ED Neighbourhoods & Environment,Cultural And Related Services,4200,JAMES COLES & SONS (NURSERIES) LTD,03/03/2023,12073066,608.75,Materials,Equipment Furniture And Materials
Southend-on-Sea Borough Council,http://www.opendatacommunities.org/id/unitary-authority/southend,ED Children & Public Health,Children And Education Services,3055,JAMES LECKEY DESIGN LIMITED T/A LECKEY,03/03/2023,12073066,"1,874.00",Tools And Equipment Purchase,Equipment Furniture And Materials
Southend-on-Sea Borough Council,http://www.opendatacommunities.org/id/unitary-authority/southend,ED Adults & Communities,Adult Social Care,1294,JAMESONS RESIDENTIAL CARE HOME LIMITED,03/03/2023,12073066,"4,467.68",Private Contractors,Other Agencies
Southend-on-Sea Borough Council,http://www.opendatacommunities.org/id/unitary-authority/southend,ED Adults & Communities,Adult Social Care,1675,JAMESONS RESIDENTIAL CARE HOME LIMITED,03/03/2023,12073066,"4,968.88",Private Contractors,Other Agencies
Southend-on-Sea Borough Council,http://www.opendatacommunities.org/id/unitary-authority/southend,ED Adults & Communities,Adult Social Care,1209,JCB FINANCE LTD,03/03/2023,12073066,"2,981.78",Vehicle Operating Lease,Contract Hire And Operating Leases
Southend-on-Sea Borough Council,http://www.opendatacommunities.org/id/unitary-authority/southend,ED Growth & Housing,Planning Services,5545,JDI SOLUTIONS LTD,03/03/2023,12073066,807,IT Software,Communications And Computing
Southend-on-Sea Borough Council,http://www.opendatacommunities.org/id/unitary-authority/southend,ED Adults & Communities,Adult Social Care,1266,REDACTED PERSONAL DATA,03/03/2023,12073066,"1,327.48",Private Contractors,Other Agencies
Southend-on-Sea Borough Council,http://www.opendatacommunities.org/id/unitary-authority/southend,ED Neighbourhoods & Environment,Cultural And Related Services,4200,KEEP BRITAIN TIDY,03/03/2023,12073066,"3,076.00",Private Contractors,Other Agencies
Southend-on-Sea Borough Council,http://www.opendatacommunities.org/id/unitary-authority/southend,ED Adults & Communities,Adult Social Care,1266,REDACTED PERSONAL DATA,03/03/2023,12073066,"1,327.48",Private Contractors,Other Agencies
Southend-on-Sea Borough Council,http://www.opendatacommunities.org/id/unitary-authority/southend,ED Children & Public Health,Children And Education Services,3250,KENT HOMEFINDING AND FOSTERING LTD,03/03/2023,12073066,"4,076.50",Private Contractors,Other Agencies
Southend-on-Sea Borough Council,http://www.opendatacommunities.org/id/unitary-authority/southend,ED Children & Public Health,Children And Education Services,3250,KENT HOMEFINDING AND FOSTERING LTD,03/03/2023,12073066,"3,968.43",Private Contractors,Other Agencies
Southend-on-Sea Borough Council,http://www.opendatacommunities.org/id/unitary-authority/southend,ED Children & Public Health,Children And Education Services,3250,KENT HOMEFINDING AND FOSTERING LTD,03/03/2023,12073066,"4,204.03",Private Contractors,Other Agencies
Southend-on-Sea Borough Council,http://www.opendatacommunities.org/id/unitary-authority/southend,ED Adults & Communities,Adult Social Care,1260,KINGSWOOD CARE SERVICES LTD,03/03/2023,12073066,"12,235.36",Private Contractors,Other Agencies
Southend-on-Sea Borough Council,http://www.opendatacommunities.org/id/unitary-authority/southend,ED Adults & Communities,Adult Social Care,1070,LEADERS OF WORSHIP & PREACHERS HOMES,03/03/2023,12073066,"7,574.84",Private Contractors,Other Agencies
Southend-on-Sea Borough Council,http://www.opendatacommunities.org/id/unitary-authority/southend,ED Adults & Communities,Adult Social Care,1079,LEADERS OF WORSHIP & PREACHERS HOMES,03/03/2023,12073066,"2,305.80",Private Contractors,Other Agencies
Southend-on-Sea Borough Council,http://www.opendatacommunities.org/id/unitary-authority/southend,ED Adults & Communities,Adult Social Care,1070,LEGRA RESIDENTIAL LTD T/A LEGRA RESIDENTIAL CARE HOME,03/03/2023,12073066,"2,305.80",Private Contractors,Other Agencies
Southend-on-Sea Borough Council,http://www.opendatacommunities.org/id/unitary-authority/southend,ED Adults & Communities,Adult Social Care,1079,LEGRA RESIDENTIAL LTD T/A LEGRA RESIDENTIAL CARE HOME,03/03/2023,12073066,"2,305.80",Private Contractors,Other Agencies
Southend-on-Sea Borough Council,http://www.opendatacommunities.org/id/unitary-authority/southend,ED Adults & Communities,Adult Social Care,1083,LEGRA RESIDENTIAL LTD T/A LEGRA RESIDENTIAL CARE HOME,03/03/2023,12073066,"17,787.60",Private Contractors,Other Agencies
Southend-on-Sea Borough Council,http://www.opendatacommunities.org/id/unitary-authority/southend,ED Adults & Communities,Adult Social Care,1294,LIFEWAYS COMMUNITY CARE,03/03/2023,12073066,"7,785.96",Private Contractors,Other Agencies
Southend-on-Sea Borough Council,http://www.opendatacommunities.org/id/unitary-authority/southend,ED Adults & Communities,Adult Social Care,1266,REDACTED PERSONAL DATA,03/03/2023,12073066,"2,132.76",Private Contractors,Other Agencies
Southend-on-Sea Borough Council,http://www.opendatacommunities.org/id/unitary-authority/southend,ED Adults & Communities,Adult Social Care,1192,LIVABILITY,03/03/2023,12073066,"6,054.72",Private Contractors,Other Agencies
Southend-on-Sea Borough Council,http://www.opendatacommunities.org/id/unitary-authority/southend,ED Adults & Communities,Adult Social Care,1260,LIVABILITY,03/03/2023,12073066,"6,114.92",Private Contractors,Other Agencies
Southend-on-Sea Borough Council,http://www.opendatacommunities.org/id/unitary-authority/southend,ED Adults & Communities,Adult Social Care,1386,LONGCROFT,03/03/2023,12073066,"2,800.00",Private Contractors,Other Agencies
Southend-on-Sea Borough Council,http://www.opendatacommunities.org/id/unitary-authority/southend,ED Adults & Communities,Adult Social Care,1070,M S & S A WAYCOT T/A CROWN HOUSE CARE HOME,03/03/2023,12073066,"1,688.00",Private Contractors,Other Agencies
Southend-on-Sea Borough Council,http://www.opendatacommunities.org/id/unitary-authority/southend,ED Adults & Communities,Adult Social Care,1260,MACINTYRE CARE,03/03/2023,12073066,"4,793.88",Private Contractors,Other Agencies
Southend-on-Sea Borough Council,http://www.opendatacommunities.org/id/unitary-authority/southend,ED Adults & Communities,Adult Social Care,1231,MALVERN LODGE GUEST HOUSE LTD,03/03/2023,12073066,"1,400.00",Social Care Services,Services
Southend-on-Sea Borough Council,http://www.opendatacommunities.org/id/unitary-authority/southend,ED Adults & Communities,Adult Social Care,1070,MANOR REST HOME,03/03/2023,12073066,"7,224.56",Private Contractors,Other Agencies
Southend-on-Sea Borough Council,http://www.opendatacommunities.org/id/unitary-authority/southend,ED Adults & Communities,Adult Social Care,1079,MANOR REST HOME,03/03/2023,12073066,"2,305.80",Private Contractors,Other Agencies
Southend-on-Sea Borough Council,http://www.opendatacommunities.org/id/unitary-authority/southend,ED Adults & Communities,Adult Social Care,1083,MANOR REST HOME,03/03/2023,12073066,"21,614.28",Private Contractors,Other Agencies
Southend-on-Sea Borough Council,http://www.opendatacommunities.org/id/unitary-authority/southend,ED Adults & Communities,Adult Social Care,1260,MAPLE HEALTH UK LIMITED T/A MAPLE HOUSE,03/03/2023,12073066,"6,971.72",Private Contractors,Other Agencies
Southend-on-Sea Borough Council,http://www.opendatacommunities.org/id/unitary-authority/southend,ED Adults & Communities,Adult Social Care,1266,REDACTED PERSONAL DATA,03/03/2023,12073066,"1,646.40",Private Contractors,Other Agencies
Southend-on-Sea Borough Council,http://www.opendatacommunities.org/id/unitary-authority/southend,ED Adults & Communities,Adult Social Care,1641,MAVISWOOD LTD,03/03/2023,12073066,"1,626.24",Private Contractors,Other Agencies
Southend-on-Sea Borough Council,http://www.opendatacommunities.org/id/unitary-authority/southend,ED Adults & Communities,Adult Social Care,1070,MELROSE HOUSE,03/03/2023,12073066,"11,529.00",Private Contractors,Other Agencies
Southend-on-Sea Borough Council,http://www.opendatacommunities.org/id/unitary-authority/southend,ED Adults & Communities,Adult Social Care,1079,MELROSE HOUSE,03/03/2023,12073066,"2,305.80",Private Contractors,Other Agencies
Southend-on-Sea Borough Council,http://www.opendatacommunities.org/id/unitary-authority/southend,ED Adults & Communities,Adult Social Care,1192,MELROSE HOUSE,03/03/2023,12073066,"2,305.80",Private Contractors,Other Agencies
Southend-on-Sea Borough Council,http://www.opendatacommunities.org/id/unitary-authority/southend,ED Adults & Communities,Adult Social Care,1070,METEOR REST HOME LTD,03/03/2023,12073066,"14,129.00",Private Contractors,Other Agencies
Southend-on-Sea Borough Council,http://www.opendatacommunities.org/id/unitary-authority/southend,ED Adults & Communities,Adult Social Care,1079,METEOR REST HOME LTD,03/03/2023,12073066,"2,305.80",Private Contractors,Other Agencies
Southend-on-Sea Borough Council,http://www.opendatacommunities.org/id/unitary-authority/southend,ED Adults & Communities,Adult Social Care,1083,METEOR REST HOME LTD,03/03/2023,12073066,"3,200.00",Private Contractors,Other Agencies
Southend-on-Sea Borough Council,http://www.opendatacommunities.org/id/unitary-authority/southend,ED Adults & Communities,Adult Social Care,1391,METROPOLITAN HOUSING TRUST,03/03/2023,12073066,917.72,Private Contractors,Other Agencies
Southend-on-Sea Borough Council,http://www.opendatacommunities.org/id/unitary-authority/southend,ED Adults & Communities,Adult Social Care,1266,REDACTED PERSONAL DATA,03/03/2023,12073066,"1,646.40",Private Contractors,Other Agencies
Southend-on-Sea Borough Council,http://www.opendatacommunities.org/id/unitary-authority/southend,ED Adults & Communities,Adult Social Care,1266,REDACTED PERSONAL DATA,03/03/2023,12073066,"1,646.40",Private Contractors,Other Agencies
Southend-on-Sea Borough Council,http://www.opendatacommunities.org/id/unitary-authority/southend,ED Adults & Communities,Adult Social Care,1065,MOUNTDALE LIMITED T/A MOUNTDALE NURSING HOME,03/03/2023,12073066,"7,826.00",Private Contractors,Other Agencies
Southend-on-Sea Borough Council,http://www.opendatacommunities.org/id/unitary-authority/southend,ED Adults & Communities,Adult Social Care,1083,MOUNTDALE LIMITED T/A MOUNTDALE NURSING HOME,03/03/2023,12073066,"4,703.04",Private Contractors,Other Agencies
Southend-on-Sea Borough Council,http://www.opendatacommunities.org/id/unitary-authority/southend,ED Adults & Communities,Adult Social Care,1640,MOUNTDALE LIMITED T/A MOUNTDALE NURSING HOME,03/03/2023,12073066,-639.32,Private Contractors,Other Agencies
Southend-on-Sea Borough Council,http://www.opendatacommunities.org/id/unitary-authority/southend,ED Adults & Communities,Adult Social Care,1209,MR D OLFORD T/A OLFORD CARE SERVICES,03/03/2023,12073066,565,Tools And Equipment Purchase,Equipment Furniture And Materials
Southend-on-Sea Borough Council,http://www.opendatacommunities.org/id/unitary-authority/southend,ED Adults & Communities,Adult Social Care,1266,REDACTED PERSONAL DATA,03/03/2023,12073066,"3,531.36",Private Contractors,Other Agencies
Southend-on-Sea Borough Council,http://www.opendatacommunities.org/id/unitary-authority/southend,ED Adults & Communities,Adult Social Care,1260,MR JOHN DAVID ROBERTS T/A MAES TEG RESIDENTIAL HOME,03/03/2023,12073066,"4,478.04",Private Contractors,Other Agencies
Southend-on-Sea Borough Council,http://www.opendatacommunities.org/id/unitary-authority/southend,ED Adults & Communities,Adult Social Care,1070,MR K SINGH & MRS D KAUR T/AS POPPY LODGE CARE RESIDENTIAL HOMES LTD,03/03/2023,12073066,"12,792.48",Private Contractors,Other Agencies
Southend-on-Sea Borough Council,http://www.opendatacommunities.org/id/unitary-authority/southend,ED Adults & Communities,Adult Social Care,1079,MR K SINGH & MRS D KAUR T/AS POPPY LODGE CARE RESIDENTIAL HOMES LTD,03/03/2023,12073066,"2,637.60",Private Contractors,Other Agencies
Southend-on-Sea Borough Council,http://www.opendatacommunities.org/id/unitary-authority/southend,ED Adults & Communities,Adult Social Care,1266,REDACTED PERSONAL DATA,03/03/2023,12073066,"2,132.76",Private Contractors,Other Agencies
Southend-on-Sea Borough Council,http://www.opendatacommunities.org/id/unitary-authority/southend,ED Adults & Communities,Adult Social Care,1672,REDACTED PERSONAL DATA,03/03/2023,12073066,"1,327.48",Private Contractors,Other Agencies
Southend-on-Sea Borough Council,http://www.opendatacommunities.org/id/unitary-authority/southend,ED Adults & Communities,Adult Social Care,1266,REDACTED PERSONAL DATA,03/03/2023,12073066,"1,884.96",Private Contractors,Other Agencies
Southend-on-Sea Borough Council,http://www.opendatacommunities.org/id/unitary-authority/southend,ED Adults & Communities,Adult Social Care,1266,REDACTED PERSONAL DATA,03/03/2023,12073066,"3,049.76",Private Contractors,Other Agencies
Southend-on-Sea Borough Council,http://www.opendatacommunities.org/id/unitary-authority/southend,ED Adults & Communities,Adult Social Care,1266,REDACTED PERSONAL DATA,03/03/2023,12073066,"2,132.76",Private Contractors,Other Agencies
Southend-on-Sea Borough Council,http://www.opendatacommunities.org/id/unitary-authority/southend,ED Adults & Communities,Adult Social Care,1266,REDACTED PERSONAL DATA,03/03/2023,12073066,"5,425.56",Private Contractors,Other Agencies
Southend-on-Sea Borough Council,http://www.opendatacommunities.org/id/unitary-authority/southend,ED Growth & Housing,Housing Services,6011,MRS D D GRATTAN T/A ELIZABETH GUEST HOUSE,03/03/2023,12073066,630,Accommodation Costs,Expenses
Southend-on-Sea Borough Council,http://www.opendatacommunities.org/id/unitary-authority/southend,ED Children & Public Health,Children And Education Services,3455,REDACTED PERSONAL DATA,03/03/2023,12073066,"11,303.43",Guardianship Orders,Other Agencies
Southend-on-Sea Borough Council,http://www.opendatacommunities.org/id/unitary-authority/southend,ED Adults & Communities,Adult Social Care,1266,REDACTED PERSONAL DATA,03/03/2023,12073066,"3,640.00",Private Contractors,Other Agencies
Southend-on-Sea Borough Council,http://www.opendatacommunities.org/id/unitary-authority/southend,ED Adults & Communities,Adult Social Care,1386,MRS V L RATTAN T/AS BALI HAI CARE HOME,03/03/2023,12073066,"10,183.88",Private Contractors,Other Agencies
Southend-on-Sea Borough Council,http://www.opendatacommunities.org/id/unitary-authority/southend,ED Adults & Communities,Adult Social Care,1070,MRS V L RATTAN T/AS BROOK CARE HOME,03/03/2023,12073066,"4,611.60",Private Contractors,Other Agencies
Southend-on-Sea Borough Council,http://www.opendatacommunities.org/id/unitary-authority/southend,ED Adults & Communities,Adult Social Care,1079,MRS V L RATTAN T/AS BROOK CARE HOME,03/03/2023,12073066,"2,561.72",Private Contractors,Other Agencies
Southend-on-Sea Borough Council,http://www.opendatacommunities.org/id/unitary-authority/southend,ED Adults & Communities,Adult Social Care,1083,MRS V L RATTAN T/AS BROOK CARE HOME,03/03/2023,12073066,"1,729.35",Private Contractors,Other Agencies
Southend-on-Sea Borough Council,http://www.opendatacommunities.org/id/unitary-authority/southend,ED Adults & Communities,Adult Social Care,1611,MRS V L RATTAN T/AS BROOK CARE HOME,03/03/2023,12073066,"2,097.48",Private Contractors,Other Agencies
Southend-on-Sea Borough Council,http://www.opendatacommunities.org/id/unitary-authority/southend,ED Adults & Communities,Adult Social Care,1266,REDACTED PERSONAL DATA,03/03/2023,12073066,"2,132.76",Private Contractors,Other Agencies
Southend-on-Sea Borough Council,http://www.opendatacommunities.org/id/unitary-authority/southend,ED Adults & Communities,Adult Social Care,1266,REDACTED PERSONAL DATA,03/03/2023,12073066,"2,132.76",Private Contractors,Other Agencies
Southend-on-Sea Borough Council,http://www.opendatacommunities.org/id/unitary-authority/southend,ED Adults & Communities,Adult Social Care,1068,NAH CARE LTD T/A LANGLEY LODGE NURSING HOME,03/03/2023,12073066,"5,746.44",Private Contractors,Other Agencies
Southend-on-Sea Borough Council,http://www.opendatacommunities.org/id/unitary-authority/southend,ED Adults & Communities,Adult Social Care,1070,NAH CARE LTD T/A LANGLEY LODGE NURSING HOME,03/03/2023,12073066,"3,000.00",Private Contractors,Other Agencies
Southend-on-Sea Borough Council,http://www.opendatacommunities.org/id/unitary-authority/southend,ED Adults & Communities,Adult Social Care,1083,NAH CARE LTD T/A LANGLEY LODGE NURSING HOME,03/03/2023,12073066,"1,989.00",Private Contractors,Other Agencies
Southend-on-Sea Borough Council,http://www.opendatacommunities.org/id/unitary-authority/southend,ED Adults & Communities,Adult Social Care,1266,REDACTED PERSONAL DATA,03/03/2023,12073066,"2,973.88",Private Contractors,Other Agencies
Southend-on-Sea Borough Council,http://www.opendatacommunities.org/id/unitary-authority/southend,ED Children & Public Health,Children And Education Services,3312,NATIONAL YOUTH ADVOCACY SERVICE,03/03/2023,12073066,833.34,Private Contractors,Other Agencies
Southend-on-Sea Borough Council,http://www.opendatacommunities.org/id/unitary-authority/southend,ED Adults & Communities,Adult Social Care,1070,NAZARETH CARE CHARITABLE TRUST T/A NAZARETH HOUSE (HAMMERSMITH),03/03/2023,12073066,"2,160.00",Private Contractors,Other Agencies
Southend-on-Sea Borough Council,http://www.opendatacommunities.org/id/unitary-authority/southend,ED Adults & Communities,Adult Social Care,1641,NAZARETH CARE CHARITABLE TRUST T/A NAZARETH HOUSE (HAMMERSMITH),03/03/2023,12073066,"2,652.00",Private Contractors,Other Agencies
Southend-on-Sea Borough Council,http://www.opendatacommunities.org/id/unitary-authority/southend,ED Adults & Communities,Adult Social Care,1070,NCS SOLUTIONS T/A ABBOTTSWOOD LODGE CARE HOME,03/03/2023,12073066,"19,764.00",Private Contractors,Other Agencies
Southend-on-Sea Borough Council,http://www.opendatacommunities.org/id/unitary-authority/southend,ED Adults & Communities,Adult Social Care,1070,NCS T/A WESTBURY DAY CARE,03/03/2023,12073066,"18,446.40",Private Contractors,Other Agencies
Southend-on-Sea Borough Council,http://www.opendatacommunities.org/id/unitary-authority/southend,ED Adults & Communities,Adult Social Care,1083,NCS T/A WESTBURY DAY CARE,03/03/2023,12073066,"7,329.15",Private Contractors,Other Agencies
Southend-on-Sea Borough Council,http://www.opendatacommunities.org/id/unitary-authority/southend,ED Adults & Communities,Adult Social Care,1115,NCS T/A WESTBURY DAY CARE,03/03/2023,12073066,"2,305.80",Contractor - Programmed Works,Other Agencies
Southend-on-Sea Borough Council,http://www.opendatacommunities.org/id/unitary-authority/southend,ED Adults & Communities,Adult Social Care,1070,NEWBRAE CARE HOME,03/03/2023,12073066,"18,515.84",Private Contractors,Other Agencies
Southend-on-Sea Borough Council,http://www.opendatacommunities.org/id/unitary-authority/southend,ED Adults & Communities,Adult Social Care,1294,NEWHAVEN CARE LIMITED,03/03/2023,12073066,"16,426.52",Private Contractors,Other Agencies
Southend-on-Sea Borough Council,http://www.opendatacommunities.org/id/unitary-authority/southend,ED Growth & Housing,Planning Services,5520,NEWSQUEST MEDIA GROUP LTD,03/03/2023,12073066,929.04,Non Staff Advertising,Services
Southend-on-Sea Borough Council,http://www.opendatacommunities.org/id/unitary-authority/southend,ED Growth & Housing,Planning Services,5520,NEWSQUEST MEDIA GROUP LTD,03/03/2023,12073066,597.24,Non Staff Advertising,Services
Southend-on-Sea Borough Council,http://www.opendatacommunities.org/id/unitary-authority/southend,ED Adults & Communities,Adult Social Care,1209,NOTTINGHAM REHAB LTD,03/03/2023,12073066,516,Tools And Equipment Purchase,Equipment Furniture And Materials
Southend-on-Sea Borough Council,http://www.opendatacommunities.org/id/unitary-authority/southend,"ED Strategy, Change & Governance",Central Services,7130,NTT UNITED KINGDOM LIMITED,03/03/2023,12073066,"6,997.44",IT Contracts,Communications And Computing
Southend-on-Sea Borough Council,http://www.opendatacommunities.org/id/unitary-authority/southend,ED Adults & Communities,Adult Social Care,1070,OAK LODGE CARE LTD T/A THE LILACS RESIDENTIAL HOME,03/03/2023,12073066,"8,317.35",Private Contractors,Other Agencies
Southend-on-Sea Borough Council,http://www.opendatacommunities.org/id/unitary-authority/southend,ED Adults & Communities,Adult Social Care,1079,OAK LODGE CARE LTD T/A THE LILACS RESIDENTIAL HOME,03/03/2023,12073066,"2,305.80",Private Contractors,Other Agencies
Southend-on-Sea Borough Council,http://www.opendatacommunities.org/id/unitary-authority/southend,ED Adults & Communities,Adult Social Care,1083,OAK LODGE CARE LTD T/A THE LILACS RESIDENTIAL HOME,03/03/2023,12073066,"4,611.60",Private Contractors,Other Agencies
Southend-on-Sea Borough Council,http://www.opendatacommunities.org/id/unitary-authority/southend,ED Adults & Communities,Adult Social Care,1070,OAKDALE CARE HOME LTD,03/03/2023,12073066,"3,400.00",Private Contractors,Other Agencies
Southend-on-Sea Borough Council,http://www.opendatacommunities.org/id/unitary-authority/southend,ED Adults & Communities,Adult Social Care,1176,OASIS SUPPORTED LIVING LTD,03/03/2023,12073066,"4,019.16",Private Contractors,Other Agencies
Southend-on-Sea Borough Council,http://www.opendatacommunities.org/id/unitary-authority/southend,ED Adults & Communities,Adult Social Care,1294,OASIS SUPPORTED LIVING LTD,03/03/2023,12073066,"34,027.88",Private Contractors,Other Agencies
Southend-on-Sea Borough Council,http://www.opendatacommunities.org/id/unitary-authority/southend,ED Adults & Communities,Adult Social Care,1391,OASIS SUPPORTED LIVING LTD,03/03/2023,12073066,"3,809.48",Private Contractors,Other Agencies
Southend-on-Sea Borough Council,http://www.opendatacommunities.org/id/unitary-authority/southend,ED Adults & Communities,Adult Social Care,1070,OBEE LTD T/A BLISS RESIDENTIAL CARE HOME,03/03/2023,12073066,"14,477.44",Private Contractors,Other Agencies
Southend-on-Sea Borough Council,http://www.opendatacommunities.org/id/unitary-authority/southend,ED Adults & Communities,Adult Social Care,1079,OBEE LTD T/A BLISS RESIDENTIAL CARE HOME,03/03/2023,12073066,"2,305.80",Private Contractors,Other Agencies
Southend-on-Sea Borough Council,http://www.opendatacommunities.org/id/unitary-authority/southend,ED Adults & Communities,Adult Social Care,1083,OBEE LTD T/A BLISS RESIDENTIAL CARE HOME,03/03/2023,12073066,"2,305.80",Private Contractors,Other Agencies
Southend-on-Sea Borough Council,http://www.opendatacommunities.org/id/unitary-authority/southend,ED Adults & Communities,Adult Social Care,1115,OBEE LTD T/A BLISS RESIDENTIAL CARE HOME,03/03/2023,12073066,"2,600.00",Contractor - Programmed Works,Other Agencies
Southend-on-Sea Borough Council,http://www.opendatacommunities.org/id/unitary-authority/southend,ED Finance & Resources,Central Services,7120,ON-AV LTD,03/03/2023,12073066,"1,396.00",Materials,Equipment Furniture And Materials
Southend-on-Sea Borough Council,http://www.opendatacommunities.org/id/unitary-authority/southend,ED Adults & Communities,Adult Social Care,1070,ORSETT HOUSE RETIREMENT HOME LTD,03/03/2023,12073066,"2,600.00",Private Contractors,Other Agencies
Southend-on-Sea Borough Council,http://www.opendatacommunities.org/id/unitary-authority/southend,ED Neighbourhoods & Environment,Environmental And Regulatory Services,7035,OSBORNE RICHARDSON LTD,03/03/2023,12073066,888.75,Private Contractors,Other Agencies
Southend-on-Sea Borough Council,http://www.opendatacommunities.org/id/unitary-authority/southend,ED Neighbourhoods & Environment,Environmental And Regulatory Services,4575,OSBORNE RICHARDSON LTD,03/03/2023,12073066,600,Private Contractors,Other Agencies
Southend-on-Sea Borough Council,http://www.opendatacommunities.org/id/unitary-authority/southend,ED Neighbourhoods & Environment,Environmental And Regulatory Services,7035,OSBORNE RICHARDSON LTD,03/03/2023,12073066,641.25,Private Contractors,Other Agencies
Southend-on-Sea Borough Council,http://www.opendatacommunities.org/id/unitary-authority/southend,ED Adults & Communities,Adult Social Care,1209,OTS LIMITED,03/03/2023,12073066,"1,477.00",Tools And Equipment Purchase,Equipment Furniture And Materials
Southend-on-Sea Borough Council,http://www.opendatacommunities.org/id/unitary-authority/southend,ED Adults & Communities,Adult Social Care,1294,OUTLOOK CARE,03/03/2023,12073066,"26,492.12",Private Contractors,Other Agencies
Southend-on-Sea Borough Council,http://www.opendatacommunities.org/id/unitary-authority/southend,ED Adults & Communities,Adult Social Care,1675,OUTLOOK CARE,03/03/2023,12073066,"4,586.68",Private Contractors,Other Agencies
Southend-on-Sea Borough Council,http://www.opendatacommunities.org/id/unitary-authority/southend,ED Adults & Communities,Adult Social Care,1260,REDACTED PERSONAL DATA,03/03/2023,12073066,"4,170.04",Private Contractors,Other Agencies
Southend-on-Sea Borough Council,http://www.opendatacommunities.org/id/unitary-authority/southend,ED Adults & Communities,Cultural And Related Services,4015,PAPER BAG CO (SOUTH WEST) LIMITED,03/03/2023,12073066,624,Cultural And Entertainment Services,Services
Southend-on-Sea Borough Council,http://www.opendatacommunities.org/id/unitary-authority/southend,ED Adults & Communities,Adult Social Care,1386,PARTNERSHIPS IN CARE 1 LIMITED T/A PRIORY GROUP T/A RIVERBANK,03/03/2023,12073066,"3,136.56",Private Contractors,Other Agencies
Southend-on-Sea Borough Council,http://www.opendatacommunities.org/id/unitary-authority/southend,ED Adults & Communities,Adult Social Care,1260,PATHWAYS CARE GROUP LIMITED,03/03/2023,12073066,"4,018.56",Private Contractors,Other Agencies
Southend-on-Sea Borough Council,http://www.opendatacommunities.org/id/unitary-authority/southend,ED Adults & Communities,Adult Social Care,1386,PATHWAYS CARE GROUP LIMITED,03/03/2023,12073066,"4,275.88",Private Contractors,Other Agencies
Southend-on-Sea Borough Council,http://www.opendatacommunities.org/id/unitary-authority/southend,ED Adults & Communities,Adult Social Care,1675,PEABODY SOUTH EAST LIMITED,03/03/2023,12073066,"3,999.68",Private Contractors,Other Agencies
Southend-on-Sea Borough Council,http://www.opendatacommunities.org/id/unitary-authority/southend,ED Neighbourhoods & Environment,Highways And Transport Services,5075,PEOPLESCOUT LTD,03/03/2023,12073066,592.53,Non Staff Advertising,Services
Southend-on-Sea Borough Council,http://www.opendatacommunities.org/id/unitary-authority/southend,ED Neighbourhoods & Environment,Highways And Transport Services,5075,PEOPLESCOUT LTD,03/03/2023,12073066,"1,576.74",Non Staff Advertising,Services
Southend-on-Sea Borough Council,http://www.opendatacommunities.org/id/unitary-authority/southend,ED Neighbourhoods & Environment,Highways And Transport Services,5075,PEOPLESCOUT LTD,03/03/2023,12073066,"1,315.62",Non Staff Advertising,Services
Southend-on-Sea Borough Council,http://www.opendatacommunities.org/id/unitary-authority/southend,ED Adults & Communities,Adult Social Care,1641,POTENSIAL LTD T/A POTENS,03/03/2023,12073066,"2,400.00",Private Contractors,Other Agencies
Southend-on-Sea Borough Council,http://www.opendatacommunities.org/id/unitary-authority/southend,ED Adults & Communities,Adult Social Care,1260,PRIOR'S COURT SERVICES LIMITED,03/03/2023,12073066,"14,450.00",Private Contractors,Other Agencies
Southend-on-Sea Borough Council,http://www.opendatacommunities.org/id/unitary-authority/southend,ED Adults & Communities,Adult Social Care,1079,PRIORY SUPPORTING CARE LTD,03/03/2023,12073066,"2,520.00",Private Contractors,Other Agencies
Southend-on-Sea Borough Council,http://www.opendatacommunities.org/id/unitary-authority/southend,ED Adults & Communities,Adult Social Care,1260,R G CARE LTD T/AS LIFSTAN WAY LTD,03/03/2023,12073066,"4,963.28",Private Contractors,Other Agencies
Southend-on-Sea Borough Council,http://www.opendatacommunities.org/id/unitary-authority/southend,ED Adults & Communities,Adult Social Care,1386,R G CARE LTD T/AS LIFSTAN WAY LTD,03/03/2023,12073066,"19,004.56",Private Contractors,Other Agencies
Southend-on-Sea Borough Council,http://www.opendatacommunities.org/id/unitary-authority/southend,ED Adults & Communities,Adult Social Care,1070,R G CARE LTD T/AS SANDS LODGE RESIDENTIAL HOME,03/03/2023,12073066,"3,180.00",Private Contractors,Other Agencies
Southend-on-Sea Borough Council,http://www.opendatacommunities.org/id/unitary-authority/southend,ED Adults & Communities,Adult Social Care,1260,R G CARE LTD T/AS SANDS LODGE RESIDENTIAL HOME,03/03/2023,12073066,"6,046.88",Private Contractors,Other Agencies
Southend-on-Sea Borough Council,http://www.opendatacommunities.org/id/unitary-authority/southend,ED Adults & Communities,Adult Social Care,1386,R G CARE LTD T/AS SANDS LODGE RESIDENTIAL HOME,03/03/2023,12073066,"22,391.60",Private Contractors,Other Agencies
Southend-on-Sea Borough Council,http://www.opendatacommunities.org/id/unitary-authority/southend,ED Adults & Communities,Adult Social Care,1641,R G CARE LTD T/AS SANDS LODGE RESIDENTIAL HOME,03/03/2023,12073066,"-6,171.48",Private Contractors,Other Agencies
Southend-on-Sea Borough Council,http://www.opendatacommunities.org/id/unitary-authority/southend,ED Adults & Communities,Adult Social Care,1115,R G CARE LTD T/AS SANDS LODGE RESIDENTIAL HOME,03/03/2023,12073066,"4,200.00",Contractor - Programmed Works,Other Agencies
Southend-on-Sea Borough Council,http://www.opendatacommunities.org/id/unitary-authority/southend,ED Adults & Communities,Adult Social Care,1070,RCH CARE HOMES LIMITED T/A BRENTWOOD CARE CENTRE,03/03/2023,12073066,"5,200.00",Private Contractors,Other Agencies
Southend-on-Sea Borough Council,http://www.opendatacommunities.org/id/unitary-authority/southend,ED Finance & Resources,Central Services,8607,RICOH UK LIMITED,03/03/2023,12073066,"17,495.54",Photocopier Operating Lease,Printing Stationery And General Office Expenses
Southend-on-Sea Borough Council,http://www.opendatacommunities.org/id/unitary-authority/southend,ED Finance & Resources,Central Services,7111,RICOH UK LIMITED,03/03/2023,12073066,"8,233.20",Printing,Printing Stationery And General Office Expenses
Southend-on-Sea Borough Council,http://www.opendatacommunities.org/id/unitary-authority/southend,ED Finance & Resources,Central Services,8607,RICOH UK LIMITED,03/03/2023,12073066,"-17,495.54",Photocopier Operating Lease,Printing Stationery And General Office Expenses
Southend-on-Sea Borough Council,http://www.opendatacommunities.org/id/unitary-authority/southend,ED Adults & Communities,Adult Social Care,1266,REDACTED PERSONAL DATA,03/03/2023,12073066,515.33,Private Contractors,Other Agencies
Southend-on-Sea Borough Council,http://www.opendatacommunities.org/id/unitary-authority/southend,ED Adults & Communities,Adult Social Care,1260,ROYAL MENCAP SOCIETY,03/03/2023,12073066,"5,870.20",Private Contractors,Other Agencies
Southend-on-Sea Borough Council,http://www.opendatacommunities.org/id/unitary-authority/southend,ED Adults & Communities,Adult Social Care,1294,ROYAL MENCAP SOCIETY,03/03/2023,12073066,"20,411.44",Private Contractors,Other Agencies
Southend-on-Sea Borough Council,http://www.opendatacommunities.org/id/unitary-authority/southend,ED Adults & Communities,Adult Social Care,1675,ROYAL MENCAP SOCIETY,03/03/2023,12073066,"32,124.65",Private Contractors,Other Agencies
Southend-on-Sea Borough Council,http://www.opendatacommunities.org/id/unitary-authority/southend,ED Adults & Communities,Adult Social Care,1105,ROYALE CARERS LIMITED,03/03/2023,12073066,"1,434.50",Private Contractors,Other Agencies
Southend-on-Sea Borough Council,http://www.opendatacommunities.org/id/unitary-authority/southend,ED Adults & Communities,Adult Social Care,1105,ROYALE CARERS LIMITED,03/03/2023,12073066,893,Private Contractors,Other Agencies
Southend-on-Sea Borough Council,http://www.opendatacommunities.org/id/unitary-authority/southend,ED Adults & Communities,Adult Social Care,1105,ROYALE CARERS LIMITED,03/03/2023,12073066,950,Private Contractors,Other Agencies
Southend-on-Sea Borough Council,http://www.opendatacommunities.org/id/unitary-authority/southend,ED Adults & Communities,Adult Social Care,1105,ROYALE CARERS LIMITED,03/03/2023,12073066,513,Private Contractors,Other Agencies
Southend-on-Sea Borough Council,http://www.opendatacommunities.org/id/unitary-authority/southend,ED Adults & Communities,Adult Social Care,1105,ROYALE CARERS LIMITED,03/03/2023,12073066,"1,197.00",Private Contractors,Other Agencies
Southend-on-Sea Borough Council,http://www.opendatacommunities.org/id/unitary-authority/southend,ED Adults & Communities,Adult Social Care,1400,ROYALE CARERS LIMITED,03/03/2023,12073066,665,Private Contractors,Other Agencies
Southend-on-Sea Borough Council,http://www.opendatacommunities.org/id/unitary-authority/southend,ED Adults & Communities,Adult Social Care,1079,RUNWOOD HOMES,03/03/2023,12073066,"2,305.80",Private Contractors,Other Agencies
Southend-on-Sea Borough Council,http://www.opendatacommunities.org/id/unitary-authority/southend,ED Adults & Communities,Adult Social Care,1070,RUNWOOD HOMES,03/03/2023,12073066,"2,340.24",Private Contractors,Other Agencies
Southend-on-Sea Borough Council,http://www.opendatacommunities.org/id/unitary-authority/southend,ED Adults & Communities,Adult Social Care,1065,RUNWOOD HOMES,03/03/2023,12073066,"2,576.12",Private Contractors,Other Agencies
Southend-on-Sea Borough Council,http://www.opendatacommunities.org/id/unitary-authority/southend,ED Adults & Communities,Adult Social Care,1070,RUNWOOD HOMES,03/03/2023,12073066,"83,502.76",Private Contractors,Other Agencies
Southend-on-Sea Borough Council,http://www.opendatacommunities.org/id/unitary-authority/southend,ED Adults & Communities,Adult Social Care,1079,RUNWOOD HOMES,03/03/2023,12073066,"13,938.93",Private Contractors,Other Agencies
Southend-on-Sea Borough Council,http://www.opendatacommunities.org/id/unitary-authority/southend,ED Adults & Communities,Adult Social Care,1083,RUNWOOD HOMES,03/03/2023,12073066,"8,976.15",Private Contractors,Other Agencies
Southend-on-Sea Borough Council,http://www.opendatacommunities.org/id/unitary-authority/southend,ED Adults & Communities,Adult Social Care,1581,RUNWOOD HOMES,03/03/2023,12073066,"2,305.80",Private Contractors,Other Agencies
Southend-on-Sea Borough Council,http://www.opendatacommunities.org/id/unitary-authority/southend,ED Adults & Communities,Adult Social Care,1671,RUNWOOD HOMES,03/03/2023,12073066,"2,305.80",Private Contractors,Other Agencies
Southend-on-Sea Borough Council,http://www.opendatacommunities.org/id/unitary-authority/southend,ED Adults & Communities,Adult Social Care,1386,S B CARE LTD,03/03/2023,12073066,"13,934.20",Private Contractors,Other Agencies
Southend-on-Sea Borough Council,http://www.opendatacommunities.org/id/unitary-authority/southend,ED Adults & Communities,Adult Social Care,1070,SALVATION ARMY,03/03/2023,12073066,"27,641.76",Private Contractors,Other Agencies
Southend-on-Sea Borough Council,http://www.opendatacommunities.org/id/unitary-authority/southend,ED Adults & Communities,Adult Social Care,1076,SALVATION ARMY,03/03/2023,12073066,"2,305.80",Private Contractors,Other Agencies
Southend-on-Sea Borough Council,http://www.opendatacommunities.org/id/unitary-authority/southend,ED Adults & Communities,Adult Social Care,1115,SALVATION ARMY,03/03/2023,12073066,"4,242.00",Contractor - Programmed Works,Other Agencies
Southend-on-Sea Borough Council,http://www.opendatacommunities.org/id/unitary-authority/southend,ED Children & Public Health,Children And Education Services,3691,SANCTUARY HOUSING ASSOCIATION,03/03/2023,12073066,"1,176.08",Accomodation Payment,Services
Southend-on-Sea Borough Council,http://www.opendatacommunities.org/id/unitary-authority/southend,ED Children & Public Health,Children And Education Services,3491,SANCTUARY HOUSING ASSOCIATION,03/03/2023,12073066,"1,176.08",Accomodation Payment,Services
Southend-on-Sea Borough Council,http://www.opendatacommunities.org/id/unitary-authority/southend,ED Adults & Communities,Adult Social Care,1294,SAS SUPPORT & SOLUTIONS LIMITED,03/03/2023,12073066,"9,666.44",Private Contractors,Other Agencies
Southend-on-Sea Borough Council,http://www.opendatacommunities.org/id/unitary-authority/southend,ED Adults & Communities,Adult Social Care,1070,SELECT PRIMECARE LTD,03/03/2023,12073066,"2,328.40",Private Contractors,Other Agencies
Southend-on-Sea Borough Council,http://www.opendatacommunities.org/id/unitary-authority/southend,ED Adults & Communities,Adult Social Care,1266,REDACTED PERSONAL DATA,03/03/2023,12073066,"3,690.12",Private Contractors,Other Agencies
Southend-on-Sea Borough Council,http://www.opendatacommunities.org/id/unitary-authority/southend,ED Growth & Housing,Housing Services,6011,SHARP COMMERCIAL LTD,03/03/2023,12073066,"1,460.38",Accomodation Payment,Services
Southend-on-Sea Borough Council,http://www.opendatacommunities.org/id/unitary-authority/southend,ED Adults & Communities,Adult Social Care,1070,SIGNATURE SENIOR LIFESTYLE OPERATIONS LTD T/A WILLOW TOWER OPCO 1 LTD,03/03/2023,12073066,"5,087.32",Private Contractors,Other Agencies
Southend-on-Sea Borough Council,http://www.opendatacommunities.org/id/unitary-authority/southend,ED Finance & Resources,Central Services,2114,SOUTH ESSEX COLLEGE OF FURTHER & HIGHER EDUCATION,03/03/2023,12073066,"4,680.00",Education Services,Services
Southend-on-Sea Borough Council,http://www.opendatacommunities.org/id/unitary-authority/southend,ED Adults & Communities,Adult Social Care,1085,SOUTH ESSEX PROPERTY SERVICES,03/03/2023,12073066,"11,428.00",Repairs And Maintenance Contracts,"Repairs, alterations and maintenance of buildings"
Southend-on-Sea Borough Council,http://www.opendatacommunities.org/id/unitary-authority/southend,ED Finance & Resources,Environmental and Regulatory Services,7535,SOUTH ESSEX PROPERTY SERVICES,03/03/2023,12073066,"34,638.97",Cleaning And Janitorial Cleaning Service,Cleaning And Domestic Supplies
Southend-on-Sea Borough Council,http://www.opendatacommunities.org/id/unitary-authority/southend,ED Finance & Resources,Central Services,7160,SOUTH ESSEX PROPERTY SERVICES,03/03/2023,12073066,"63,228.79",Cleaning And Janitorial Cleaning Service,Cleaning And Domestic Supplies
Southend-on-Sea Borough Council,http://www.opendatacommunities.org/id/unitary-authority/southend,ED Neighbourhoods & Environment,Environmental And Regulatory Services,4526,SOUTH ESSEX PROPERTY SERVICES,03/03/2023,12073066,"23,477.00",Agency Staff,Direct Employee Expenses
Southend-on-Sea Borough Council,http://www.opendatacommunities.org/id/unitary-authority/southend,ED Neighbourhoods & Environment,Highways And Transport Services,5230,SOUTH ESSEX PROPERTY SERVICES,03/03/2023,12073066,"7,361.54",Security,"Repairs, alterations and maintenance of buildings"
Southend-on-Sea Borough Council,http://www.opendatacommunities.org/id/unitary-authority/southend,ED Neighbourhoods & Environment,Highways And Transport Services,5230,SOUTH ESSEX PROPERTY SERVICES,03/03/2023,12073066,610.85,Cleaning And Janitorial Cleaning Service,Cleaning And Domestic Supplies
Southend-on-Sea Borough Council,http://www.opendatacommunities.org/id/unitary-authority/southend,ED Growth & Housing,Adult Social Care,6012,SOUTHEND ADULT COMMUNITY COLLEGE,03/03/2023,12073066,"11,693.51",Education Services,Services
Southend-on-Sea Borough Council,http://www.opendatacommunities.org/id/unitary-authority/southend,ED Adults & Communities,Adult Social Care,1070,SOUTHEND ON SEA DARBY & JOAN ORGANISATION,03/03/2023,12073066,"17,407.04",Private Contractors,Other Agencies
Southend-on-Sea Borough Council,http://www.opendatacommunities.org/id/unitary-authority/southend,ED Adults & Communities,Adult Social Care,1079,SOUTHEND ON SEA DARBY & JOAN ORGANISATION,03/03/2023,12073066,"10,176.32",Private Contractors,Other Agencies
Southend-on-Sea Borough Council,http://www.opendatacommunities.org/id/unitary-authority/southend,ED Adults & Communities, Public Health,7685,SPORTS & LEISURE MANAGEMENT LTD NOW EVERYONE HEALTH LTD,03/03/2023,12073066,"1,958.33",Private Contractors,Other Agencies
Southend-on-Sea Borough Council,http://www.opendatacommunities.org/id/unitary-authority/southend,ED Adults & Communities, Public Health,7685,SPORTS & LEISURE MANAGEMENT LTD NOW EVERYONE HEALTH LTD,03/03/2023,12073066,"7,916.17",Private Contractors,Other Agencies
Southend-on-Sea Borough Council,http://www.opendatacommunities.org/id/unitary-authority/southend,ED Adults & Communities, Public Health,7685,SPORTS & LEISURE MANAGEMENT LTD NOW EVERYONE HEALTH LTD,03/03/2023,12073066,"23,416.67",Private Contractors,Other Agencies
Southend-on-Sea Borough Council,http://www.opendatacommunities.org/id/unitary-authority/southend,ED Adults & Communities, Public Health,7685,SPORTS & LEISURE MANAGEMENT LTD NOW EVERYONE HEALTH LTD,03/03/2023,12073066,"16,750.00",Private Contractors,Other Agencies
Southend-on-Sea Borough Council,http://www.opendatacommunities.org/id/unitary-authority/southend,ED Adults & Communities,Adult Social Care,1070,ST EDITHS COURT,03/03/2023,12073066,"15,470.92",Private Contractors,Other Agencies
Southend-on-Sea Borough Council,http://www.opendatacommunities.org/id/unitary-authority/southend,ED Adults & Communities,Adult Social Care,1083,ST EDITHS COURT,03/03/2023,12073066,"4,405.08",Private Contractors,Other Agencies
Southend-on-Sea Borough Council,http://www.opendatacommunities.org/id/unitary-authority/southend,ED Neighbourhoods & Environment,Environmental And Regulatory Services,4537,STAMBRIDGE SECURITY SERVICES LTD,03/03/2023,12073066,"1,404.00",Security,"Repairs, alterations and maintenance of buildings"
Southend-on-Sea Borough Council,http://www.opendatacommunities.org/id/unitary-authority/southend,ED Neighbourhoods & Environment,Environmental And Regulatory Services,4537,STAMBRIDGE SECURITY SERVICES LTD,03/03/2023,12073066,"8,050.46",Security,"Repairs, alterations and maintenance of buildings"
Southend-on-Sea Borough Council,http://www.opendatacommunities.org/id/unitary-authority/southend,ED Neighbourhoods & Environment,Environmental And Regulatory Services,4537,STAMBRIDGE SECURITY SERVICES LTD,03/03/2023,12073066,"5,146.47",Security,"Repairs, alterations and maintenance of buildings"
Southend-on-Sea Borough Council,http://www.opendatacommunities.org/id/unitary-authority/southend,ED Neighbourhoods & Environment,Environmental And Regulatory Services,4537,STAMBRIDGE SECURITY SERVICES LTD,03/03/2023,12073066,"7,236.00",Security,"Repairs, alterations and maintenance of buildings"
Southend-on-Sea Borough Council,http://www.opendatacommunities.org/id/unitary-authority/southend,ED Neighbourhoods & Environment,Environmental And Regulatory Services,4537,STAMBRIDGE SECURITY SERVICES LTD,03/03/2023,12073066,"12,485.81",Security,"Repairs, alterations and maintenance of buildings"
Southend-on-Sea Borough Council,http://www.opendatacommunities.org/id/unitary-authority/southend,ED Neighbourhoods & Environment,Environmental And Regulatory Services,4537,STAMBRIDGE SECURITY SERVICES LTD,03/03/2023,12073066,"7,607.25",Security,"Repairs, alterations and maintenance of buildings"
Southend-on-Sea Borough Council,http://www.opendatacommunities.org/id/unitary-authority/southend,ED Neighbourhoods & Environment,Environmental And Regulatory Services,4537,STAMBRIDGE SECURITY SERVICES LTD,03/03/2023,12073066,"11,988.00",Security,"Repairs, alterations and maintenance of buildings"
Southend-on-Sea Borough Council,http://www.opendatacommunities.org/id/unitary-authority/southend,ED Neighbourhoods & Environment,Environmental And Regulatory Services,4537,STAMBRIDGE SECURITY SERVICES LTD,03/03/2023,12073066,635.04,Security,"Repairs, alterations and maintenance of buildings"
Southend-on-Sea Borough Council,http://www.opendatacommunities.org/id/unitary-authority/southend,ED Children & Public Health,Children And Education Services,3691,STEF AND PHILIPS CLIENTS ACCOUNTS,03/03/2023,12073066,899,Accomodation Payment,Services
Southend-on-Sea Borough Council,http://www.opendatacommunities.org/id/unitary-authority/southend,ED Children & Public Health,Children And Education Services,3691,STEF AND PHILIPS CLIENTS ACCOUNTS,03/03/2023,12073066,"1,085.00",Accomodation Payment,Services
Southend-on-Sea Borough Council,http://www.opendatacommunities.org/id/unitary-authority/southend,ED Children & Public Health,Children And Education Services,3891,STEF AND PHILIPS CLIENTS ACCOUNTS,03/03/2023,12073066,"1,193.50",Accomodation Payment,Services
Southend-on-Sea Borough Council,http://www.opendatacommunities.org/id/unitary-authority/southend,ED Adults & Communities,Adult Social Care,1260,SUMMERCARE HOMES LTD,03/03/2023,12073066,"8,711.76",Private Contractors,Other Agencies
Southend-on-Sea Borough Council,http://www.opendatacommunities.org/id/unitary-authority/southend,ED Adults & Communities,Adult Social Care,1260,SUMMERCARE HOMES LTD,03/03/2023,12073066,"3,417.68",Private Contractors,Other Agencies
Southend-on-Sea Borough Council,http://www.opendatacommunities.org/id/unitary-authority/southend,ED Adults & Communities,Adult Social Care,1260,SUMMERCARE HOMES LTD,03/03/2023,12073066,"35,471.80",Private Contractors,Other Agencies
Southend-on-Sea Borough Council,http://www.opendatacommunities.org/id/unitary-authority/southend,ED Adults & Communities,Adult Social Care,1263,SUMMERCARE HOMES LTD,03/03/2023,12073066,"6,076.47",Private Contractors,Other Agencies
Southend-on-Sea Borough Council,http://www.opendatacommunities.org/id/unitary-authority/southend,ED Adults & Communities,Adult Social Care,1671,SUMMERCARE HOMES LTD,03/03/2023,12073066,"1,811.32",Private Contractors,Other Agencies
Southend-on-Sea Borough Council,http://www.opendatacommunities.org/id/unitary-authority/southend,ED Adults & Communities,Adult Social Care,1294,SUMMERCARE HOMES LTD,03/03/2023,12073066,"31,349.36",Private Contractors,Other Agencies
Southend-on-Sea Borough Council,http://www.opendatacommunities.org/id/unitary-authority/southend,ED Adults & Communities,Adult Social Care,1675,SUMMERCARE HOMES LTD,03/03/2023,12073066,"1,334.20",Private Contractors,Other Agencies
Southend-on-Sea Borough Council,http://www.opendatacommunities.org/id/unitary-authority/southend,ED Adults & Communities,Adult Social Care,1266,REDACTED PERSONAL DATA,03/03/2023,12073066,"3,531.36",Private Contractors,Other Agencies
Southend-on-Sea Borough Council,http://www.opendatacommunities.org/id/unitary-authority/southend,ED Adults & Communities,Cultural And Related Services,4120,T R FOSSETT LTD,03/03/2023,12073066,"2,640.00",Private Contractors,Other Agencies
Southend-on-Sea Borough Council,http://www.opendatacommunities.org/id/unitary-authority/southend,ED Adults & Communities,Adult Social Care,1266,REDACTED PERSONAL DATA,03/03/2023,12073066,"1,884.96",Private Contractors,Other Agencies
Southend-on-Sea Borough Council,http://www.opendatacommunities.org/id/unitary-authority/southend,ED Adults & Communities,Adult Social Care,1391,THE BEACH HOUSE,03/03/2023,12073066,"12,257.24",Private Contractors,Other Agencies
Southend-on-Sea Borough Council,http://www.opendatacommunities.org/id/unitary-authority/southend,ED Adults & Communities,Adult Social Care,1260,THE HOME FARM TRUST,03/03/2023,12073066,"15,580.75",Private Contractors,Other Agencies
Southend-on-Sea Borough Council,http://www.opendatacommunities.org/id/unitary-authority/southend,ED Adults & Communities,Adult Social Care,1671,THE NATIONAL SOCIETY FOR EPILEPSY,03/03/2023,12073066,"4,524.00",Private Contractors,Other Agencies
Southend-on-Sea Borough Council,http://www.opendatacommunities.org/id/unitary-authority/southend,ED Children & Public Health,Children And Education Services,3092,THE NATIONAL TEACHING ADVISORY SERVICE,03/03/2023,12073066,"3,594.00",Services On Behalf Of Pupils,Services
Southend-on-Sea Borough Council,http://www.opendatacommunities.org/id/unitary-authority/southend,ED Adults & Communities,Adult Social Care,1466,THE STRATHMORE CARE GROUP,03/03/2023,12073066,"1,500.00",COVID-19 Response,Other Agencies
Southend-on-Sea Borough Council,http://www.opendatacommunities.org/id/unitary-authority/southend,ED Adults & Communities,Adult Social Care,1260,THE STRATHMORE CARE GROUP,03/03/2023,12073066,"2,305.80",Private Contractors,Other Agencies
Southend-on-Sea Borough Council,http://www.opendatacommunities.org/id/unitary-authority/southend,ED Adults & Communities,Adult Social Care,1070,THE STRATHMORE CARE GROUP,03/03/2023,12073066,"70,976.17",Private Contractors,Other Agencies
Southend-on-Sea Borough Council,http://www.opendatacommunities.org/id/unitary-authority/southend,ED Adults & Communities,Adult Social Care,1079,THE STRATHMORE CARE GROUP,03/03/2023,12073066,"9,110.36",Private Contractors,Other Agencies
Southend-on-Sea Borough Council,http://www.opendatacommunities.org/id/unitary-authority/southend,ED Adults & Communities,Adult Social Care,1083,THE STRATHMORE CARE GROUP,03/03/2023,12073066,"13,011.30",Private Contractors,Other Agencies
Southend-on-Sea Borough Council,http://www.opendatacommunities.org/id/unitary-authority/southend,ED Adults & Communities,Adult Social Care,1192,THE STRATHMORE CARE GROUP,03/03/2023,12073066,"9,367.96",Private Contractors,Other Agencies
Southend-on-Sea Borough Council,http://www.opendatacommunities.org/id/unitary-authority/southend,ED Adults & Communities,Adult Social Care,1386,THE STRATHMORE CARE GROUP,03/03/2023,12073066,"2,305.80",Private Contractors,Other Agencies
Southend-on-Sea Borough Council,http://www.opendatacommunities.org/id/unitary-authority/southend,ED Adults & Communities,Adult Social Care,1581,THE STRATHMORE CARE GROUP,03/03/2023,12073066,"2,305.80",Private Contractors,Other Agencies
Southend-on-Sea Borough Council,http://www.opendatacommunities.org/id/unitary-authority/southend,ED Adults & Communities,Adult Social Care,1641,THE STRATHMORE CARE GROUP,03/03/2023,12073066,"2,305.80",Private Contractors,Other Agencies
Southend-on-Sea Borough Council,http://www.opendatacommunities.org/id/unitary-authority/southend,ED Adults & Communities,Adult Social Care,1115,THE STRATHMORE CARE GROUP,03/03/2023,12073066,"12,110.84",Contractor - Programmed Works,Other Agencies
Southend-on-Sea Borough Council,http://www.opendatacommunities.org/id/unitary-authority/southend,ED Adults & Communities,Adult Social Care,1260,TLC CARE HOMES LTD,03/03/2023,12073066,"5,462.52",Private Contractors,Other Agencies
Southend-on-Sea Borough Council,http://www.opendatacommunities.org/id/unitary-authority/southend,ED Adults & Communities,Adult Social Care,1294,TLC CARE HOMES LTD,03/03/2023,12073066,"7,903.28",Private Contractors,Other Agencies
Southend-on-Sea Borough Council,http://www.opendatacommunities.org/id/unitary-authority/southend,ED Neighbourhoods & Environment,Cultural and Related Services,7520,TLM MANAGEMENT LTD,03/03/2023,12073066,653,Private Contractors,Other Agencies
Southend-on-Sea Borough Council,http://www.opendatacommunities.org/id/unitary-authority/southend,ED Neighbourhoods & Environment,Cultural and Related Services,7505,TLM MANAGEMENT LTD,03/03/2023,12073066,612.5,Private Contractors,Other Agencies
Southend-on-Sea Borough Council,http://www.opendatacommunities.org/id/unitary-authority/southend,ED Neighbourhoods & Environment,Cultural And Related Services,7540,TLM MANAGEMENT LTD,03/03/2023,12073066,"1,551.50",Private Contractors,Other Agencies
Southend-on-Sea Borough Council,http://www.opendatacommunities.org/id/unitary-authority/southend,ED Neighbourhoods & Environment,Cultural and Related Services,7505,TP LEASING LIMITED,03/03/2023,12073066,"10,230.55",Lease Cars Lease Charges,Car Allowances
Southend-on-Sea Borough Council,http://www.opendatacommunities.org/id/unitary-authority/southend,ED Neighbourhoods & Environment,Cultural and Related Services,7510,TP LEASING LIMITED,03/03/2023,12073066,"10,230.55",Lease Cars Lease Charges,Car Allowances
Southend-on-Sea Borough Council,http://www.opendatacommunities.org/id/unitary-authority/southend,ED Neighbourhoods & Environment,Cultural and Related Services,7520,TP LEASING LIMITED,03/03/2023,12073066,"10,230.55",Lease Cars Lease Charges,Car Allowances
Southend-on-Sea Borough Council,http://www.opendatacommunities.org/id/unitary-authority/southend,ED Neighbourhoods & Environment,Cultural and Related Services,7505,TP LEASING LIMITED,03/03/2023,12073066,"2,875.32",Lease Cars Lease Charges,Car Allowances
Southend-on-Sea Borough Council,http://www.opendatacommunities.org/id/unitary-authority/southend,ED Neighbourhoods & Environment,Cultural and Related Services,7510,TP LEASING LIMITED,03/03/2023,12073066,"2,875.32",Lease Cars Lease Charges,Car Allowances
Southend-on-Sea Borough Council,http://www.opendatacommunities.org/id/unitary-authority/southend,ED Neighbourhoods & Environment,Cultural and Related Services,7520,TP LEASING LIMITED,03/03/2023,12073066,"2,875.31",Lease Cars Lease Charges,Car Allowances
Southend-on-Sea Borough Council,http://www.opendatacommunities.org/id/unitary-authority/southend,ED Neighbourhoods & Environment,Cultural And Related Services,7540,TP LEASING LIMITED,03/03/2023,12073066,"2,875.31",Lease Cars Lease Charges,Car Allowances
Southend-on-Sea Borough Council,http://www.opendatacommunities.org/id/unitary-authority/southend,ED Neighbourhoods & Environment,Cultural And Related Services,7540,TP LEASING LIMITED,03/03/2023,12073066,"10,230.56",Lease Cars Lease Charges,Car Allowances
Southend-on-Sea Borough Council,http://www.opendatacommunities.org/id/unitary-authority/southend,"ED Strategy, Change & Governance",Central Services,8603,TUSKERDIRECT LTD,03/03/2023,12073066,"12,988.84",Contract Hire Of Vehicles Not Taxis Plant Or Buses,Contract Hire And Operating Leases
Southend-on-Sea Borough Council,http://www.opendatacommunities.org/id/unitary-authority/southend,"ED Strategy, Change & Governance",Central Services,8603,TUSKERDIRECT LTD,03/03/2023,12073066,"-3,417.90",Contract Hire Of Vehicles Not Taxis Plant Or Buses,Contract Hire And Operating Leases
Southend-on-Sea Borough Council,http://www.opendatacommunities.org/id/unitary-authority/southend,ED Neighbourhoods & Environment,Environmental And Regulatory Services,4645,VEOLIA ENVIRONMENTAL SERVICES,03/03/2023,12073066,"157,683.30",Private Contractors,Other Agencies
Southend-on-Sea Borough Council,http://www.opendatacommunities.org/id/unitary-authority/southend,ED Neighbourhoods & Environment,Environmental And Regulatory Services,4650,VEOLIA ENVIRONMENTAL SERVICES,03/03/2023,12073066,"515,125.10",Private Contractors,Other Agencies
Southend-on-Sea Borough Council,http://www.opendatacommunities.org/id/unitary-authority/southend,ED Neighbourhoods & Environment,Environmental And Regulatory Services,4663,VEOLIA ENVIRONMENTAL SERVICES,03/03/2023,12073066,"2,832.73",Private Contractors,Other Agencies
Southend-on-Sea Borough Council,http://www.opendatacommunities.org/id/unitary-authority/southend,ED Neighbourhoods & Environment,Environmental And Regulatory Services,4670,VEOLIA ENVIRONMENTAL SERVICES,03/03/2023,12073066,"39,327.80",Private Contractors,Other Agencies
Southend-on-Sea Borough Council,http://www.opendatacommunities.org/id/unitary-authority/southend,ED Neighbourhoods & Environment,Highways And Transport Services,5175,VEOLIA ENVIRONMENTAL SERVICES,03/03/2023,12073066,"11,064.61",Private Contractors,Other Agencies
Southend-on-Sea Borough Council,http://www.opendatacommunities.org/id/unitary-authority/southend,ED Adults & Communities,Adult Social Care,1070,VICTORIA COURT REST HOME,03/03/2023,12073066,"16,481.85",Private Contractors,Other Agencies
Southend-on-Sea Borough Council,http://www.opendatacommunities.org/id/unitary-authority/southend,ED Adults & Communities,Adult Social Care,1079,VICTORIA COURT REST HOME,03/03/2023,12073066,"2,968.00",Private Contractors,Other Agencies
Southend-on-Sea Borough Council,http://www.opendatacommunities.org/id/unitary-authority/southend,ED Adults & Communities,Adult Social Care,1083,VICTORIA COURT REST HOME,03/03/2023,12073066,"19,681.65",Private Contractors,Other Agencies
Southend-on-Sea Borough Council,http://www.opendatacommunities.org/id/unitary-authority/southend,ED Adults & Communities,Adult Social Care,1260,VICTORIA COURT REST HOME,03/03/2023,12073066,"2,305.80",Private Contractors,Other Agencies
Southend-on-Sea Borough Council,http://www.opendatacommunities.org/id/unitary-authority/southend,ED Adults & Communities,Adult Social Care,1641,VICTORIA COURT REST HOME,03/03/2023,12073066,"2,305.80",Private Contractors,Other Agencies
Southend-on-Sea Borough Council,http://www.opendatacommunities.org/id/unitary-authority/southend,ED Adults & Communities,Adult Social Care,1671,VICTORIA COURT REST HOME,03/03/2023,12073066,"5,278.00",Private Contractors,Other Agencies
Southend-on-Sea Borough Council,http://www.opendatacommunities.org/id/unitary-authority/southend,ED Adults & Communities,Adult Social Care,1391,VIVID COMMUNITY CARE LIMITED,03/03/2023,12073066,"1,687.56",Private Contractors,Other Agencies
Southend-on-Sea Borough Council,http://www.opendatacommunities.org/id/unitary-authority/southend,ED Adults & Communities,Adult Social Care,1192,VOYAGE LTD,03/03/2023,12073066,"8,682.88",Private Contractors,Other Agencies
Southend-on-Sea Borough Council,http://www.opendatacommunities.org/id/unitary-authority/southend,ED Adults & Communities,Adult Social Care,1260,VOYAGE LTD,03/03/2023,12073066,"7,252.28",Private Contractors,Other Agencies
Southend-on-Sea Borough Council,http://www.opendatacommunities.org/id/unitary-authority/southend,ED Adults & Communities,Adult Social Care,1070,WESTCLIFF LODGE,03/03/2023,12073066,"18,419.12",Private Contractors,Other Agencies
Southend-on-Sea Borough Council,http://www.opendatacommunities.org/id/unitary-authority/southend,ED Adults & Communities,Adult Social Care,1083,WESTCLIFF LODGE,03/03/2023,12073066,"2,305.80",Private Contractors,Other Agencies
Southend-on-Sea Borough Council,http://www.opendatacommunities.org/id/unitary-authority/southend,ED Adults & Communities,Adult Social Care,1070,WESTMINSTER HOUSE,03/03/2023,12073066,"5,758.96",Private Contractors,Other Agencies
Southend-on-Sea Borough Council,http://www.opendatacommunities.org/id/unitary-authority/southend,ED Adults & Communities,Adult Social Care,1070,WINDERMERE REST HOME,03/03/2023,12073066,"18,763.72",Private Contractors,Other Agencies
Southend-on-Sea Borough Council,http://www.opendatacommunities.org/id/unitary-authority/southend,ED Finance & Resources,Central Services,8610,ZURICH INSURANCE PLC T/A NAVIGATORS AND GENERAL,03/03/2023,12073066,"2,760.14",Professional Fees,Services
Southend-on-Sea Borough Council,http://www.opendatacommunities.org/id/unitary-authority/southend,ED Finance & Resources,Central Services,7165,(G) CEMPLAS WATERPROOFING & CONCRETE REPAIRS LTD,07/03/2023,12073072,"150,381.72",Consultancy Services,Services
Southend-on-Sea Borough Council,http://www.opendatacommunities.org/id/unitary-authority/southend,ED Adults & Communities,Cultural And Related Services,4155,(G) EDMUNDS DESIGN & CONSTRUCTION LTD,07/03/2023,12073072,"3,250.00",Repairs And Maintenance Contracts,"Repairs, alterations and maintenance of buildings"
Southend-on-Sea Borough Council,http://www.opendatacommunities.org/id/unitary-authority/southend,Growth & Housing,Central Services,9007,(G) HENRY BOOT DEVELOPMENTS,07/03/2023,12073072,"24,750.78",Other Expenses,Other Expenses
Southend-on-Sea Borough Council,http://www.opendatacommunities.org/id/unitary-authority/southend,ED Finance & Resources,Central Services,8605,(G) POLYTEK SERVICES LIMITED,07/03/2023,12073072,"6,913.42",Private Contractors,Other Agencies
Southend-on-Sea Borough Council,http://www.opendatacommunities.org/id/unitary-authority/southend,ED Finance & Resources,Environmental and Regulatory Services,7110,(N) LB BUILDING ESSEX LTD,07/03/2023,12073072,"1,980.00",Repairs And Maintenance Contracts,"Repairs, alterations and maintenance of buildings"
Southend-on-Sea Borough Council,http://www.opendatacommunities.org/id/unitary-authority/southend,ED Children & Public Health,Children And Education Services,3265,REDACTED PERSONAL DATA,07/03/2023,12073072,703.51,Foster Carer Allowance,Other Agencies
Southend-on-Sea Borough Council,http://www.opendatacommunities.org/id/unitary-authority/southend,ED Children & Public Health,Children And Education Services,3250,AFFINITY FOSTERING SERVICES LTD,07/03/2023,12073072,"3,226.20",Private Contractors,Other Agencies
Southend-on-Sea Borough Council,http://www.opendatacommunities.org/id/unitary-authority/southend,ED Children & Public Health,Children And Education Services,3250,AFFINITY FOSTERING SERVICES LTD,07/03/2023,12073072,"3,396.00",Private Contractors,Other Agencies
Southend-on-Sea Borough Council,http://www.opendatacommunities.org/id/unitary-authority/southend,ED Children & Public Health,Children And Education Services,3250,AFFINITY FOSTERING SERVICES LTD,07/03/2023,12073072,"3,396.00",Private Contractors,Other Agencies
Southend-on-Sea Borough Council,http://www.opendatacommunities.org/id/unitary-authority/southend,ED Children & Public Health,Children And Education Services,3250,AFFINITY FOSTERING SERVICES LTD,07/03/2023,12073072,"3,226.20",Private Contractors,Other Agencies
Southend-on-Sea Borough Council,http://www.opendatacommunities.org/id/unitary-authority/southend,ED Children & Public Health,Children And Education Services,3250,AFFINITY FOSTERING SERVICES LTD,07/03/2023,12073072,"6,780.00",Private Contractors,Other Agencies
Southend-on-Sea Borough Council,http://www.opendatacommunities.org/id/unitary-authority/southend,ED Adults & Communities,Adult Social Care,1260,ASHGATE HOUSE LIMITED,07/03/2023,12073072,"5,774.44",Private Contractors,Other Agencies
Southend-on-Sea Borough Council,http://www.opendatacommunities.org/id/unitary-authority/southend,ED Adults & Communities,Adult Social Care,1260,ASHTEAD HOUSE LIMITED,07/03/2023,12073072,"5,931.52",Private Contractors,Other Agencies
Southend-on-Sea Borough Council,http://www.opendatacommunities.org/id/unitary-authority/southend,ED Adults & Communities,Adult Social Care,1320,BADGERS DEN (CARE) LIMITED T/A BADGERS DEN DAY OPPORTUNITIES,07/03/2023,12073072,720,Private Contractors,Other Agencies
Southend-on-Sea Borough Council,http://www.opendatacommunities.org/id/unitary-authority/southend,ED Adults & Communities,Adult Social Care,1320,BADGERS DEN (CARE) LIMITED T/A BADGERS DEN DAY OPPORTUNITIES,07/03/2023,12073072,"1,260.00",Private Contractors,Other Agencies
Southend-on-Sea Borough Council,http://www.opendatacommunities.org/id/unitary-authority/southend,ED Children & Public Health,Children And Education Services,3481,BADGERS DEN (CARE) LIMITED T/A BADGERS DEN DAY OPPORTUNITIES,07/03/2023,12073072,528,Childrens outings,Services
Southend-on-Sea Borough Council,http://www.opendatacommunities.org/id/unitary-authority/southend,ED Adults & Communities,Cultural And Related Services,4120,BIFFA WASTE SERVICES LTD,07/03/2023,12073072,"1,906.08",Waste Management,Cleaning And Domestic Supplies
Southend-on-Sea Borough Council,http://www.opendatacommunities.org/id/unitary-authority/southend,ED Growth & Housing,Adult Social Care,6012,REDACTED PERSONAL DATA,07/03/2023,12073072,500,Additional Allowances (non employee),Services
Southend-on-Sea Borough Council,http://www.opendatacommunities.org/id/unitary-authority/southend,ED Children & Public Health,Children And Education Services,3290,REDACTED PERSONAL DATA,07/03/2023,12073072,674,Accomodation Payment,Services
Southend-on-Sea Borough Council,http://www.opendatacommunities.org/id/unitary-authority/southend,Neighbourhoods & Environment,Central Services,9008,CAMPBELL REITH HILL LLP,07/03/2023,12073072,"5,500.00",Consultant Fees,Consultant Fees
Southend-on-Sea Borough Council,http://www.opendatacommunities.org/id/unitary-authority/southend,Neighbourhoods & Environment,Central Services,9008,CAMPBELL REITH HILL LLP,07/03/2023,12073072,"7,000.00",Consultantancy Fees,Consultantancy Fees
Southend-on-Sea Borough Council,http://www.opendatacommunities.org/id/unitary-authority/southend,ED Children & Public Health,Children And Education Services,3307,CANARY HOUSE CARE LIMITED,07/03/2023,12073072,"2,625.00",Accomodation Payment,Services
Southend-on-Sea Borough Council,http://www.opendatacommunities.org/id/unitary-authority/southend,ED Children & Public Health,Children And Education Services,3308,CANARY HOUSE CARE LIMITED,07/03/2023,12073072,"3,050.00",Accomodation Payment,Services
Southend-on-Sea Borough Council,http://www.opendatacommunities.org/id/unitary-authority/southend,ED Children & Public Health,Children And Education Services,3891,CAST COMMUNITIES AND SANCTUARY SEEKERS TOGETHER,07/03/2023,12073072,"4,105.68",Accomodation Payment,Services
Southend-on-Sea Borough Council,http://www.opendatacommunities.org/id/unitary-authority/southend,ED Adults & Communities,Adult Social Care,1105,CHOICES HEALTHCARE LTD,07/03/2023,12073072,"15,878.03",Private Contractors,Other Agencies
Southend-on-Sea Borough Council,http://www.opendatacommunities.org/id/unitary-authority/southend,ED Adults & Communities,Adult Social Care,1108,CHOICES HEALTHCARE LTD,07/03/2023,12073072,532,Private Contractors,Other Agencies
Southend-on-Sea Borough Council,http://www.opendatacommunities.org/id/unitary-authority/southend,ED Adults & Communities,Adult Social Care,1205,CHOICES HEALTHCARE LTD,07/03/2023,12073072,"2,777.19",Private Contractors,Other Agencies
Southend-on-Sea Borough Council,http://www.opendatacommunities.org/id/unitary-authority/southend,ED Adults & Communities,Cultural And Related Services,4256,CIVICA UK LTD,07/03/2023,12073072,607.5,Consultancy Services,Services
Southend-on-Sea Borough Council,http://www.opendatacommunities.org/id/unitary-authority/southend,Neighbourhoods & Environment,Central Services,9008,CONCEPT ENGINEERING CONSULTANTS LTD T/A CON SITE INVESTIGATION,07/03/2023,12073072,"68,740.18",Main Contractor,Main Contractor
Southend-on-Sea Borough Council,http://www.opendatacommunities.org/id/unitary-authority/southend,ED Adults & Communities,Adult Social Care,1260,CRAEGMOOR TURKETEL ROAD PRIORY,07/03/2023,12073072,"9,216.76",Private Contractors,Other Agencies
Southend-on-Sea Borough Council,http://www.opendatacommunities.org/id/unitary-authority/southend,ED Children & Public Health,Children And Education Services,3265,REDACTED PERSONAL DATA,07/03/2023,12073072,697.54,Foster Carer Allowance,Other Agencies
Southend-on-Sea Borough Council,http://www.opendatacommunities.org/id/unitary-authority/southend,ED Children & Public Health,Children And Education Services,3791,E4LAW LIMITED T/A LEXTOX,07/03/2023,12073072,524,Medical And Health Services,Services
Southend-on-Sea Borough Council,http://www.opendatacommunities.org/id/unitary-authority/southend,ED Children & Public Health,Children And Education Services,3892,E4LAW LIMITED T/A LEXTOX,07/03/2023,12073072,584,Medical And Health Services,Services
Southend-on-Sea Borough Council,http://www.opendatacommunities.org/id/unitary-authority/southend,ED Children & Public Health,Children And Education Services,3481,ECO WINGS,07/03/2023,12073072,"1,215.00",Childrens outings,Services
Southend-on-Sea Borough Council,http://www.opendatacommunities.org/id/unitary-authority/southend,ED Growth & Housing,Adult Social Care,6012,REDACTED PERSONAL DATA,07/03/2023,12073072,500,Additional Allowances (non employee),Services
Southend-on-Sea Borough Council,http://www.opendatacommunities.org/id/unitary-authority/southend,ED Children & Public Health,Children And Education Services,3185,ESSEX COUNTY COUNCIL,07/03/2023,12073072,"1,000.00",3rd Party training,Services
Southend-on-Sea Borough Council,http://www.opendatacommunities.org/id/unitary-authority/southend,ED Children & Public Health,Children And Education Services,3185,ESSEX COUNTY COUNCIL,07/03/2023,12073072,"1,000.00",3rd Party training,Services
Southend-on-Sea Borough Council,http://www.opendatacommunities.org/id/unitary-authority/southend,ED Adults & Communities,Adult Social Care,1310,ESSEX NURSING SERVICES,07/03/2023,12073072,513,Private Contractors,Other Agencies
Southend-on-Sea Borough Council,http://www.opendatacommunities.org/id/unitary-authority/southend,ED Adults & Communities,Adult Social Care,1320,FORGET ME NOT CARING LTD,07/03/2023,12073072,739.32,Private Contractors,Other Agencies
Southend-on-Sea Borough Council,http://www.opendatacommunities.org/id/unitary-authority/southend,ED Adults & Communities,Adult Social Care,1320,FORGET ME NOT CARING LTD,07/03/2023,12073072,952,Private Contractors,Other Agencies
Southend-on-Sea Borough Council,http://www.opendatacommunities.org/id/unitary-authority/southend,ED Adults & Communities,Adult Social Care,1294,FORGET ME NOT CARING LTD,07/03/2023,12073072,"3,240.56",Private Contractors,Other Agencies
Southend-on-Sea Borough Council,http://www.opendatacommunities.org/id/unitary-authority/southend,ED Adults & Communities,Adult Social Care,1294,FORGET ME NOT CARING LTD,07/03/2023,12073072,"4,163.92",Private Contractors,Other Agencies
Southend-on-Sea Borough Council,http://www.opendatacommunities.org/id/unitary-authority/southend,ED Adults & Communities,Adult Social Care,1294,FORGET ME NOT CARING LTD,07/03/2023,12073072,"3,268.20",Private Contractors,Other Agencies
Southend-on-Sea Borough Council,http://www.opendatacommunities.org/id/unitary-authority/southend,ED Adults & Communities,Adult Social Care,1294,FORGET ME NOT CARING LTD,07/03/2023,12073072,"3,702.36",Private Contractors,Other Agencies
Southend-on-Sea Borough Council,http://www.opendatacommunities.org/id/unitary-authority/southend,ED Adults & Communities,Adult Social Care,1430,GBS RE NHS MID ESSEX CCG,07/03/2023,12073072,"45,500.00",Social Care Services,Services
Southend-on-Sea Borough Council,http://www.opendatacommunities.org/id/unitary-authority/southend,ED Adults & Communities,Adult Social Care,1105,GOLDEN KEYS CARE AGENCY LIMITED,07/03/2023,12073072,"2,394.00",Private Contractors,Other Agencies
Southend-on-Sea Borough Council,http://www.opendatacommunities.org/id/unitary-authority/southend,ED Adults & Communities,Adult Social Care,1205,GOLDEN KEYS CARE AGENCY LIMITED,07/03/2023,12073072,902.5,Private Contractors,Other Agencies
Southend-on-Sea Borough Council,http://www.opendatacommunities.org/id/unitary-authority/southend,ED Adults & Communities,Adult Social Care,1105,GOLDEN KEYS CARE AGENCY LIMITED,07/03/2023,12073072,"2,403.50",Private Contractors,Other Agencies
Southend-on-Sea Borough Council,http://www.opendatacommunities.org/id/unitary-authority/southend,ED Adults & Communities,Adult Social Care,1105,GOLDEN KEYS CARE AGENCY LIMITED,07/03/2023,12073072,"1,026.00",Private Contractors,Other Agencies
Southend-on-Sea Borough Council,http://www.opendatacommunities.org/id/unitary-authority/southend,ED Adults & Communities,Adult Social Care,1105,GOLDEN KEYS CARE AGENCY LIMITED,07/03/2023,12073072,555.75,Private Contractors,Other Agencies
Southend-on-Sea Borough Council,http://www.opendatacommunities.org/id/unitary-authority/southend,ED Adults & Communities,Adult Social Care,1105,GOLDEN KEYS CARE AGENCY LIMITED,07/03/2023,12073072,788.5,Private Contractors,Other Agencies
Southend-on-Sea Borough Council,http://www.opendatacommunities.org/id/unitary-authority/southend,ED Adults & Communities,Adult Social Care,1108,GOLDEN KEYS CARE AGENCY LIMITED,07/03/2023,12073072,655.5,Private Contractors,Other Agencies
Southend-on-Sea Borough Council,http://www.opendatacommunities.org/id/unitary-authority/southend,ED Adults & Communities,Adult Social Care,1105,GOLDEN KEYS CARE AGENCY LIMITED,07/03/2023,12073072,"2,394.00",Private Contractors,Other Agencies
Southend-on-Sea Borough Council,http://www.opendatacommunities.org/id/unitary-authority/southend,ED Adults & Communities,Adult Social Care,1105,GOLDEN KEYS CARE AGENCY LIMITED,07/03/2023,12073072,603.25,Private Contractors,Other Agencies
Southend-on-Sea Borough Council,http://www.opendatacommunities.org/id/unitary-authority/southend,ED Growth & Housing,Planning Services,5631,GRAVESHAM BOROUGH COUNCIL - INCOME,07/03/2023,12073072,"45,000.00",Public Transport,Public Transport
Southend-on-Sea Borough Council,http://www.opendatacommunities.org/id/unitary-authority/southend,ED Children & Public Health,Children And Education Services,3308,GREAT FUTURE SUPPORT LTD,07/03/2023,12073072,"3,214.29",Accomodation Payment,Services
Southend-on-Sea Borough Council,http://www.opendatacommunities.org/id/unitary-authority/southend,ED Children & Public Health,Children And Education Services,3290,GRIHA CARE AND SUPPORT LIMITED,07/03/2023,12073072,"1,590.00",Accomodation Payment,Services
Southend-on-Sea Borough Council,http://www.opendatacommunities.org/id/unitary-authority/southend,ED Children & Public Health,Children And Education Services,3290,GRIHA CARE AND SUPPORT LIMITED,07/03/2023,12073072,"3,103.00",Accomodation Payment,Services
Southend-on-Sea Borough Council,http://www.opendatacommunities.org/id/unitary-authority/southend,ED Children & Public Health,Children And Education Services,3307,GRIHA CARE AND SUPPORT LIMITED,07/03/2023,12073072,"2,050.00",Accomodation Payment,Services
Southend-on-Sea Borough Council,http://www.opendatacommunities.org/id/unitary-authority/southend,ED Children & Public Health,Children And Education Services,3308,GRIHA CARE AND SUPPORT LIMITED,07/03/2023,12073072,"1,890.00",Accomodation Payment,Services
Southend-on-Sea Borough Council,http://www.opendatacommunities.org/id/unitary-authority/southend,ED Adults & Communities,Adult Social Care,1145,HARWOOD HOUSE DAY CENTRE,07/03/2023,12073072,983.25,Private Contractors,Other Agencies
Southend-on-Sea Borough Council,http://www.opendatacommunities.org/id/unitary-authority/southend,ED Adults & Communities,Adult Social Care,1146,HARWOOD HOUSE DAY CENTRE,07/03/2023,12073072,589.95,Private Contractors,Other Agencies
Southend-on-Sea Borough Council,http://www.opendatacommunities.org/id/unitary-authority/southend,ED Adults & Communities,Adult Social Care,1210,HARWOOD HOUSE DAY CENTRE,07/03/2023,12073072,524.4,Private Contractors,Other Agencies
Southend-on-Sea Borough Council,http://www.opendatacommunities.org/id/unitary-authority/southend,ED Adults & Communities,Adult Social Care,1145,HARWOOD HOUSE DAY CENTRE,07/03/2023,12073072,589.95,Private Contractors,Other Agencies
Southend-on-Sea Borough Council,http://www.opendatacommunities.org/id/unitary-authority/southend,ED Adults & Communities,Adult Social Care,1145,HARWOOD HOUSE DAY CENTRE,07/03/2023,12073072,"1,048.80",Private Contractors,Other Agencies
Southend-on-Sea Borough Council,http://www.opendatacommunities.org/id/unitary-authority/southend,ED Adults & Communities,Adult Social Care,1145,HARWOOD HOUSE DAY CENTRE,07/03/2023,12073072,524.4,Private Contractors,Other Agencies
Southend-on-Sea Borough Council,http://www.opendatacommunities.org/id/unitary-authority/southend,ED Adults & Communities,Adult Social Care,1145,HARWOOD HOUSE DAY CENTRE,07/03/2023,12073072,524.4,Private Contractors,Other Agencies
Southend-on-Sea Borough Council,http://www.opendatacommunities.org/id/unitary-authority/southend,ED Adults & Communities,Adult Social Care,1145,HARWOOD HOUSE DAY CENTRE,07/03/2023,12073072,"1,048.80",Private Contractors,Other Agencies
Southend-on-Sea Borough Council,http://www.opendatacommunities.org/id/unitary-authority/southend,ED Adults & Communities,Adult Social Care,1145,HARWOOD HOUSE DAY CENTRE,07/03/2023,12073072,786.6,Private Contractors,Other Agencies
Southend-on-Sea Borough Council,http://www.opendatacommunities.org/id/unitary-authority/southend,ED Adults & Communities,Adult Social Care,1176,HARWOOD HOUSE DAY CENTRE,07/03/2023,12073072,524.4,Private Contractors,Other Agencies
Southend-on-Sea Borough Council,http://www.opendatacommunities.org/id/unitary-authority/southend,ED Adults & Communities,Adult Social Care,1176,HARWOOD HOUSE DAY CENTRE,07/03/2023,12073072,524.4,Private Contractors,Other Agencies
Southend-on-Sea Borough Council,http://www.opendatacommunities.org/id/unitary-authority/southend,ED Adults & Communities,Adult Social Care,1294,INNER RESOURCES LTD,07/03/2023,12073072,853.2,Private Contractors,Other Agencies
Southend-on-Sea Borough Council,http://www.opendatacommunities.org/id/unitary-authority/southend,ED Adults & Communities,Adult Social Care,1195,J M CAREHOMES LIMITED,07/03/2023,12073072,"3,429.80",Private Contractors,Other Agencies
Southend-on-Sea Borough Council,http://www.opendatacommunities.org/id/unitary-authority/southend,ED Adults & Communities,Adult Social Care,1195,J M CAREHOMES LIMITED,07/03/2023,12073072,"3,429.80",Private Contractors,Other Agencies
Southend-on-Sea Borough Council,http://www.opendatacommunities.org/id/unitary-authority/southend,ED Adults & Communities,Adult Social Care,1195,J M CAREHOMES LIMITED,07/03/2023,12073072,"3,429.80",Private Contractors,Other Agencies
Southend-on-Sea Borough Council,http://www.opendatacommunities.org/id/unitary-authority/southend,ED Children & Public Health,Children And Education Services,3265,REDACTED PERSONAL DATA,07/03/2023,12073072,835.22,Foster Carer Allowance,Other Agencies
Southend-on-Sea Borough Council,http://www.opendatacommunities.org/id/unitary-authority/southend,ED Children & Public Health,Children And Education Services,3265,REDACTED PERSONAL DATA,07/03/2023,12073072,641.75,Foster Carer Allowance,Other Agencies
Southend-on-Sea Borough Council,http://www.opendatacommunities.org/id/unitary-authority/southend,ED Children & Public Health,Children And Education Services,3265,REDACTED PERSONAL DATA,07/03/2023,12073072,638.54,Foster Carer Allowance,Other Agencies
Southend-on-Sea Borough Council,http://www.opendatacommunities.org/id/unitary-authority/southend,ED Children & Public Health,Children And Education Services,3265,REDACTED PERSONAL DATA,07/03/2023,12073072,558.21,Foster Carer Specialist,Other Agencies
Southend-on-Sea Borough Council,http://www.opendatacommunities.org/id/unitary-authority/southend,ED Children & Public Health,Children And Education Services,3265,REDACTED PERSONAL DATA,07/03/2023,12073072,558.21,Foster Carer Specialist,Other Agencies
Southend-on-Sea Borough Council,http://www.opendatacommunities.org/id/unitary-authority/southend,ED Children & Public Health,Children And Education Services,3265,REDACTED PERSONAL DATA,07/03/2023,12073072,558.21,Foster Carer Specialist,Other Agencies
